Workbook

Sheet RFPR cover
A1: Regulatory Financial Performance Report
A2: ='RFPR cover'!C5 -> Cadent-NW
A3: ='RFPR cover'!C7 -> 2021
B5: Licensee | C5: Cadent-NW | G5: Input cells
B6: Sector | C6: =INDEX(Data!$A$73:$A$100,MATCH($C$5,Data!$B$73:$B$100,0),0)&"1" -> GD1 | G6: Totals cells (of formula within worksheet)
B7: Reporting Year: (enter 2014 for 2013-14) | C7: 2021 | G7: Referencing to other worksheets
B8: Version (Number) | G8: Referencing to other workbooks
B9: Submitted Date: | C9: 2021-07-30 | G9: Check cells
B10: Cost of Equity | C10: =SUMIF(Data!$B$72:$B$100,C5,Data!$C$72:$C$100) -> 0.067 | G10: No Input
B11: Sharing Factor | C11: =SUMIF(Data!$B$72:$B$100,C5,Data!$D$72:$D$100) -> 0.6304 | G11: Descriptions and pack data
B12: Notional Gearing | C12: =SUMIF(Data!$B$72:$B$100,C5,Data!$E$72:$E$100) -> 0.65
B13: RIIO-1 start date | C13: =INDEX(Data!$G$73:$G$100,MATCH($C$5,Data!$B$73:$B$100,0),0) -> 2014 | F13: Materiality £m
B14: Price basis | C14: =INDEX(Data!$H$73:$H$100,MATCH($C$5,Data!$B$73:$B$100,0),0) -> £m 09/10 | F14: 0.1

Sheet Data
A1: Network Operator Data
A2: ='RFPR cover'!C5 -> Cadent-NW
A3: ='RFPR cover'!C7 -> 2021
B6: 2018 | C6: 2017-18
B7: 2019 | C7: 2018-19
B8: 2020 | C8: 2019-20
B9: 2021 | C9: 2020-21
B10: 2022 | C10: 2021-22
B11: 2023 | C11: 2022-23
B13: RPI Index | C13: Reporting year | D13: Actual / Forecast index | E13: Financial Year Average RPI (RPIt) | F13: Year end RPI | G13: Corp. Tax
B14: 2009-10 | C14: 2010 | D14: =IF(VALUE(C14)<='RFPR cover'!$C$7,"Actual","Forecast") -> Actual | E14: 215.767 | F14: 221.75 | G14: 0.28
B15: 2010-11 | C15: 2011 | D15: =IF(VALUE(C15)<='RFPR cover'!$C$7,"Actual","Forecast") -> Actual | E15: 226.475 | F15: 233.45 | G15: 0.28
B16: 2011-12 | C16: 2012 | D16: =IF(VALUE(C16)<='RFPR cover'!$C$7,"Actual","Forecast") -> Actual | E16: 237.342 | F16: 241.65 | G16: 0.26
B17: 2012-13 | C17: 2013 | D17: =IF(VALUE(C17)<='RFPR cover'!$C$7,"Actual","Forecast") -> Actual | E17: 244.675 | F17: 249.1 | G17: 0.24
B18: 2013-14 | C18: 2014 | D18: =IF(VALUE(C18)<='RFPR cover'!$C$7,"Actual","Forecast") -> Actual | E18: 251.733 | F18: 255.25 | G18: 0.23
B19: 2014-15 | C19: 2015 | D19: =IF(VALUE(C19)<='RFPR cover'!$C$7,"Actual","Forecast") -> Actual | E19: 256.667 | F19: 257.55 | G19: 0.21
B20: 2015-16 | C20: 2016 | D20: =IF(VALUE(C20)<='RFPR cover'!$C$7,"Actual","Forecast") -> Actual | E20: 259.433 | F20: 261.25 | G20: 0.2
B21: 2016-17 | C21: 2017 | D21: =IF(VALUE(C21)<='RFPR cover'!$C$7,"Actual","Forecast") -> Actual | E21: 264.992 | F21: 269.95 | G21: 0.2
B22: 2017-18 | C22: 2018 | D22: =IF(VALUE(C22)<='RFPR cover'!$C$7,"Actual","Forecast") -> Actual | E22: 274.908 | F22: 279 | G22: 0.19
B23: 2018-19 | C23: 2019 | D23: =IF(VALUE(C23)<='RFPR cover'!$C$7,"Actual","Forecast") -> Actual | E23: 283.308 | F23: 286.65 | G23: 0.19
B24: 2019-20 | C24: 2020 | D24: =IF(VALUE(C24)<='RFPR cover'!$C$7,"Actual","Forecast") -> Actual | E24: 290.642 | F24: 292.6 | G24: 0.19
B25: 2020-21 | C25: 2021 | D25: =IF(VALUE(C25)<='RFPR cover'!$C$7,"Actual","Forecast") -> Actual | E25: 294.167 | F25: 299 | G25: 0.19
B26: 2021-22 | C26: 2022 | D26: =IF(VALUE(C26)<='RFPR cover'!$C$7,"Actual","Forecast") -> Forecast | E26: =E25*(1+INDEX($D$43:$J$43,0,MATCH($C26,$D$42:$J$42,0))) -> 301.9624255 | F26: =F25*(1+INDEX($D$43:$J$43,0,MATCH($C26,$D$42:$J$42,0))) -> 306.9235 | G26: 0.19
B27: 2022-23 | C27: 2023 | D27: =IF(VALUE(C27)<='RFPR cover'!$C$7,"Actual","Forecast") -> Forecast | E27: =E26*(1+INDEX($D$43:$J$43,0,MATCH($C27,$D$42:$J$42,0))) -> 311.2477701 | F27: 316.3613976 | G27: 0.19
B28: 2023-24 | C28: 2024 | D28: =IF(VALUE(C28)<='RFPR cover'!$C$7,"Actual","Forecast") -> Forecast | G28: 0.19
B29: 2024-25 | C29: 2025 | D29: =IF(VALUE(C29)<='RFPR cover'!$C$7,"Actual","Forecast") -> Forecast | G29: 0.19
B30: 2025-26 | C30: 2026 | D30: =IF(VALUE(C30)<='RFPR cover'!$C$7,"Actual","Forecast") -> Forecast | G30: 0.19
C32: =IF(C33<='RFPR cover'!$C$7,"Actuals","Forecast") -> Actuals | D32: =IF(D33<='RFPR cover'!$C$7,"Actuals","Forecast") -> Actuals | E32: =IF(E33<='RFPR cover'!$C$7,"Actuals","Forecast") -> Actuals | F32: =IF(F33<='RFPR cover'!$C$7,"Actuals","Forecast") -> Actuals | G32: =IF(G33<='RFPR cover'!$C$7,"Actuals","Forecast") -> Actuals | H32: =IF(H33<='RFPR cover'!$C$7,"Actuals","Forecast") -> Actuals | I32: =IF(I33<='RFPR cover'!$C$7,"Actuals","Forecast") -> Actuals | J32: =IF(J33<='RFPR cover'!$C$7,"Actuals","Forecast") -> Actuals
C33: ='RFPR cover'!$C$13 -> 2014 | D33: =C33+1 -> 2015 | E33: 2016 | F33: 2017 | G33: 2018 | H33: 2019 | I33: 2020 | J33: 2021
B34: Financial Year Average RPI (RPIt) | C34: =INDEX(Data!$E$14:$E$30,MATCH(C$33,Data!$C$14:$C$30,0),0)/IF('RFPR cover'!$C$6="ED1",Data!$E$17,Data!$E$14) -> 1.166689067 | D34: =INDEX(Data!$E$14:$E$30,MATCH(D$33,Data!$C$14:$C$30,0),0)/IF('RFPR cover'!$C$6="ED1",Data!$E$17,Data!$E$14) -> 1.189556327 | E34: =INDEX(Data!$E$14:$E$30,MATCH(E$33,Data!$C$14:$C$30,0),0)/IF('RFPR cover'!$C$6="ED1",Data!$E$17,Data!$E$14) -> 1.202375711 | F34: =INDEX(Data!$E$14:$E$30,MATCH(F$33,Data!$C$14:$C$30,0),0)/IF('RFPR cover'!$C$6="ED1",Data!$E$17,Data!$E$14) -> 1.228139614 | G34: =INDEX(Data!$E$14:$E$30,MATCH(G$33,Data!$C$14:$C$30,0),0)/IF('RFPR cover'!$C$6="ED1",Data!$E$17,Data!$E$14) -> 1.274096595 | H34: =INDEX(Data!$E$14:$E$30,MATCH(H$33,Data!$C$14:$C$30,0),0)/IF('RFPR cover'!$C$6="ED1",Data!$E$17,Data!$E$14) -> 1.313027479 | I34: =INDEX(Data!$E$14:$E$30,MATCH(I$33,Data!$C$14:$C$30,0),0)/IF('RFPR cover'!$C$6="ED1",Data!$E$17,Data!$E$14) -> 1.347017848 | J34: =INDEX(Data!$E$14:$E$30,MATCH(J$33,Data!$C$14:$C$30,0),0)/IF('RFPR cover'!$C$6="ED1",Data!$E$17,Data!$E$14) -> 1.363354915
B35: Year end RPI | C35: =INDEX(Data!$F$14:$F$30,MATCH(C$33,Data!$C$14:$C$30,0),0)/IF('RFPR cover'!$C$6="ED1",Data!$E$17,Data!$E$14) -> 1.182989058 | D35: =INDEX(Data!$F$14:$F$30,MATCH(D$33,Data!$C$14:$C$30,0),0)/IF('RFPR cover'!$C$6="ED1",Data!$E$17,Data!$E$14) -> 1.193648704 | E35: =INDEX(Data!$F$14:$F$30,MATCH(E$33,Data!$C$14:$C$30,0),0)/IF('RFPR cover'!$C$6="ED1",Data!$E$17,Data!$E$14) -> 1.210796832 | F35: =INDEX(Data!$F$14:$F$30,MATCH(F$33,Data!$C$14:$C$30,0),0)/IF('RFPR cover'!$C$6="ED1",Data!$E$17,Data!$E$14) -> 1.251118104 | G35: =INDEX(Data!$F$14:$F$30,MATCH(G$33,Data!$C$14:$C$30,0),0)/IF('RFPR cover'!$C$6="ED1",Data!$E$17,Data!$E$14) -> 1.293061497 | H35: =INDEX(Data!$F$14:$F$30,MATCH(H$33,Data!$C$14:$C$30,0),0)/IF('RFPR cover'!$C$6="ED1",Data!$E$17,Data!$E$14) -> 1.328516409 | I35: =INDEX(Data!$F$14:$F$30,MATCH(I$33,Data!$C$14:$C$30,0),0)/IF('RFPR cover'!$C$6="ED1",Data!$E$17,Data!$E$14) -> 1.356092452 | J35: =INDEX(Data!$F$14:$F$30,MATCH(J$33,Data!$C$14:$C$30,0),0)/IF('RFPR cover'!$C$6="ED1",Data!$E$17,Data!$E$14) -> 1.385754077
B36: 1 year change in Fin Year Ave RPI | C36: =INDEX(Data!$E$14:$E$30,MATCH(C$33,Data!$C$14:$C$30,0))/INDEX(Data!$E$14:$E$30,MATCH(C$33-1,Data!$C$14:$C$30,0)) -> 1.028846429 | D36: =INDEX(Data!$E$14:$E$30,MATCH(D$33,Data!$C$14:$C$30,0))/INDEX(Data!$E$14:$E$30,MATCH(D$33-1,Data!$C$14:$C$30,0)) -> 1.019600132 | E36: =INDEX(Data!$E$14:$E$30,MATCH(E$33,Data!$C$14:$C$30,0))/INDEX(Data!$E$14:$E$30,MATCH(E$33-1,Data!$C$14:$C$30,0)) -> 1.010776609 | F36: =INDEX(Data!$E$14:$E$30,MATCH(F$33,Data!$C$14:$C$30,0))/INDEX(Data!$E$14:$E$30,MATCH(F$33-1,Data!$C$14:$C$30,0)) -> 1.021427498 | G36: =INDEX(Data!$E$14:$E$30,MATCH(G$33,Data!$C$14:$C$30,0))/INDEX(Data!$E$14:$E$30,MATCH(G$33-1,Data!$C$14:$C$30,0)) -> 1.037419998 | H36: =INDEX(Data!$E$14:$E$30,MATCH(H$33,Data!$C$14:$C$30,0))/INDEX(Data!$E$14:$E$30,MATCH(H$33-1,Data!$C$14:$C$30,0)) -> 1.030555677 | I36: =INDEX(Data!$E$14:$E$30,MATCH(I$33,Data!$C$14:$C$30,0))/INDEX(Data!$E$14:$E$30,MATCH(I$33-1,Data!$C$14:$C$30,0)) -> 1.02588702 | J36: =INDEX(Data!$E$14:$E$30,MATCH(J$33,Data!$C$14:$C$30,0))/INDEX(Data!$E$14:$E$30,MATCH(J$33-1,Data!$C$14:$C$30,0)) -> 1.012128323
B37: HMT Forecasts for UK Economy - M3 New Forecasts RPI
C38: Calendar Year | D38: 2017 | E38: =D38+1 -> 2018 | F38: 2019 | G38: 2020 | H38: 2021 | I38: 2022 | J38: 2023 | K38: Source
B39: M3 New Forecasts RPI | H39: 0.025 | I39: 0.031 | J39: 0.03 | K39: November 2020 Publication
B41: Forecast growth rate
C42: Reporting Year | D42: 2017 | E42: =D42+1 -> 2018 | F42: 2019 | G42: 2020 | H42: 2021 | I42: 2022 | J42: 2023
B43: Future inflation assumption | I43: =(H39*0.75)+(I39*0.25) -> 0.0265 | J43: =(I39*0.75)+(J39*0.25) -> 0.03075
B45: ="Selected Capitalisation rates for "&'RFPR cover'!C5 -> Selected Capitalisation rates for Cadent-NW
C47: RIIO1
B48: =INDEX($G$54:$G$57,MATCH(LEFT('RFPR cover'!$C$6,2),Data!$E$54:$E$57,0),0) -> Totex excluding repex | C48: =INDEX($F$73:$F$100,MATCH('RFPR cover'!$C$5,Data!$B$73:$B$100,0),0) -> 0.2609535249
C50: 2014 | D50: =C50+1 -> 2015 | E50: 2016 | F50: 2017 | G50: 2018 | H50: 2019 | I50: 2020 | J50: 2021
B51: =INDEX($J$54:$J$57,MATCH(LEFT('RFPR cover'!$C$6,2),Data!$E$54:$E$57,0),0) -> Repex | C51: =IFERROR(INDEX(C$106:C$115,MATCH('RFPR cover'!$C$5,Data!$B$106:$B$115,0),0),0) -> 0.5 | D51: =IFERROR(INDEX(D$106:D$115,MATCH('RFPR cover'!$C$5,Data!$B$106:$B$115,0),0),0) -> 0.5714285714 | E51: =IFERROR(INDEX(E$106:E$115,MATCH('RFPR cover'!$C$5,Data!$B$106:$B$115,0),0),0) -> 0.6428571429 | F51: =IFERROR(INDEX(F$106:F$115,MATCH('RFPR cover'!$C$5,Data!$B$106:$B$115,0),0),0) -> 0.7142857143 | G51: =IFERROR(INDEX(G$106:G$115,MATCH('RFPR cover'!$C$5,Data!$B$106:$B$115,0),0),0) -> 0.7857142857 | H51: =IFERROR(INDEX(H$106:H$115,MATCH('RFPR cover'!$C$5,Data!$B$106:$B$115,0),0),0) -> 0.8571428571 | I51: =IFERROR(INDEX(I$106:I$115,MATCH('RFPR cover'!$C$5,Data!$B$106:$B$115,0),0),0) -> 0.9285714286 | J51: =IFERROR(INDEX(J$106:J$115,MATCH('RFPR cover'!$C$5,Data!$B$106:$B$115,0),0),0) -> 1
E54: ED | F54: £m 12/13 | G54: Totex | J54: n/a
E55: ET | F55: £m 09/10 | G55: Totex | J55: n/a
E56: GD | F56: £m 09/10 | G56: Totex excluding repex | J56: Repex
E57: GT | F57: £m 09/10 | G57: Totex (non-'uncertainty rate') | J57: Uncertainty rate
B61: Allowed cost of debt %
C62: 2014 | D62: =C62+1 -> 2015 | E62: 2016 | F62: 2017 | G62: 2018 | H62: 2019 | I62: 2020 | J62: 2021 | K62: 2022 | L62: 2023
B63: WPD | E63: 0.0255 | F63: 0.0238 | G63: 0.0222 | H63: 0.0191 | I63: 0.0158 | J63: 0.0109 | K63: 0.0076 | L63: 0.0044
B64: ED - excluding WPD | E64: 0.0255 | F64: 0.0242 | G64: 0.0229 | H64: 0.0209 | I64: 0.0194 | J64: 0.0178 | K64: 0.0162 | L64: 0.0147
B65: SHET | C65: 0.0292 | D65: 0.025 | E65: 0.0215 | F65: 0.0179 | G65: 0.0151 | H65: 0.0116 | I65: 0.0102 | J65: 0.0076
B66: ET - excluding SHET | C66: 0.0292 | D66: 0.0272 | E66: 0.0255 | F66: 0.0238 | G66: 0.0222 | H66: 0.0191 | I66: 0.0158 | J66: 0.0109
B67: GD | C67: 0.0292 | D67: 0.0272 | E67: 0.0255 | F67: 0.0238 | G67: 0.0222 | H67: 0.0191 | I67: 0.0158 | J67: 0.0109
B68: GT | C68: 0.0292 | D68: 0.0272 | E68: 0.0255 | F68: 0.0238 | G68: 0.0222 | H68: 0.0191 | I68: 0.0158 | J68: 0.0109
C71: Allowed Cost of Equity | D71: TIM Incentive Strength | E71: Gearing | F71: Main Cap. Rate | G71: RIIO1 start date | H71: Price Basis | I71: Fast Tracked | J71: IQI pre or post tax | K71: Allowed cost of debt
A72: Sector | B72: Default | K72: 2014 | L72: =K72+1 -> 2015 | M72: 2016 | N72: 2017 | O72: 2018 | P72: 2019 | Q72: 2020 | R72: 2021 | S72: 2022 | T72: 2023
A73: ED | B73: ENWL | C73: 0.06 | D73: 0.5811 | E73: 0.65 | F73: 0.68 | G73: 2016 | H73: =VLOOKUP($A73,$E$54:$F$57,2,FALSE) -> £m 12/13 | I73: No | J73: Post | M73: =E$64 -> 0.0255 | N73: 0.0242 | O73: 0.0229 | P73: 0.0209 | Q73: 0.0194 | R73: 0.0178 | S73: 0.0162 | T73: 0.0147
A74: ED | B74: NPgN | C74: 0.06 | D74: 0.5584370346 | E74: 0.65 | F74: 0.7 | G74: 2016 | H74: £m 12/13 | I74: No | J74: Post | M74: 0.0255 | N74: 0.0242 | O74: 0.0229 | P74: 0.0209 | Q74: 0.0194 | R74: 0.0178 | S74: 0.0162 | T74: 0.0147
A75: ED | B75: NPgY | C75: 0.06 | D75: 0.5584370346 | E75: 0.65 | F75: 0.72 | G75: 2016 | H75: £m 12/13 | I75: No | J75: Post | M75: 0.0255 | N75: 0.0242 | O75: 0.0229 | P75: 0.0209 | Q75: 0.0194 | R75: 0.0178 | S75: 0.0162 | T75: 0.0147
A76: ED | B76: UKPN-EPN | C76: 0.06 | D76: 0.5328 | E76: 0.65 | F76: 0.68 | G76: 2016 | H76: £m 12/13 | I76: No | J76: Post | M76: 0.0255 | N76: 0.0242 | O76: 0.0229 | P76: 0.0209 | Q76: 0.0194 | R76: 0.0178 | S76: 0.0162 | T76: 0.0147
A77: ED | B77: UKPN-LPN | C77: 0.06 | D77: 0.5328 | E77: 0.65 | F77: 0.68 | G77: 2016 | H77: £m 12/13 | I77: No | J77: Post | M77: 0.0255 | N77: 0.0242 | O77: 0.0229 | P77: 0.0209 | Q77: 0.0194 | R77: 0.0178 | S77: 0.0162 | T77: 0.0147
A78: ED | B78: UKPN-SPN | C78: 0.06 | D78: 0.5328 | E78: 0.65 | F78: 0.68 | G78: 2016 | H78: £m 12/13 | I78: No | J78: Post | M78: 0.0255 | N78: 0.0242 | O78: 0.0229 | P78: 0.0209 | Q78: 0.0194 | R78: 0.0178 | S78: 0.0162 | T78: 0.0147
A79: ED | B79: SPD | C79: 0.06 | D79: 0.535 | E79: 0.65 | F79: 0.8 | G79: 2016 | H79: £m 12/13 | I79: No | J79: Post | M79: 0.0255 | N79: 0.0242 | O79: 0.0229 | P79: 0.0209 | Q79: 0.0194 | R79: 0.0178 | S79: 0.0162 | T79: 0.0147
A80: ED | B80: SPMW | C80: 0.06 | D80: 0.535 | E80: 0.65 | F80: 0.8 | G80: 2016 | H80: £m 12/13 | I80: No | J80: Post | M80: 0.0255 | N80: 0.0242 | O80: 0.0229 | P80: 0.0209 | Q80: 0.0194 | R80: 0.0178 | S80: 0.0162 | T80: 0.0147
A81: ED | B81: SSEH | C81: 0.06 | D81: 0.5647 | E81: 0.65 | F81: 0.62 | G81: 2016 | H81: £m 12/13 | I81: No | J81: Post | M81: 0.0255 | N81: 0.0242 | O81: 0.0229 | P81: 0.0209 | Q81: 0.0194 | R81: 0.0178 | S81: 0.0162 | T81: 0.0147
A82: ED | B82: SSES | C82: 0.06 | D82: 0.5647 | E82: 0.65 | F82: 0.7 | G82: 2016 | H82: £m 12/13 | I82: No | J82: Post | M82: 0.0255 | N82: 0.0242 | O82: 0.0229 | P82: 0.0209 | Q82: 0.0194 | R82: 0.0178 | S82: 0.0162 | T82: 0.0147
A83: ED | B83: WPD-EMID | C83: 0.064 | D83: 0.7 | E83: 0.65 | F83: 0.8 | G83: 2016 | H83: £m 12/13 | I83: Yes | J83: Pre | M83: =E$63 -> 0.0255 | N83: 0.0238 | O83: 0.0222 | P83: 0.0191 | Q83: 0.0158 | R83: 0.0109 | S83: 0.0076 | T83: 0.0044
A84: ED | B84: WPD-WMID | C84: 0.064 | D84: 0.7 | E84: 0.65 | F84: 0.8 | G84: 2016 | H84: £m 12/13 | I84: Yes | J84: Pre | M84: 0.0255 | N84: 0.0238 | O84: 0.0222 | P84: 0.0191 | Q84: 0.0158 | R84: 0.0109 | S84: 0.0076 | T84: 0.0044
A85: ED | B85: WPD-SWALES | C85: 0.064 | D85: 0.7 | E85: 0.65 | F85: 0.8 | G85: 2016 | H85: £m 12/13 | I85: Yes | J85: Pre | M85: 0.0255 | N85: 0.0238 | O85: 0.0222 | P85: 0.0191 | Q85: 0.0158 | R85: 0.0109 | S85: 0.0076 | T85: 0.0044
A86: ED | B86: WPD-SWEST | C86: 0.064 | D86: 0.7 | E86: 0.65 | F86: 0.8 | G86: 2016 | H86: £m 12/13 | I86: Yes | J86: Pre | M86: 0.0255 | N86: 0.0238 | O86: 0.0222 | P86: 0.0191 | Q86: 0.0158 | R86: 0.0109 | S86: 0.0076 | T86: 0.0044
A87: GD | B87: Cadent-EOE | C87: 0.067 | D87: 0.6304 | E87: 0.65 | F87: 0.2663450186 | G87: 2014 | H87: £m 09/10 | I87: No | J87: Pre | K87: =C$67 -> 0.0292 | L87: 0.0272 | M87: 0.0255 | N87: 0.0238 | O87: 0.0222 | P87: 0.0191 | Q87: 0.0158 | R87: 0.0109
A88: GD | B88: Cadent-London | C88: 0.067 | D88: 0.6304 | E88: 0.65 | F88: 0.2346933783 | G88: 2014 | H88: £m 09/10 | I88: No | J88: Pre | K88: 0.0292 | L88: 0.0272 | M88: 0.0255 | N88: 0.0238 | O88: 0.0222 | P88: 0.0191 | Q88: 0.0158 | R88: 0.0109
A89: GD | B89: Cadent-WM | C89: 0.067 | D89: 0.6304 | E89: 0.65 | F89: 0.2494622386 | G89: 2014 | H89: £m 09/10 | I89: No | J89: Pre | K89: 0.0292 | L89: 0.0272 | M89: 0.0255 | N89: 0.0238 | O89: 0.0222 | P89: 0.0191 | Q89: 0.0158 | R89: 0.0109
A90: GD | B90: Cadent-NW | C90: 0.067 | D90: 0.6304 | E90: 0.65 | F90: 0.2609535249 | G90: 2014 | H90: £m 09/10 | I90: No | J90: Pre | K90: 0.0292 | L90: 0.0272 | M90: 0.0255 | N90: 0.0238 | O90: 0.0222 | P90: 0.0191 | Q90: 0.0158 | R90: 0.0109
A91: GD | B91: NGN | C91: 0.067 | D91: 0.6398 | E91: 0.65 | F91: 0.3498441138 | G91: 2014 | H91: £m 09/10 | I91: No | J91: Pre | K91: 0.0292 | L91: 0.0272 | M91: 0.0255 | N91: 0.0238 | O91: 0.0222 | P91: 0.0191 | Q91: 0.0158 | R91: 0.0109
A92: GD | B92: SGN - Scotland | C92: 0.067 | D92: 0.6373 | E92: 0.65 | F92: 0.3512904966 | G92: 2014 | H92: £m 09/10 | I92: No | J92: Pre | K92: 0.0292 | L92: 0.0272 | M92: 0.0255 | N92: 0.0238 | O92: 0.0222 | P92: 0.0191 | Q92: 0.0158 | R92: 0.0109
A93: GD | B93: SGN - Southern | C93: 0.067 | D93: 0.6373 | E93: 0.65 | F93: 0.322308559 | G93: 2014 | H93: £m 09/10 | I93: No | J93: Pre | K93: 0.0292 | L93: 0.0272 | M93: 0.0255 | N93: 0.0238 | O93: 0.0222 | P93: 0.0191 | Q93: 0.0158 | R93: 0.0109
A94: GD | B94: WWU | C94: 0.067 | D94: 0.6317 | E94: 0.65 | F94: 0.3578190447 | G94: 2014 | H94: £m 09/10 | I94: No | J94: Pre | K94: 0.0292 | L94: 0.0272 | M94: 0.0255 | N94: 0.0238 | O94: 0.0222 | P94: 0.0191 | Q94: 0.0158 | R94: 0.0109
A95: GT | B95: NGGT (TO) | C95: 0.068 | D95: 0.4436 | E95: 0.625 | F95: 0.644 | G95: 2014 | H95: £m 09/10 | I95: No | J95: Pre | K95: =C$68 -> 0.0292 | L95: 0.0272 | M95: 0.0255 | N95: 0.0238 | O95: 0.0222 | P95: 0.0191 | Q95: 0.0158 | R95: 0.0109
A96: GT | B96: NGGT (SO) | C96: 0.068 | D96: 0.4436 | E96: 0.625 | F96: 0.374 | G96: 2014 | H96: £m 09/10 | I96: No | J96: Pre | K96: 0.0292 | L96: 0.0272 | M96: 0.0255 | N96: 0.0238 | O96: 0.0222 | P96: 0.0191 | Q96: 0.0158 | R96: 0.0109
A97: ET | B97: NGET (TO) | C97: 0.07 | D97: 0.4689 | E97: 0.6 | F97: 0.85 | G97: 2014 | H97: £m 09/10 | I97: No | J97: Pre | K97: =C$66 -> 0.0292 | L97: 0.0272 | M97: 0.0255 | N97: 0.0238 | O97: 0.0222 | P97: 0.0191 | Q97: 0.0158 | R97: 0.0109
A98: ET | B98: NGESO | C98: 0.07 | D98: 0.4689 | E98: 0.6 | F98: 0.279 | G98: 2014 | H98: =VLOOKUP($A98,$E$54:$F$57,2,FALSE) -> £m 09/10 | I98: No | J98: Pre | K98: 0.0292 | L98: 0.0272 | M98: 0.0255 | N98: 0.0238 | O98: 0.0222 | P98: 0.0191 | Q98: 0.0158 | R98: 0.0109
A99: ET | B99: SPT | C99: 0.07 | D99: 0.5 | E99: 0.55 | F99: 0.9 | G99: 2014 | H99: =VLOOKUP($A99,$E$54:$F$57,2,FALSE) -> £m 09/10 | I99: Yes | J99: Pre | K99: 0.0292 | L99: 0.0272 | M99: 0.0255 | N99: 0.0238 | O99: 0.0222 | P99: 0.0191 | Q99: 0.0158 | R99: 0.0109
A100: ET | B100: SHET | C100: 0.07 | D100: 0.5 | E100: 0.55 | F100: 0.9 | G100: 2014 | H100: =VLOOKUP($A100,$E$54:$F$57,2,FALSE) -> £m 09/10 | I100: Yes | J100: Pre | K100: =C$65 -> 0.0292 | L100: 0.025 | M100: 0.0215 | N100: 0.0179 | O100: 0.0151 | P100: 0.0116 | Q100: 0.0102 | R100: 0.0076
B104: GD: Capitalised share of repex / GT: Uncertainty Rate
C105: 2014 | D105: =C105+1 -> 2015 | E105: =D105+1 -> 2016 | F105: =E105+1 -> 2017 | G105: 2018 | H105: 2019 | I105: 2020 | J105: 2021
B106: Cadent-EOE | C106: 0.5 | D106: 0.5714285714 | E106: 0.6428571429 | F106: 0.7142857143 | G106: 0.7857142857 | H106: 0.8571428571 | I106: 0.9285714286 | J106: 1
B107: Cadent-London | C107: 0.5 | D107: 0.5714285714 | E107: 0.6428571429 | F107: 0.7142857143 | G107: 0.7857142857 | H107: 0.8571428571 | I107: 0.9285714286 | J107: 1
B108: Cadent-WM | C108: 0.5 | D108: 0.5714285714 | E108: 0.6428571429 | F108: 0.7142857143 | G108: 0.7857142857 | H108: 0.8571428571 | I108: 0.9285714286 | J108: 1
B109: Cadent-NW | C109: 0.5 | D109: 0.5714285714 | E109: 0.6428571429 | F109: 0.7142857143 | G109: 0.7857142857 | H109: 0.8571428571 | I109: 0.9285714286 | J109: 1
B110: NGN | C110: 0.5 | D110: 0.5714285714 | E110: 0.6428571429 | F110: 0.7142857143 | G110: 0.7857142857 | H110: 0.8571428571 | I110: 0.9285714286 | J110: 1
B111: SGN - Scotland | C111: 0.5 | D111: 0.5714285714 | E111: 0.6428571429 | F111: 0.7142857143 | G111: 0.7857142857 | H111: 0.8571428571 | I111: 0.9285714286 | J111: 1
B112: SGN - Southern | C112: 0.5 | D112: 0.5714285714 | E112: 0.6428571429 | F112: 0.7142857143 | G112: 0.7857142857 | H112: 0.8571428571 | I112: 0.9285714286 | J112: 1
B113: WWU | C113: 0.5 | D113: 0.5714285714 | E113: 0.6428571429 | F113: 0.7142857143 | G113: 0.7857142857 | H113: 0.8571428571 | I113: 0.9285714286 | J113: 1
B114: NGGT (TO) | C114: 0.9 | D114: 0.9 | E114: 0.9 | F114: 0.9 | G114: 0.9 | H114: 0.9 | I114: 0.9 | J114: 0.9
B115: NGGT (SO)
B118: IQI Additional Income | C118: 2014 | D118: =C118+1 -> 2015 | E118: 2016 | F118: 2017 | G118: 2018 | H118: 2019 | I118: 2020 | J118: 2021 | K118: 2022 | L118: 2023
B119: ENWL | E119: 1.557563216 | F119: 1.473414124 | G119: 1.46895889 | H119: 1.470720053 | I119: 1.467471626 | J119: 1.448620622 | K119: 1.495679833 | L119: 1.439714872
B120: NPgN | E120: -0.658717818 | F120: -0.6354377258 | G120: -0.5890786287 | H120: -0.5817818819 | I120: -0.5682391887 | J120: -0.5193317033 | K120: -0.4796266585 | L120: -0.4656874701
B121: NPgY | E121: -0.8662603628 | F121: -0.8101977378 | G121: -0.7891908424 | H121: -0.7906187307 | I121: -0.7443265341 | J121: -0.7069727482 | K121: -0.6535094616 | L121: -0.6642975889
B122: UKPN-EPN | E122: -3.261213418 | F122: -3.346255445 | G122: -3.173291977 | H122: -3.123240475 | I122: -3.076755131 | J122: -2.934217718 | K122: -2.882593848 | L122: -2.7237011
B123: UKPN-LPN | E123: -2.426097237 | F123: -2.369038366 | G123: -2.24332766 | H123: -2.146602062 | I123: -2.174009679 | J123: -2.053892784 | K123: -1.904458123 | L123: -1.800861113
B124: UKPN-SPN | E124: -2.186101241 | F124: -2.382044743 | G124: -2.241867237 | H124: -2.114781265 | I124: -2.014617709 | J124: -1.942131326 | K124: -1.924885643 | L124: -1.84644513
B125: SPD | E125: -1.863353254 | F125: -1.818298041 | G125: -1.839467563 | H125: -1.741597343 | I125: -1.679800211 | J125: -1.597445636 | K125: -1.501639612 | L125: -1.445363888
B126: SPMW | E126: -2.131714527 | F126: -2.193973633 | G126: -1.986901022 | H126: -1.803755278 | I126: -1.77679425 | J126: -1.790147258 | K126: -1.644411369 | L126: -1.467384504
B127: SSEH | E127: 0.1659972181 | F127: 0.1663190061 | G127: 0.165543379 | H127: 0.1656974114 | I127: 0.1662263076 | J127: 0.1638030241 | K127: 0.1659334462 | L127: 0.1603668882
B128: SSES | E128: 0.3648271976 | F128: 0.3710908384 | G128: 0.3607185911 | H128: 0.3592781484 | I128: 0.3227419488 | J128: 0.3213907553 | K128: 0.3287617841 | L128: 0.3192043079
B129: WPD-EMID | E129: 7.128119675 | F129: 6.96741384 | G129: 6.203402589 | H129: 6.308597892 | I129: 6.23766484 | J129: 6.486581994 | K129: 6.815251662 | L129: 6.62710562
B130: WPD-WMID | E130: 6.507901473 | F130: 6.516616741 | G130: 6.32924565 | H130: 6.440739741 | I130: 6.636733199 | J130: 6.756816376 | K130: 6.696123445 | L130: 6.764742755
B131: WPD-SWALES | E131: 3.676313847 | F131: 3.674835087 | G131: 3.499852964 | H131: 3.724685547 | I131: 3.412173949 | J131: 3.420224103 | K131: 3.305354944 | L131: 3.363328564
B132: WPD-SWEST | E132: 5.376270196 | F132: 5.377596976 | G132: 5.26181028 | H132: 5.360849181 | I132: 5.266523823 | J132: 5.327117903 | K132: 5.322329401 | L132: 5.569988075
B133: Cadent-EOE | C133: 1.437155607 | D133: 1.371801563 | E133: 1.350766011 | F133: 1.356812199 | G133: 1.359813639 | H133: 1.350147507 | I133: 1.329843331 | J133: 1.317454096
B134: Cadent-London | C134: 1.222451077 | D134: 1.219815743 | E134: 1.294216483 | F134: 1.259639627 | G134: 1.284011218 | H134: 1.267851186 | I134: 1.259201906 | J134: 1.257376659
B135: Cadent-WM | C135: 0.8232500229 | D135: 0.8266357128 | E135: 0.796405046 | F135: 0.7875702145 | G135: 0.8113325286 | H135: 0.8106422878 | I135: 0.8090036895 | J135: 0.7804327697
B136: Cadent-NW | C136: 1.089395985 | D136: 1.027913195 | E136: 1.006698714 | F136: 1.01923509 | G136: 1.034148078 | H136: 1.020424079 | I136: 1.013773955 | J136: 0.9898055017
B137: NGN | C137: 3.067525014 | D137: 3.162921942 | E137: 3.215660422 | F137: 3.177353462 | G137: 2.992526777 | H137: 2.995397899 | I137: 3.008780646 | J137: 3.003553035
B138: SGN - Scotland | C138: 2.124089736 | D138: 2.035072334 | E138: 1.968699807 | F138: 2.085845677 | G138: 2.11503932 | H138: 2.096040782 | I138: 1.970964889 | J138: 1.955823727
B139: SGN - Southern | C139: 4.372401175 | D139: 4.105764166 | E139: 4.054566993 | F139: 4.174092746 | G139: 4.239710198 | H139: 4.246147721 | I139: 4.107852308 | J139: 4.057594497
B140: WWU | C140: 1.398277667 | D140: 1.386464987 | E140: 1.367304053 | F140: 1.349345378 | G140: 1.334777786 | H140: 1.335488711 | I140: 1.359779966 | J140: 1.351524007
B141: NGGT (TO) | C141: -1.129571821 | D141: -1.144400731 | E141: -1.176381736 | F141: -1.592755746 | G141: -1.85656676 | H141: -1.272041674 | I141: -1.103973995 | J141: -1.018311327
B142: NGGT (SO) | C142: -0.4318115499 | D142: -0.39947196 | E142: -0.3473431704 | F142: -0.3193206525 | G142: -0.3126562688 | H142: -0.3079937995 | I142: -0.3257092292 | J142: -0.3155202622
B143: NGET (TO) | C143: 15.16824629 | D143: 16.27511001 | E143: 15.6147029 | F143: 14.91167436 | G143: 13.03341576 | H143: 12.55606777 | I143: 11.28510091 | J143: 9.826817942
B144: NGET (SO) | C144: 0.9321939458 | D144: 0.899697931 | E144: 0.8778326769 | F144: 0.8723210932 | G144: 0.8987595857 | H144: 0.8280171022 | I144: 0.8841765856 | J144: 0.8998241565
B145: SPT | C145: 10.95275109 | D145: 1.34126836 | E145: 22.19017941 | F145: 7.048848325 | G145: 6.902069569 | H145: 6.942523809 | I145: 7.078506978 | J145: 5.26885245
B146: SHET | C146: 4.785055606 | D146: 4.973659719 | E146: 5.69886625 | F146: 3.792107731 | G146: 2.85125638 | H146: 2.879976525 | I146: 2.907470351 | J146: 2.819107438
B149: =LEFT('RFPR cover'!C6,2) -> GD
B150: Output incentives for each sector used to populate R5
B152: Input for R5 - Output Incentives | E152: =OR((LEFT('RFPR cover'!$C$6,2)=Data!F152),'RFPR cover'!$C$5=Data!F152) -> FALSE | F152: =B162 -> ED
B153: =CHOOSE(MATCH(TRUE,$E$152:$E$159,0),B163,B173,B183,E183,B193,E193,B203,E203)&"" -> Broad Measure of Customer Satisfaction | E153: =OR((LEFT('RFPR cover'!$C$6,2)=Data!F153),'RFPR cover'!$C$5=Data!F153) -> TRUE | F153: =B172 -> GD
B154: =CHOOSE(MATCH(TRUE,$E$152:$E$159,0),B164,B174,B184,E184,B194,E194,B204,E204)&"" -> Shrinkage Allowance Revenue Adjustment | E154: =OR((LEFT('RFPR cover'!$C$6,2)=Data!F154),'RFPR cover'!$C$5=Data!F154) -> FALSE | F154: =B182 -> NGGT (TO)
B155: Environment Emissions Incentive | E155: =OR((LEFT('RFPR cover'!$C$6,2)=Data!F155),'RFPR cover'!$C$5=Data!F155) -> FALSE | F155: =E182 -> NGGT (SO)
B156: Discretionary Reward Scheme | E156: =OR((LEFT('RFPR cover'!$C$6,2)=Data!F156),'RFPR cover'!$C$5=Data!F156) -> FALSE | F156: =B192 -> NGET (TO)
B157: NTS Exit Capacity | E157: =OR((LEFT('RFPR cover'!$C$6,2)=Data!F157),'RFPR cover'!$C$5=Data!F157) -> FALSE | F157: =E192 -> NGESO
E158: =OR((LEFT('RFPR cover'!$C$6,2)=Data!F158),'RFPR cover'!$C$5=Data!F158) -> FALSE | F158: =B202 -> SPT
E159: =OR((LEFT('RFPR cover'!$C$6,2)=Data!F159),'RFPR cover'!$C$5=Data!F159) -> FALSE | F159: =E202 -> SHET
B162: ED
B163: Broad measure of customer service
B164: Interruptions-related quality of service
B165: Incentive on connections engagement
B166: Time to Connect Incentive
B167: Losses discretionary reward scheme
B172: GD
B173: Broad Measure of Customer Satisfaction
B174: Shrinkage Allowance Revenue Adjustment
B175: Environment Emissions Incentive
B176: Discretionary Reward Scheme
B177: NTS Exit Capacity
B182: =B95 -> NGGT (TO) | E182: =B96 -> NGGT (SO)
B183: Stakeholder Satisfaction Output | E183: Constraint management | F183: Constraint management | G183: Constraint management | H183: Constraint management | I183: Constraint management
B184: Permits revenue adjustment | E184: Transportation Support Services | F184: Transportation Support Services | G184: Transportation Support Services | H184: Transportation Support Services | I184: Transportation Support Services
E185: Shrinkage incentive | F185: Shrinkage incentive | G185: Shrinkage incentive | H185: Shrinkage incentive | I185: Shrinkage incentive
E186: Residual balancing | F186: Residual balancing | G186: Residual balancing | H186: Residual balancing | I186: Residual balancing
E187: Quality of demand forecasting | F187: Quality of demand forecasting | G187: Quality of demand forecasting | H187: Quality of demand forecasting | I187: Quality of demand forecasting
E188: Greenhouse gas incentive | F188: Greenhouse gas incentive | G188: Greenhouse gas incentive | H188: Greenhouse gas incentive | I188: Greenhouse gas incentive
E189: Maintenance incentive | F189: Maintenance incentive | G189: Maintenance incentive | H189: Maintenance incentive | I189: Maintenance incentive
B192: =B97 -> NGET (TO) | E192: =B98 -> NGESO
B193: Network Reliability Incentive | E193: Electricity Market Reform incentive revenue | F193: Electricity Market Reform incentive revenue | G193: Electricity Market Reform incentive revenue | H193: Electricity Market Reform incentive revenue | I193: Electricity Market Reform incentive revenue
B194: Stakeholder Satisfaction Output | E194: Balancing Services Incentive Scheme / ESO Incentive Scheme 18/19 | F194: Balancing Services Incentive Scheme / ESO Incentive Scheme 18/19 | G194: Balancing Services Incentive Scheme / ESO Incentive Scheme 18/19 | H194: Balancing Services Incentive Scheme / ESO Incentive Scheme 18/19 | I194: Balancing Services Incentive Scheme / ESO Incentive Scheme 18/19
B195: SF6 Emissions | E195: Renewable wind forecasting incentive | F195: Renewable wind forecasting incentive | G195: Renewable wind forecasting incentive | H195: Renewable wind forecasting incentive | I195: Renewable wind forecasting incentive
B196: Environmental Discretionary Reward | E196: ESO Reporting and Incentive (ESORI)
B202: =B145 -> SPT | E202: =B100 -> SHET
B203: Network Reliability Incentive | E203: Network Reliability Incentive
B204: Stakeholder Satisfaction Output | E204: Stakeholder Satisfaction Output
B205: SF6 Emissions | E205: SF6 Emissions
B206: Environmental Discretionary Reward | E206: Environmental Discretionary Reward
B207: Performance re offers of timely connection | E207: Performance re offers of timely connection
B212: All incentive performance recognised in t+2 allowed revenue - except TTC (t+3) and LDR (t+1) in ED
B214: Time to Connect Incentive revenue adjustment | C214: t+3
B215: Losses discretionary reward scheme revenue adjustment | C215: t+1
B218: Bond or loan types
B219: Fixed rate
B220: Floating
B221: Inflation-linked
B224: Reference rate
B225: Not applicable
B226: LIBOR 3 month
B227: LIBOR 6 month
B228: EURIBOR 3 month
B229: BOE base rate
B230: RPI 12 month
B231: CPI 12 month
B235: Currency
B236: GBP
B237: EUR
B238: USD
B239: HKD
B240: CAD
B243: Rank
B244: Senior
B245: Junior
B248: Hedged
B249: Yes - fully hedged
B250: Yes - partially hedged
B251: No
B253: Special features
B254: Callable
B255: Puttable
B259: Counterparty
B260: EIB
... 4 more rows

Sheet Content & Version Control
A1: Version control
A2: ='RFPR cover'!C5 -> Cadent-NW
A3: ='RFPR cover'!C7 -> 2021
B6: Version:
B8: Submission | C8: Date submitted | D8: Changes
B9: Submission 1
B10: Submission 2
B11: Submission 3
B12: Submission 4
B13: Submission 5
B14: Submission 6
B15: Submission 7
B16: Submission 8
B17: Submission 9
B18: Submission 10
B21: R1 - RoRE
B22: R2 - Revenue
B23: R3 - Rec to totex
B24: R4 - Totex
B25: R5 - Output Incentives
B26: R6 - Innovation
B27: R7 - Financing
B28: R7a - Financing input
B29: R8 - Net Debt
B30: R8a - Net Debt input
B31: R9 - RAV
B32: R10 - Tax
B33: R11 - Dividends
B34: R12 - Pensions
B35: R13 - Other Activities

Sheet Change log
A1: Change log
A2: ='RFPR cover'!C5 -> Cadent-NW
A3: ='RFPR cover'!C7 -> 2021
A5: Version | B5: Table Reference | C5: Changes made to RFPR template
A6: 1.1 | B6: R8 | C6: Row 26 added to pick up unamortised issues costs row in table R8a.
A7: 1.1 | B7: R8 | C7: Row 42 updated to include new row 26 (unamortised issue costs) in the subtotal
A8: 1.1 | B8: R1 | C8: Amended formating to percentages (Column M:N, rows 10-23 and rows 29-42)
A9: 1.1 | B9: R7 | C9: B29 to add "Net Interest" into the title to make it clear that this should include regulatory definition of net interest associated with new/refinanced debt raised in future years
A10: 1.1 | B10: R7 | C10: Row 47 added to allow input of issuance expenses forecast for new/refinanced debt in future years
A11: 1.1 | B11: R8a | C11: Additional row added for restricted cash balances in table R8a in row 18, guidance updated.
A12: 1.1 | B12: R7 | C12: D37 - formula amended to read =('R8 - Net Debt'!D54-AVERAGE('R8 - Net Debt'!D8,('R8 - Net Debt'!E10-'R8a - Net Debt input'!T18)))*(Data!C36-1)
A13: 1.1 | B13: R7 | C13: E37 - formula amended to read =('R8 - Net Debt'!E54-AVERAGE(('R8 - Net Debt'!E8-'R8a - Net Debt input'!T18),('R8 - Net Debt'!E10-'R8a - Net Debt input'!U18)))*(Data!D36-1) Formula copied across to F37:K37
A14: 1.1 | B14: R10 | C14: Amended formula in D50 to read =D85-D87, and dragged formula across to E5:K5
A15: 1.1 | B15: R1 | C15: Amended formula in B3 to correct spelling of system, originally spelt 'syestem'
A16: 1.1 | B16: R9 | C16: Formula in row 32 changed from =IF(D5="Actuals",IF(D31>=0,(D29-SUM($D$31:D31))-D11<'RFPR cover'!$F$14,(D29-SUM($D$31:D31))-D11<'RFPR cover'!$F$14), "NA") to =IF(D5="Actuals",IF(ABS((D29-SUM($D$31:D31))-D11)<'RFPR cover'!$F$14,"TRUE","FALSE"),"NA")
A17: 1.1 | B17: R8a | C17: Removed content in F12 ("Income statement debits and cash out flows (entered as +ve values, credits as -ve values")
A18: 1.1 | B18: R8a | C18: Changed "Restricted cash balances (entered as +ve values, credits as -ve values)" in F18 to "Restricted cash balances (-ive)"
A19: 1.1 | B19: Data | C19: J63:J68 updated to be consistent with Nov 2019 PCFM
A20: 1.1 | B20: Data | C20: Populated the incentives for NGGT SO and NGET SO in the Data tab, based on the incentives in the 2019 RFPR template for both entities.
A21: 1.1 | B21: R7a | C21: Removed data validation between rows 498:509
A22: 1.1 | B22: R10 | C22: Added in "Tax arising from MOD values" in "Other adjustments" in R10
A23: 1.1 | B23: R10 | C23: Changed the formulas in row 6 from =IF(H6<=('RFPR cover'!$C$7),"Actuals","Forecast") to =IF(H6<=('RFPR cover'!$C$7-1),"Actuals","Forecast")
A24: 1.1 | B24: R9 | C24: Changed the formulas in row 5 from =IF(D6<='RFPR cover'!$C$7,"Actuals","Forecast") to =IF(D6<='RFPR cover'!$C$7-1,"Actuals","Forecast").
A25: 1.1 | B25: Data | C25: Changed the tax rate from G25:G30 to be in line with the 2020 Budget, where Government announced the corporate tax rate would be 19% for the years beginning April 2020 and 2021.
A26: 1.1 | B26: R10 | C26: Blocked out G36 as this will be actual information, not forecast.
A27: 1.1 | B27: Data | C27: Updated the cost of debt figures for 2022 and 2023 to match latest PCFM
A28: 1.1 | B28: Data | C28: Updated the cost of debt figures for 2022 and 2023 to match latest PCFM, M3 New Forecasts RPI for 2021, 2022 and 2023 and Financial Year Average RPI and Year end RPI in cells E24 and F24
A29: 2 | B29: Data | C29: Updated RPI Index for 2020 and 2021, M3 New Forecasts RPI for 2021, 2022 and 2023
A30: 2 | B30: Data | C30: Updated the cost of debt figures for 2021, 2022 and 2023
A31: 2 | B31: Data | C31: Row 196 - NGESO incentive added
A32: 2 | B32: R7 - Financing | C32: Cell D37 - formula has been corrected.
A33: 2 | B33: RFPR Cover | C33: Changed NGET(SO) to NGESO in the Drop down list
A34: 2.1 | B34: R10 - Tax | C34: Formula in cell E37 has been corrected
A35: 2.1 | B35: R7 - Financing | C35: Cell M30 -formula has been removed.

Sheet R1 - RoRE
A1: R1 - Return on Regulatory Equity (RoRE)
A2: ='RFPR cover'!C5 -> Cadent-NW
A3: ='RFPR cover'!C7 -> 2021 | B3: =IF('RFPR cover'!C5=Data!B98,"Not required to be completed for System Operator",(IF('RFPR cover'!C5=Data!B96,"Not required to be completed for System Operator",""))) -> 
D5: =IF(D6<='RFPR cover'!$C$7,"Actuals","Forecast") -> Actuals | E5: =IF(E6<='RFPR cover'!$C$7,"Actuals","Forecast") -> Actuals | F5: =IF(F6<='RFPR cover'!$C$7,"Actuals","Forecast") -> Actuals | G5: =IF(G6<='RFPR cover'!$C$7,"Actuals","Forecast") -> Actuals | H5: =IF(H6<='RFPR cover'!$C$7,"Actuals","Forecast") -> Actuals | I5: =IF(I6<='RFPR cover'!$C$7,"Actuals","Forecast") -> Actuals | J5: =IF(J6<='RFPR cover'!$C$7,"Actuals","Forecast") -> Actuals | K5: =IF(K6<='RFPR cover'!$C$7,"Actuals","Forecast") -> Actuals
D6: ='RFPR cover'!$C$13 -> 2014 | E6: =D6+1 -> 2015 | F6: =E6+1 -> 2016 | G6: 2017 | H6: 2018 | I6: 2019 | J6: 2020 | K6: 2021 | M6: ="Cumulative to "&'RFPR cover'!$C$7 -> Cumulative to 2021 | N6: RIIO-1 period
B8: RoRE based on Notional Gearing
B10: Allowed Equity Return | C10: % | D10: =D48/D$65 -> 0.067 | E10: 0.067 | F10: 0.067 | G10: 0.067 | H10: 0.067 | I10: 0.067 | J10: 0.067 | K10: 0.067 | M10: =AVERAGE(D48:INDEX(D48:K48,0,MATCH('RFPR cover'!$C$7,$D$6:$K$6,0)))/AVERAGE($D$65:INDEX($D$65:$K$65,0,MATCH('RFPR cover'!$C$7,$D$6:$K$6,0))) -> 0.067 | N10: =AVERAGE(D48:K48)/AVERAGE($D$65:$K$65) -> 0.067
B11: =B49 -> Totex outperformance | C11: % | D11: 0.01530403624 | E11: -0.01517955113 | F11: 0.01731326053 | G11: 0.02042270836 | H11: 0.02482912999 | I11: 0.01520150497 | J11: 0.01266201533 | K11: -0.01493679426 | M11: =AVERAGE(D49:INDEX(D49:K49,0,MATCH('RFPR cover'!$C$7,$D$6:$K$6,0)))/AVERAGE($D$65:INDEX($D$65:$K$65,0,MATCH('RFPR cover'!$C$7,$D$6:$K$6,0))) -> 0.009414545814 | N11: =AVERAGE(D49:K49)/AVERAGE($D$65:$K$65) -> 0.009414545814
B12: IQI Reward | C12: % | D12: 0.001409693979 | E12: 0.001374015354 | F12: 0.001363556533 | G12: 0.001376032238 | H12: 0.001411403469 | I12: 0.001392299849 | J12: 0.001378089622 | K12: 0.001330254797 | M12: =AVERAGE(D50:INDEX(D50:K50,0,MATCH('RFPR cover'!$C$7,$D$6:$K$6,0)))/AVERAGE($D$65:INDEX($D$65:$K$65,0,MATCH('RFPR cover'!$C$7,$D$6:$K$6,0))) -> 0.001379345763 | N12: 0.001379345763
B13: Broad Measure of Customer Satisfaction | C13: % | D13: 0.001888837864 | E13: 0.002135432597 | F13: 0.003026702274 | G13: 0.002491094723 | H13: 0.002562571434 | I13: 0.003057900734 | J13: 0.003429553136 | K13: 0.003534579778 | M13: =AVERAGE(D51:INDEX(D51:K51,0,MATCH('RFPR cover'!$C$7,$D$6:$K$6,0)))/AVERAGE($D$65:INDEX($D$65:$K$65,0,MATCH('RFPR cover'!$C$7,$D$6:$K$6,0))) -> 0.002767603001 | N13: 0.002767603001
B14: Shrinkage Allowance Revenue Adjustment | C14: % | D14: 0.0004210737414 | E14: 0.000323785237 | F14: 0.0003264309536 | G14: 0.0002988431834 | H14: 0.0003329327474 | I14: 0.0005105295595 | J14: 0.0003145131164 | K14: 0.0009199322277 | M14: =AVERAGE(D52:INDEX(D52:K52,0,MATCH('RFPR cover'!$C$7,$D$6:$K$6,0)))/AVERAGE($D$65:INDEX($D$65:$K$65,0,MATCH('RFPR cover'!$C$7,$D$6:$K$6,0))) -> 0.0004320377283 | N14: 0.0004320377283
B15: Environment Emissions Incentive | C15: % | D15: 0.001379229939 | E15: 0.0014484096 | F15: 0.001905103172 | G15: 0.001790060368 | H15: 0.001629127815 | I15: 0.002348185585 | J15: 0.002872740222 | K15: 0.008072664717 | M15: =AVERAGE(D53:INDEX(D53:K53,0,MATCH('RFPR cover'!$C$7,$D$6:$K$6,0)))/AVERAGE($D$65:INDEX($D$65:$K$65,0,MATCH('RFPR cover'!$C$7,$D$6:$K$6,0))) -> 0.002692072868 | N15: 0.002692072868
B16: Discretionary Reward Scheme | C16: % | D16: 7.40087225e-05 | E16: 7.451481233e-05 | F16: 4.792498206e-05 | G16: 4.776860583e-05 | H16: 4.769377997e-05 | I16: 0 | J16: 0 | K16: 0 | M16: =AVERAGE(D54:INDEX(D54:K54,0,MATCH('RFPR cover'!$C$7,$D$6:$K$6,0)))/AVERAGE($D$65:INDEX($D$65:$K$65,0,MATCH('RFPR cover'!$C$7,$D$6:$K$6,0))) -> 3.638207621e-05 | N16: 3.638207621e-05
B17: NTS Exit Capacity | C17: % | D17: 0.001035255306 | E17: 0.001654696461 | F17: 0.005850681127 | G17: 0.004657460043 | H17: 0.005447265426 | I17: 0.005179580441 | J17: 0.005336595443 | K17: 0.003948595569 | M17: =AVERAGE(D55:INDEX(D55:K55,0,MATCH('RFPR cover'!$C$7,$D$6:$K$6,0)))/AVERAGE($D$65:INDEX($D$65:$K$65,0,MATCH('RFPR cover'!$C$7,$D$6:$K$6,0))) -> 0.004138184327 | N17: 0.004138184327
B18: Network Innovation | C18: % | D18: -0.0001011322905 | E18: -0.0002670560572 | F18: -0.0004038058917 | G18: -0.000462735095 | H18: -0.0003792184481 | I18: -0.0002498053858 | J18: -0.0004026694382 | K18: -0.0003401760355 | M18: =AVERAGE(D56:INDEX(D56:K56,0,MATCH('RFPR cover'!$C$7,$D$6:$K$6,0)))/AVERAGE($D$65:INDEX($D$65:$K$65,0,MATCH('RFPR cover'!$C$7,$D$6:$K$6,0))) -> -0.0003257720313 | N18: -0.0003257720313
B19: =B57 -> Penalties and fines | C19: % | D19: -0.0008406165002 | E19: -0.0007930742664 | F19: -0.0002800143093 | G19: -0.0003433518967 | H19: -0.0004919920844 | I19: -0.0009298949232 | J19: -0.0005752777803 | K19: -0.0002407974194 | M19: =AVERAGE(D57:INDEX(D57:K57,0,MATCH('RFPR cover'!$C$7,$D$6:$K$6,0)))/AVERAGE($D$65:INDEX($D$65:$K$65,0,MATCH('RFPR cover'!$C$7,$D$6:$K$6,0))) -> -0.0005614573955 | N19: -0.0005614573955
B20: =B58 -> RoRE - Operational performance | C20: % | D20: =SUM(D10:D19) -> 0.087570387 | E20: 0.05777117261 | F20: 0.09614983937 | G20: 0.09727788053 | H20: 0.1023889141 | I20: 0.09351030083 | J20: 0.09201555966 | K20: 0.06928825938 | M20: =SUM(M10:M19) -> 0.08697294215 | N20: =SUM(N10:N19) -> 0.08697294215
B21: =B59 -> Debt performance - at notional gearing | C21: % | D21: =(D59)/D$65 -> 0.02914664917 | E21: =(E59)/E$65 -> -0.006612192517 | F21: 0.006892839502 | G21: 0.0182417725 | H21: 0.05707811808 | I21: 0.04320896628 | J21: 0.02442052037 | K21: 0.0006303308733 | M21: =AVERAGE(D59:INDEX(D59:K59,0,MATCH('RFPR cover'!$C$7,$D$6:$K$6,0)))/AVERAGE($D$65:INDEX($D$65:$K$65,0,MATCH('RFPR cover'!$C$7,$D$6:$K$6,0))) -> 0.02161411727 | N21: =AVERAGE(D59:K59)/AVERAGE($D$65:$K$65) -> 0.02161411727
B22: =B61 -> Tax performance - at notional gearing | C22: % | D22: =(D61)/D$65 -> -0.005181697269 | E22: =(E61)/E$65 -> -0.006182596766 | F22: -0.002619887734 | G22: -0.0009976877454 | H22: 0.001489292601 | I22: 0.0009373146254 | J22: -0.003078984834 | K22: 0.003698403855 | M22: =AVERAGE(D61:INDEX(D61:K61,0,MATCH('RFPR cover'!$C$7,$D$6:$K$6,0)))/AVERAGE($D$65:INDEX($D$65:$K$65,0,MATCH('RFPR cover'!$C$7,$D$6:$K$6,0))) -> -0.001480811967 | N22: =AVERAGE(D61:K61)/AVERAGE($D$65:$K$65) -> -0.001480811967
B23: =B63 -> RoRE - including financing and tax | C23: % | D23: =SUM(D20:D22) -> 0.1115353389 | E23: =SUM(E20:E22) -> 0.04497638332 | F23: 0.1004227911 | G23: 0.1145219653 | H23: 0.1609563248 | I23: 0.1376565817 | J23: 0.1133570952 | K23: 0.07361699411 | M23: =SUM(M20:M22) -> 0.1071062475 | N23: =SUM(N20:N22) -> 0.1071062475
B27: RoRE based on Actual Gearing
B29: Allowed Equity Return | C29: % | D29: =D48/D$66 -> 0.05352046866 | E29: 0.06259776966 | F29: 0.05988190507 | G29: 0.06024674903 | H29: 0.06237669885 | I29: 0.06317955063 | J29: 0.06406757238 | K29: 0.06308234977 | M29: =AVERAGE(D48:INDEX(D48:K48,0,MATCH('RFPR cover'!$C$7,$D$6:$K$6,0)))/AVERAGE($D$66:INDEX($D$66:$K$66,0,MATCH('RFPR cover'!$C$7,$D$6:$K$6,0))) -> 0.06094224546 | N29: =AVERAGE(D48:K48)/AVERAGE($D$66:$K$66) -> 0.06094224546
B30: =B49 -> Totex outperformance | C30: % | D30: 0.01222506256 | E30: -0.01418217978 | F30: 0.01547389587 | G30: 0.01836420575 | H30: 0.02311580842 | I30: 0.01433469034 | J30: 0.01210782961 | K30: -0.01406340417 | M30: =AVERAGE(D49:INDEX(D49:K49,0,MATCH('RFPR cover'!$C$7,$D$6:$K$6,0)))/AVERAGE($D$66:INDEX($D$66:$K$66,0,MATCH('RFPR cover'!$C$7,$D$6:$K$6,0))) -> 0.008563336745 | N30: =AVERAGE(D49:K49)/AVERAGE($D$66:$K$66) -> 0.008563336745
B31: IQI Reward | C31: % | D31: 0.001126081827 | E31: 0.00128373577 | F31: 0.001218691983 | G31: 0.001237335357 | H31: 0.001314010286 | I31: 0.001312908639 | J31: 0.001317773979 | K31: 0.001252471618 | M31: =AVERAGE(D50:INDEX(D50:K50,0,MATCH('RFPR cover'!$C$7,$D$6:$K$6,0)))/AVERAGE($D$66:INDEX($D$66:$K$66,0,MATCH('RFPR cover'!$C$7,$D$6:$K$6,0))) -> 0.001254633255 | N31: 0.001254633255
B32: Broad Measure of Customer Satisfaction | C32: % | D32: 0.001508828174 | E32: 0.001995124147 | F32: 0.00270514475 | G32: 0.002240005352 | H32: 0.002385742487 | I32: 0.002883534242 | J32: 0.003279449907 | K32: 0.003327904446 | M32: =AVERAGE(D51:INDEX(D51:K51,0,MATCH('RFPR cover'!$C$7,$D$6:$K$6,0)))/AVERAGE($D$66:INDEX($D$66:$K$66,0,MATCH('RFPR cover'!$C$7,$D$6:$K$6,0))) -> 0.00251737226 | N32: 0.00251737226
B33: Shrinkage Allowance Revenue Adjustment | C33: % | D33: 0.0003363591638 | E33: 0.0003025109505 | F33: 0.0002917508564 | G33: 0.0002687213473 | H33: 0.0003099588914 | I33: 0.0004814183306 | J33: 0.0003007476395 | K33: 0.0008661415903 | M33: =AVERAGE(D52:INDEX(D52:K52,0,MATCH('RFPR cover'!$C$7,$D$6:$K$6,0)))/AVERAGE($D$66:INDEX($D$66:$K$66,0,MATCH('RFPR cover'!$C$7,$D$6:$K$6,0))) -> 0.0003929753625 | N33: 0.0003929753625
B34: Environment Emissions Incentive | C34: % | D34: 0.001101746757 | E34: 0.001353241948 | F34: 0.001702704586 | G34: 0.001609631608 | H34: 0.001516710674 | I34: 0.00221428821 | J34: 0.002747007345 | K34: 0.007600636705 | M34: =AVERAGE(D53:INDEX(D53:K53,0,MATCH('RFPR cover'!$C$7,$D$6:$K$6,0)))/AVERAGE($D$66:INDEX($D$66:$K$66,0,MATCH('RFPR cover'!$C$7,$D$6:$K$6,0))) -> 0.002448671127 | N34: 0.002448671127
B35: Discretionary Reward Scheme | C35: % | D35: 5.911912706e-05 | E35: 6.961882176e-05 | F35: 4.283342128e-05 | G35: 4.29537792e-05 | H35: 4.440269478e-05 | I35: 0 | J35: 0 | K35: 0 | M35: =AVERAGE(D54:INDEX(D54:K54,0,MATCH('RFPR cover'!$C$7,$D$6:$K$6,0)))/AVERAGE($D$66:INDEX($D$66:$K$66,0,MATCH('RFPR cover'!$C$7,$D$6:$K$6,0))) -> 3.309261819e-05 | N35: 3.309261819e-05
B36: NTS Exit Capacity | C36: % | D36: 0.0008269753604 | E36: 0.001545974745 | F36: 0.00522910346 | G36: 0.004188012333 | H36: 0.005071379627 | I36: 0.00488423231 | J36: 0.005103025594 | K36: 0.003717711743 | M36: =AVERAGE(D55:INDEX(D55:K55,0,MATCH('RFPR cover'!$C$7,$D$6:$K$6,0)))/AVERAGE($D$66:INDEX($D$66:$K$66,0,MATCH('RFPR cover'!$C$7,$D$6:$K$6,0))) -> 0.003764033508 | N36: 0.003764033508
B37: Network Innovation | C37: % | D37: -8.078578484e-05 | E37: -0.0002495091575 | F37: -0.0003609054638 | G37: -0.0004160938079 | H37: -0.0003530506707 | I37: -0.0002355610749 | J37: -0.0003850455728 | K37: -0.0003202851292 | M37: =AVERAGE(D56:INDEX(D56:K56,0,MATCH('RFPR cover'!$C$7,$D$6:$K$6,0)))/AVERAGE($D$66:INDEX($D$66:$K$66,0,MATCH('RFPR cover'!$C$7,$D$6:$K$6,0))) -> -0.0002963175985 | N37: -0.0002963175985
B38: =B57 -> Penalties and fines | C38: % | D38: -0.000671495359 | E38: -0.0007409653769 | F38: -0.0002502655267 | G38: -0.0003087438142 | H38: -0.0004580424192 | I38: -0.0008768707968 | J38: -0.0005500992661 | K38: -0.0002267174184 | M38: =AVERAGE(D57:INDEX(D57:K57,0,MATCH('RFPR cover'!$C$7,$D$6:$K$6,0)))/AVERAGE($D$66:INDEX($D$66:$K$66,0,MATCH('RFPR cover'!$C$7,$D$6:$K$6,0))) -> -0.000510693648 | N38: -0.000510693648
B39: =B58 -> RoRE - Operational performance | C39: % | D39: =SUM(D29:D38) -> 0.06995236049 | E39: 0.05397532173 | F39: 0.08593485901 | G39: 0.08747277693 | H39: 0.09532361884 | I39: 0.08817819084 | J39: 0.08798826162 | K39: 0.06523680915 | M39: =SUM(M29:M38) -> 0.07910934909 | N39: =SUM(N29:N38) -> 0.07910934909
B40: Debt performance - at actual gearing | C40: % | D40: =(D59+D60)/D$66 -> 0.02486734792 | E40: =(E59+E60)/E$66 -> -0.004574792997 | F40: 0.00762641791 | G40: 0.01726683887 | H40: 0.05242371139 | I40: 0.04040571897 | J40: 0.02386688788 | K40: 0.001488928316 | M40: =(AVERAGE(D59:INDEX(D59:K59,0,MATCH('RFPR cover'!$C$7,$D$6:$K$6,0)))+AVERAGE(D60:INDEX(D60:K60,0,MATCH('RFPR cover'!$C$7,$D$6:$K$6,0))))/AVERAGE($D$66:INDEX($D$66:$K$66,0,MATCH('RFPR cover'!$C$7,$D$6:$K$6,0))) -> 0.02041675404 | N40: =(AVERAGE(D59:K59)+AVERAGE(D60:K60))/AVERAGE($D$66:$K$66) -> 0.02041675404
B41: Tax performance - at actual gearing | C41: % | D41: =(D61+D62)/D$66 -> -0.00413920696 | E41: =(E61+E62)/E$66 -> -0.005776369676 | F41: -0.002341550278 | G41: -0.000897126018 | H41: 0.001386524717 | I41: 0.0008838674154 | J41: -0.00294422513 | K41: 0.003482149337 | M41: =(AVERAGE(D61:INDEX(D61:K61,0,MATCH('RFPR cover'!$C$7,$D$6:$K$6,0)))+AVERAGE(D62:INDEX(D62:K62,0,MATCH('RFPR cover'!$C$7,$D$6:$K$6,0))))/AVERAGE($D$66:INDEX($D$66:$K$66,0,MATCH('RFPR cover'!$C$7,$D$6:$K$6,0))) -> -0.001346925468 | N41: =(AVERAGE(D61:K61)+AVERAGE(D62:K62))/AVERAGE($D$66:$K$66) -> -0.001346925468
B42: =B63 -> RoRE - including financing and tax | C42: % | D42: =SUM(D39:D41) -> 0.09068050145 | E42: =SUM(E39:E41) -> 0.04362415905 | F42: 0.09121972664 | G42: 0.1038424898 | H42: 0.149133855 | I42: 0.1294677772 | J42: 0.1089109244 | K42: 0.0702078868 | M42: =SUM(M39:M41) -> 0.09817917766 | N42: =SUM(N39:N41) -> 0.09817917766
B45: RoRE input values
B46: ="Input values provided in "&'RFPR cover'!C14&" prices" -> Input values provided in £m 09/10 prices
B48: Equity Return on the RAV | C48: ='RFPR cover'!$C$14 -> £m 09/10 | D48: ='R9 - RAV'!D50 -> 39.86818395 | E48: ='R9 - RAV'!E50 -> 39.59740715 | F48: ='R9 - RAV'!F50 -> 39.57228745 | G48: ='R9 - RAV'!G50 -> 39.70183206 | H48: ='R9 - RAV'!H50 -> 39.76411949 | I48: ='R9 - RAV'!I50 -> 39.77477611 | J48: ='R9 - RAV'!J50 -> 39.92302943 | K48: ='R9 - RAV'!K50 -> 40.38079373 | M48: =SUM(D48:INDEX(D48:K48,0,MATCH('RFPR cover'!$C$7,$D$6:$K$6,0))) -> 318.5824294 | N48: =SUM(D48:K48) -> 318.5824294
B49: Totex outperformance | C49: ='RFPR cover'!$C$14 -> £m 09/10 | D49: ='R4 - Totex'!D35+'R4 - Totex'!D63 -> 9.106628834 | E49: ='R4 - Totex'!E35+'R4 - Totex'!E63 -> -8.971206963 | F49: ='R4 - Totex'!F35+'R4 - Totex'!F63 -> 10.22575108 | G49: ='R4 - Totex'!G35+'R4 - Totex'!G63 -> 12.10177519 | H49: ='R4 - Totex'!H35+'R4 - Totex'!H63 -> 14.73594764 | I49: ='R4 - Totex'!I35+'R4 - Totex'!I63 -> 9.024424728 | J49: ='R4 - Totex'!J35+'R4 - Totex'!J63 -> 7.544865834 | K49: ='R4 - Totex'!K35+'R4 - Totex'!K63 -> -9.002382206 | M49: =SUM(D49:INDEX(D49:K49,0,MATCH('RFPR cover'!$C$7,$D$6:$K$6,0))) -> 44.76580413 | N49: =SUM(D49:K49) -> 44.76580413
B50: IQI Reward | C50: ='RFPR cover'!$C$14 -> £m 09/10 | D50: ='R4 - Totex'!D79 -> 0.8388349084 | E50: ='R4 - Totex'!E79 -> 0.8120514237 | F50: ='R4 - Totex'!F79 -> 0.8053589715 | G50: ='R4 - Totex'!G79 -> 0.815388072 | H50: ='R4 - Totex'!H79 -> 0.8376599432 | I50: ='R4 - Totex'!I79 -> 0.8265435042 | J50: ='R4 - Totex'!J79 -> 0.8211569035 | K50: ='R4 - Totex'!K79 -> 0.8017424564 | M50: =SUM(D50:INDEX(D50:K50,0,MATCH('RFPR cover'!$C$7,$D$6:$K$6,0))) -> 6.558736183 | N50: =SUM(D50:K50) -> 6.558736183
B51: ='R5 - Output Incentives'!B39 -> Broad Measure of Customer Satisfaction | C51: ='RFPR cover'!$C$14 -> £m 09/10 | D51: ='R5 - Output Incentives'!D39 -> 1.12394829 | E51: ='R5 - Output Incentives'!E39 -> 1.262053642 | F51: ='R5 - Output Incentives'!F39 -> 1.787664663 | G51: ='R5 - Output Incentives'!G39 -> 1.476134691 | H51: ='R5 - Output Incentives'!H39 -> 1.520871593 | I51: ='R5 - Output Incentives'!I39 -> 1.81533309 | J51: ='R5 - Output Incentives'!J39 -> 2.043554489 | K51: ='R5 - Output Incentives'!K39 -> 2.130285626 | M51: =SUM(D51:INDEX(D51:K51,0,MATCH('RFPR cover'!$C$7,$D$6:$K$6,0))) -> 13.15984608 | N51: 13.15984608
B52: ='R5 - Output Incentives'!B40 -> Shrinkage Allowance Revenue Adjustment | C52: ='RFPR cover'!$C$14 -> £m 09/10 | D52: ='R5 - Output Incentives'!D40 -> 0.2505588862 | E52: ='R5 - Output Incentives'!E40 -> 0.1913590427 | F52: ='R5 - Output Incentives'!F40 -> 0.1928002915 | G52: ='R5 - Output Incentives'!G40 -> 0.1770839086 | H52: ='R5 - Output Incentives'!H40 -> 0.1975936948 | I52: ='R5 - Output Incentives'!I40 -> 0.3030775959 | J52: ='R5 - Output Incentives'!J40 -> 0.1874077075 | K52: ='R5 - Output Incentives'!K40 -> 0.5544416945 | M52: =SUM(D52:INDEX(D52:K52,0,MATCH('RFPR cover'!$C$7,$D$6:$K$6,0))) -> 2.054322822 | N52: 2.054322822
B53: ='R5 - Output Incentives'!B41 -> Environment Emissions Incentive | C53: ='RFPR cover'!$C$14 -> £m 09/10 | D53: ='R5 - Output Incentives'!D41 -> 0.820707357 | E53: ='R5 - Output Incentives'!E41 -> 0.8560188755 | F53: ='R5 - Output Incentives'!F41 -> 1.125213288 | G53: ='R5 - Output Incentives'!G41 -> 1.060726509 | H53: ='R5 - Output Incentives'!H41 -> 0.9668781063 | I53: ='R5 - Output Incentives'!I41 -> 1.394008297 | J53: ='R5 - Output Incentives'!J41 -> 1.711768544 | K53: ='R5 - Output Incentives'!K41 -> 4.86538222 | M53: =SUM(D53:INDEX(D53:K53,0,MATCH('RFPR cover'!$C$7,$D$6:$K$6,0))) -> 12.8007032 | N53: 12.8007032
B54: ='R5 - Output Incentives'!B42 -> Discretionary Reward Scheme | C54: ='RFPR cover'!$C$14 -> £m 09/10 | D54: ='R5 - Output Incentives'!D42 -> 0.0440387069 | E54: ='R5 - Output Incentives'!E42 -> 0.0440387069 | F54: ='R5 - Output Incentives'!F42 -> 0.02830598755 | G54: ='R5 - Output Incentives'!G42 -> 0.02830598755 | H54: ='R5 - Output Incentives'!H42 -> 0.02830598755 | I54: ='R5 - Output Incentives'!I42 -> 0 | J54: ='R5 - Output Incentives'!J42 -> 0 | K54: ='R5 - Output Incentives'!K42 -> 0 | M54: =SUM(D54:INDEX(D54:K54,0,MATCH('RFPR cover'!$C$7,$D$6:$K$6,0))) -> 0.1729953765 | N54: 0.1729953765
B55: ='R5 - Output Incentives'!B43 -> NTS Exit Capacity | C55: ='RFPR cover'!$C$14 -> £m 09/10 | D55: ='R5 - Output Incentives'!D43 -> 0.616026104 | E55: ='R5 - Output Incentives'!E43 -> 0.977935664 | F55: ='R5 - Output Incentives'!F43 -> 3.455594557 | G55: ='R5 - Output Incentives'!G43 -> 2.759846216 | H55: ='R5 - Output Incentives'!H43 -> 3.232921094 | I55: ='R5 - Output Incentives'!I43 -> 3.074875409 | J55: ='R5 - Output Incentives'!J43 -> 3.179896372 | K55: ='R5 - Output Incentives'!K43 -> 2.379812287 | M55: =SUM(D55:INDEX(D55:K55,0,MATCH('RFPR cover'!$C$7,$D$6:$K$6,0))) -> 19.6769077 | N55: 19.6769077
B56: Network Innovation | C56: ='RFPR cover'!$C$14 -> £m 09/10 | D56: =-'R6 - Innovation'!D28 -> -0.06017851882 | E56: =-'R6 - Innovation'!E28 -> -0.1578317527 | F56: =-'R6 - Innovation'!F28 -> -0.2385003406 | G56: =-'R6 - Innovation'!G28 -> -0.2742004631 | H56: =-'R6 - Innovation'!H28 -> -0.2250639953 | I56: =-'R6 - Innovation'!I28 -> -0.1482978103 | J56: =-'R6 - Innovation'!J28 -> -0.2399370721 | K56: =-'R6 - Innovation'!K28 -> -0.205023557 | M56: =SUM(D56:INDEX(D56:K56,0,MATCH('RFPR cover'!$C$7,$D$6:$K$6,0))) -> -1.54903351 | N56: -1.54903351
B57: Penalties and fines | C57: ='RFPR cover'!$C$14 -> £m 09/10 | D57: =-'R13 - Other Activities'!D8 -> -0.5002067651 | E57: =-'R13 - Other Activities'!E8 -> -0.4687117109 | F57: =-'R13 - Other Activities'!F8 -> -0.1653851752 | G57: =-'R13 - Other Activities'!G8 -> -0.2034581991 | H57: =-'R13 - Other Activities'!H8 -> -0.291994508 | I57: =-'R13 - Other Activities'!I8 -> -0.5520352593 | J57: =-'R13 - Other Activities'!J8 -> -0.3427885336 | K57: =-'R13 - Other Activities'!K8 -> -0.1451282227 | M57: =SUM(D57:INDEX(D57:K57,0,MATCH('RFPR cover'!$C$7,$D$6:$K$6,0))) -> -2.669708374 | N57: -2.669708374
B58: RoRE - Operational performance | C58: ='RFPR cover'!$C$14 -> £m 09/10 | D58: =SUM(D48:D57) -> 52.10854175 | E58: 34.14311408 | F58: 56.78909077 | G58: 57.64343396 | H58: 60.76723905 | I58: 55.51270566 | J58: 54.82895367 | K58: 41.75992403 | M58: =SUM(M48:M57) -> 413.553003 | N58: =SUM(N48:N57) -> 413.553003
B59: Debt performance - at notional gearing | C59: ='RFPR cover'!$C$14 -> £m 09/10 | D59: ='R7 - Financing'!D90+'R10 - Tax'!D91 -> 17.34364135 | E59: ='R7 - Financing'!E90+'R10 - Tax'!E91 -> -3.907845959 | F59: ='R7 - Financing'!F90+'R10 - Tax'!F91 -> 4.071125763 | G59: ='R7 - Financing'!G90+'R10 - Tax'!G91 -> 10.80942968 | H59: ='R7 - Financing'!H90+'R10 - Tax'!H91 -> 33.87553892 | I59: ='R7 - Financing'!I90+'R10 - Tax'!I91 -> 25.65114865 | J59: ='R7 - Financing'!J90+'R10 - Tax'!J91 -> 14.5513605 | K59: ='R7 - Financing'!K90+'R10 - Tax'!K91 -> 0.3798994175 | M59: =SUM(D59:INDEX(D59:K59,0,MATCH('RFPR cover'!$C$7,$D$6:$K$6,0))) -> 102.7742983 | N59: =SUM(D59:K59) -> 102.7742983
B60: Debt performance - impact of actual gearing | C60: ='RFPR cover'!$C$14 -> £m 09/10 | D60: ='R7 - Financing'!D92+'R10 - Tax'!D92 -> 1.180411709 | E60: ='R7 - Financing'!E92+'R10 - Tax'!E92 -> 1.013973831 | F60: ='R7 - Financing'!F92+'R10 - Tax'!F92 -> 0.9687072447 | G60: ='R7 - Financing'!G92+'R10 - Tax'!G92 -> 0.569194864 | H60: ='R7 - Financing'!H92+'R10 - Tax'!H92 -> -0.4562852183 | I60: ='R7 - Financing'!I92+'R10 - Tax'!I92 -> -0.2136707125 | J60: ='R7 - Financing'!J92+'R10 - Tax'!J92 -> 0.3210379974 | K60: ='R7 - Financing'!K92+'R10 - Tax'!K92 -> 0.5732056496 | M60: =SUM(D60:INDEX(D60:K60,0,MATCH('RFPR cover'!$C$7,$D$6:$K$6,0))) -> 3.956575364 | N60: =SUM(D60:K60) -> 3.956575364
B61: Tax performance - at notional gearing | C61: ='RFPR cover'!$C$14 -> £m 09/10 | D61: ='R10 - Tax'!D84-'R10 - Tax'!D91 -> -3.083356118 | E61: ='R10 - Tax'!E84-'R10 - Tax'!E91 -> -3.65395226 | F61: ='R10 - Tax'!F84-'R10 - Tax'!F91 -> -1.547387321 | G61: ='R10 - Tax'!G84-'R10 - Tax'!G91 -> -0.5911944972 | H61: ='R10 - Tax'!H84-'R10 - Tax'!H91 -> 0.8838867006 | I61: ='R10 - Tax'!I84-'R10 - Tax'!I91 -> 0.5564399906 | J61: ='R10 - Tax'!J84-'R10 - Tax'!J91 -> -1.834662718 | K61: ='R10 - Tax'!K84-'R10 - Tax'!K91 -> 2.229022137 | M61: =SUM(D61:INDEX(D61:K61,0,MATCH('RFPR cover'!$C$7,$D$6:$K$6,0))) -> -7.041204087 | N61: =SUM(D61:K61) -> -7.041204087
B62: Tax performance - impact of actual gearing | C62: ='RFPR cover'!$C$14 -> £m 09/10 | D62: ='R10 - Tax'!D86-'R10 - Tax'!D92 -> -2.664535259e-15 | E62: ='R10 - Tax'!E86-'R10 - Tax'!E92 -> 0 | F62: ='R10 - Tax'!F86-'R10 - Tax'!F92 -> 0 | G62: ='R10 - Tax'!G86-'R10 - Tax'!G92 -> 8.881784197e-16 | H62: ='R10 - Tax'!H86-'R10 - Tax'!H92 -> 0 | I62: ='R10 - Tax'!I86-'R10 - Tax'!I92 -> -4.440892099e-16 | J62: ='R10 - Tax'!J86-'R10 - Tax'!J92 -> 3.996802889e-15 | K62: ='R10 - Tax'!K86-'R10 - Tax'!K92 -> -2.664535259e-15 | M62: =SUM(D62:INDEX(D62:K62,0,MATCH('RFPR cover'!$C$7,$D$6:$K$6,0))) -> -8.881784197e-16 | N62: =SUM(D62:K62) -> -8.881784197e-16
B63: RoRE - including financing and tax | C63: ='RFPR cover'!$C$14 -> £m 09/10 | D63: =SUM(D58:D62) -> 67.5492387 | E63: =SUM(E58:E62) -> 27.59528969 | F63: 60.28153646 | G63: 68.43086401 | H63: 95.07037945 | I63: 81.50662359 | J63: 67.86668945 | K63: 44.94205123 | M63: =SUM(M58:M62) -> 513.2426726 | N63: =SUM(N58:N62) -> 513.2426726
B65: NPV-neutral equity element of RAV | C65: ='RFPR cover'!$C$14 -> £m 09/10 | D65: ='R9 - RAV'!D46 -> 595.0475217 | E65: ='R9 - RAV'!E46 -> 591.0060769 | F65: ='R9 - RAV'!F46 -> 590.631156 | G65: ='R9 - RAV'!G46 -> 592.5646575 | H65: ='R9 - RAV'!H46 -> 593.4943208 | I65: ='R9 - RAV'!I46 -> 593.6533747 | J65: ='R9 - RAV'!J46 -> 595.8661109 | K65: ='R9 - RAV'!K46 -> 602.6984139
B66: Equity RAV based on actual gearing | C66: ='RFPR cover'!$C$14 -> £m 09/10 | D66: ='R8 - Net Debt'!D62 -> 744.9147018 | E66: ='R8 - Net Debt'!E62 -> 632.5689776 | F66: ='R8 - Net Debt'!F62 -> 660.8388194 | G66: ='R8 - Net Debt'!G62 -> 658.987127 | H66: ='R8 - Net Debt'!H62 -> 637.4835512 | I66: ='R8 - Net Debt'!I62 -> 629.5514246 | J66: ='R8 - Net Debt'!J62 -> 623.1394127 | K66: ='R8 - Net Debt'!K62 -> 640.1282431

Sheet R2 - Revenue
A1: R2 - Revenue
A2: ='RFPR cover'!C5 -> Cadent-NW
A3: ='RFPR cover'!C7 -> 2021
D5: =IF(D6<='RFPR cover'!$C$7,"Actuals","Forecast") -> Actuals | E5: =IF(E6<='RFPR cover'!$C$7,"Actuals","Forecast") -> Actuals | F5: =IF(F6<='RFPR cover'!$C$7,"Actuals","Forecast") -> Actuals | G5: =IF(G6<='RFPR cover'!$C$7,"Actuals","Forecast") -> Actuals | H5: =IF(H6<='RFPR cover'!$C$7,"Actuals","Forecast") -> Actuals | I5: =IF(I6<='RFPR cover'!$C$7,"Actuals","Forecast") -> Actuals | J5: =IF(J6<='RFPR cover'!$C$7,"Actuals","Forecast") -> Actuals | K5: =IF(K6<='RFPR cover'!$C$7,"Actuals","Forecast") -> Actuals
D6: ='RFPR cover'!$C$13 -> 2014 | E6: =D6+1 -> 2015 | F6: =E6+1 -> 2016 | G6: 2017 | H6: 2018 | I6: 2019 | J6: 2020 | K6: 2021
B8: Allowed Revenue - per latest submitted Revenue Return
B10: Opening Base Revenue Allowance | C10: ='RFPR cover'!$C$14 -> £m 09/10 | D10: 381.7 | E10: 364.7 | F10: 367.6 | G10: 361.4 | H10: 363.1 | I10: 361.6 | J10: 361.3 | K10: 360.6
B11: MOD | C11: ='RFPR cover'!$C$14 -> £m 09/10 | D11: 0 | E11: -2.9 | F11: -8.6 | G11: 4.1 | H11: -15.4 | I11: -17 | J11: -25.5 | K11: -28.8
B12: True Up | C12: ='RFPR cover'!$C$14 -> £m 09/10 | D12: 0 | E12: 0 | F12: 1.30527732 | G12: -5.11358149 | H12: -7.8469409 | I12: -1.45414754 | J12: 0.9188891393 | K12: -0.28021351
B13: Retail Price Index Forecast (RPIF term) | C13: Index | D13: 1.163016333 | E13: 1.205083814 | F13: 1.226652821 | G13: 1.232733287 | H13: 1.270922538 | I13: 1.314024254 | J13: 1.358588448 | K13: 1.379839549
B14: Nominal Base Revenue | C14: £m nominal | D14: =SUM(D10:D12)*D13 -> 443.9233343 | E14: =SUM(E10:E12)*E13 -> 435.9993241 | F14: 441.9694849 | G14: 444.2603344 | H14: 431.9269125 | I14: 450.9019729 | J14: 457.4623929 | K14: 457.4441127
B15: Incentive revenue adjustment | C15: £m nominal | D15: ='R5 - Output Incentives'!D102 -> 0.22725563 | E15: ='R5 - Output Incentives'!E102 -> 0.20503508 | F15: ='R5 - Output Incentives'!F102 -> 4.16797777 | G15: ='R5 - Output Incentives'!G102 -> 5.18143822 | H15: ='R5 - Output Incentives'!H102 -> 10.44442264 | I15: ='R5 - Output Incentives'!I102 -> 8.91938698 | J15: ='R5 - Output Incentives'!J102 -> 10.19504256 | K15: ='R5 - Output Incentives'!K102 -> 11.25686037
B16: Adjustments for Allowed Pass-Through items | C16: £m nominal | D16: 0.06116563 | E16: 0.02194316 | F16: 0.77346934 | G16: 0.9406564 | H16: 3.72799552 | I16: 3.79127396 | J16: 15.68838279 | K16: 15.99202883
B17: Network Innovation Allowance | C17: £m nominal | D17: ='R6 - Innovation'!D12 -> 0.62811342 | E17: ='R6 - Innovation'!E12 -> 1.68974781 | F17: ='R6 - Innovation'!F12 -> 2.11056648 | G17: ='R6 - Innovation'!G12 -> 1.68075 | H17: ='R6 - Innovation'!H12 -> 1.62102838 | I17: ='R6 - Innovation'!I12 -> 1.072952709 | J17: ='R6 - Innovation'!J12 -> 1.343283909 | K17: ='R6 - Innovation'!K12 -> 1.737
B18: Low Carbon Networks Fund revenue adjustment | C18: £m nominal | D18: ='R6 - Innovation'!D17 -> 0 | E18: ='R6 - Innovation'!E17 -> 0 | F18: ='R6 - Innovation'!F17 -> 0 | G18: ='R6 - Innovation'!G17 -> 0 | H18: ='R6 - Innovation'!H17 -> 0 | I18: ='R6 - Innovation'!I17 -> 0 | J18: ='R6 - Innovation'!J17 -> 0 | K18: ='R6 - Innovation'!K17 -> 0
B19: NTS Exit Capacity Cost Adjustment | C19: £m nominal | D19: 0 | E19: 0 | F19: -0.23242239 | G19: 2.40600263 | H19: 0.12395539 | I19: -1.15783366 | J19: -1.69768079 | K19: -7.81012396
B20: Shrinkage Cost Adjustment | C20: £m nominal | D20: 0 | E20: 0 | F20: -2.25404052 | G20: -4.8019539 | H20: -6.27894273 | I20: -3.08324759 | J20: -2.27577574 | K20: -1.16261611
B21: [Input description] | C21: £m nominal | D21: 0 | E21: 0 | F21: 0 | G21: 0 | H21: 0 | I21: 0 | J21: 0 | K21: 0
B22: [Input description] | C22: £m nominal | D22: 0 | E22: 0 | F22: 0 | G22: 0 | H22: 0 | I22: 0 | J22: 0 | K22: 0
B23: [Input description] | C23: £m nominal | D23: 0 | E23: 0 | F23: 0 | G23: 0 | H23: 0 | I23: 0 | J23: 0 | K23: 0
B24: [Input description] | C24: £m nominal | D24: 0 | E24: 0 | F24: 0 | G24: 0 | H24: 0 | I24: 0 | J24: 0 | K24: 0
B25: Correction factor | C25: £m nominal | D25: -14.50206803 | E25: 0 | F25: -6.36720374 | G25: -3.23786911 | H25: 7.54977317 | I25: 7.80582612 | J25: 0.6389991 | K25: 1.21791431
B26: Allowed Network Revenue | C26: £m nominal | D26: =SUM(D14:D24,-D25) -> 459.341937 | E26: =SUM(E14:E24,-E25) -> 437.9160501 | F26: 452.9022394 | G26: 452.9050969 | H26: 434.0155985 | I26: 452.6386792 | J26: 480.0766465 | K26: 476.2393475
B28: (Under) / Over recovery | D28: =IF(ISBLANK(D33),0,D33-D26) -> -6.11995746 | E28: =IF(ISBLANK(E33),0,E33-E26) -> -3.112138711 | F28: 7.268271041 | G28: 7.525692349 | H28: 0.6140843377 | I28: 1.122361605 | J28: 0.7758863529 | K28: -1.987855075
B31: Reconciliation: Regulated Network Revenue to Accounts
B33: Collected Regulated Network Revenue | D33: 453.2219796 | E33: 434.8039114 | F33: 460.1705104 | G33: 460.4307892 | H33: 434.6296828 | I33: 453.7610408 | J33: 480.8525329 | K33: 474.2514925
B35: Other Turnover Items
B36: Network Innovation Competition (NIC) payments received from SO | C36: £m nominal | D36: 0 | E36: 0 | F36: 0 | G36: 0 | H36: 0 | I36: 0 | J36: 0 | K36: 0
B37: Legacy Metering Equipment charges | C37: £m nominal | D37: 0 | E37: 0 | F37: 0 | G37: 0 | H37: 0 | I37: 0 | J37: 0 | K37: 0
B38: Directly Remunerated Services revenue | C38: £m nominal | D38: 0 | E38: 0 | F38: 0 | G38: 0 | H38: 0 | I38: 0 | J38: 0 | K38: 0
B39: Network Asset Secondary Deliverables incentive/penalty | C39: £m nominal | D39: 0 | E39: 0 | F39: 0 | G39: 0 | H39: 0 | I39: 0 | J39: 0 | K39: 0
B40: Charging outside the Distribution Services Area (Out of Area Charges) | C40: £m nominal | D40: 0 | E40: 0 | F40: 0 | G40: 0 | H40: 0 | I40: 0 | J40: 0 | K40: 0
B41: De Minimis Business of the licensee | C41: £m nominal | D41: 0.3046568013 | E41: 1.142229686 | F41: 1.033176796 | G41: 3.492654597 | H41: 1.885966209 | I41: 1.815577181 | J41: 1.298114582 | K41: 0.8012142798
B42: Other consented activities | C42: £m nominal | D42: 0 | E42: 0 | F42: 0 | G42: 0 | H42: 0 | I42: 0 | J42: 0 | K42: 0
B43: Data Services revenue | C43: £m nominal | D43: 0 | E43: 0 | F43: 0 | G43: 0 | H43: 0 | I43: 0 | J43: 0 | K43: 0
B44: [Input description, add additional rows as required] | C44: £m nominal | D44: 0 | E44: 0 | F44: 0 | G44: 0 | H44: 0 | I44: 0 | J44: 0 | K44: 0
B45: Total Other Turnover Items | C45: £m nominal | D45: =SUM(D36:D44) -> 0.3046568013 | E45: =SUM(E36:E44) -> 1.142229686 | F45: 1.033176796 | G45: 3.492654597 | H45: 1.885966209 | I45: 1.815577181 | J45: 1.298114582 | K45: 0.8012142798
B47: Other adjustments - please list
B48: Excluded Services (Inc. Customer Contributions) | C48: £m nominal | D48: 3.633838483 | E48: 2.441157207 | F48: 3.054212404 | G48: 3.623867553 | H48: 3.702853853 | I48: 2.902527652 | J48: 3.225770857 | K48: 2.96353497
B49: Meter Reading and metering | C49: £m nominal | D49: 10.88573605 | E49: 8.838333572 | F49: 7.493146536 | G49: 3.858871532 | H49: 3.54587022 | I49: 3.53634931 | J49: 3.5100747 | K49: 0.7047679
B50: Services provided under consents | C50: £m nominal | D50: 2.084082604 | E50: 2.528658793 | F50: 2.296154702 | G50: 2.152803008 | H50: 0.8875466539 | I50: 1.085851839 | J50: 1.079899619 | K50: 1.108962559
B51: Other transportation Revenue | C51: £m nominal | D51: 0 | E51: 0 | F51: 0 | G51: 0.05890544538 | H51: -0.05890544538 | I51: 0.1141733807 | J51: 0.1071794935 | K51: 0
B52: Customer contributions | C52: £m nominal | D52: 0 | E52: 0.416288 | F52: 0 | G52: 0 | H52: 0 | I52: 0 | J52: 0 | K52: 0
B53: Xoserve | C53: £m nominal | D53: 18.21307234 | E53: 19.35117626 | F53: 18.51316837 | G53: 0 | H53: 0 | I53: 0 | J53: 0 | K53: 0
B54: Elimination of Inter Group/Business Trading | C54: £m nominal | D54: -45.70734259 | E54: -36.43455694 | F54: -27.3579207 | G54: 0 | H54: 0 | I54: 0 | J54: 0 | K54: 0
B55: Revenue classified as expenditure | C55: £m nominal | D55: 0 | E55: 0 | F55: 0 | G55: 1.69815805 | H55: 0 | I55: 0 | J55: 0 | K55: 0
B56: Other three network revenues | C56: £m nominal | D56: 1427.045186 | E56: 1415.096684 | F56: 1445.470221 | G56: 1411.805968 | H56: 1407.263429 | I56: 1523.651464 | J56: 1605.859414 | K56: 1594.795168
B57: Metering | C57: £m nominal | D57: 321 | E57: 309 | F57: 300 | G57: 0 | H57: 0 | I57: 0 | J57: 0 | K57: 0
B58: IFRS 15 Contribution released | C58: £m nominal | D58: 0 | E58: 0 | F58: 0 | G58: 0 | H58: 0 | I58: 7.84502198 | J58: 17.31734693 | K58: 1.0008082
B59: [Input description] | C59: £m nominal | D59: 0 | E59: 0 | F59: 0 | G59: 0 | H59: 0 | I59: 0 | J59: 0 | K59: 0
B60: [Input description] | C60: £m nominal | D60: 0 | E60: 0 | F60: 0 | G60: 0 | H60: 0 | I60: 0 | J60: 0 | K60: 0
B61: [Input description] | C61: £m nominal | D61: 0 | E61: 0 | F61: 0 | G61: 0 | H61: 0 | I61: 0 | J61: 0 | K61: 0
B62: [Input description] | C62: £m nominal | D62: 0 | E62: 0 | F62: 0 | G62: 0 | H62: 0 | I62: 0 | J62: 0 | K62: 0
B63: Roundings | C63: £m nominal | D63: 0.2727048372 | E63: 0.7733060338 | F63: 0.2964935448 | G63: -0.1510881659 | H63: 0.09604761765 | I63: 0.28799428 | J63: 1.749667023 | K63: -0.6259486
B64: Total other adjustments | C64: £m nominal | D64: =SUM(D48:D63) -> 1737.427277 | E64: 1722.011047 | F64: 1749.765476 | G64: 1423.047485 | H64: 1415.436842 | I64: 1539.423382 | J64: 1632.849353 | K64: 1599.947293
B66: Reconciled total revenue | C66: £m nominal | D66: =D33+D45+D64 -> 2190.953914 | E66: 2157.957188 | F66: 2210.969164 | G66: 1886.970929 | H66: 1851.952491 | I66: 1995 | J66: 2115 | K66: 2075
B67: Turnover as per Profit and Loss (Accounts) | C67: £m nominal | D67: 2191 | E67: 2158 | F67: 2211 | G67: 1887 | H67: 1852 | I67: 1995 | J67: 2115 | K67: 2075
B68: Check | D68: =IF(ABS(D66-D67)<'RFPR cover'!$F$14,"OK","Error") -> OK | E68: =IF(ABS(E66-E67)<'RFPR cover'!$F$14,"OK","Error") -> OK | F68: =IF(ABS(F66-F67)<'RFPR cover'!$F$14,"OK","Error") -> OK | G68: =IF(ABS(G66-G67)<'RFPR cover'!$F$14,"OK","Error") -> OK | H68: =IF(ABS(H66-H67)<'RFPR cover'!$F$14,"OK","Error") -> OK | I68: =IF(ABS(I66-I67)<'RFPR cover'!$F$14,"OK","Error") -> OK | J68: =IF(ABS(J66-J67)<'RFPR cover'!$F$14,"OK","Error") -> OK | K68: =IF(ABS(K66-K67)<'RFPR cover'!$F$14,"OK","Error") -> OK

Sheet R3 - Rec to totex
A1: R3 - Reconciliation to totex
A2: ='RFPR cover'!C5 -> Cadent-NW
A3: ='RFPR cover'!C7 -> 2021
D5: =IF(D6<='RFPR cover'!$C$7,"Actuals","N/A") -> Actuals | E5: =IF(E6<='RFPR cover'!$C$7,"Actuals","N/A") -> Actuals | F5: =IF(F6<='RFPR cover'!$C$7,"Actuals","N/A") -> Actuals | G5: =IF(G6<='RFPR cover'!$C$7,"Actuals","N/A") -> Actuals | H5: =IF(H6<='RFPR cover'!$C$7,"Actuals","N/A") -> Actuals | I5: =IF(I6<='RFPR cover'!$C$7,"Actuals","N/A") -> Actuals | J5: =IF(J6<='RFPR cover'!$C$7,"Actuals","N/A") -> Actuals | K5: =IF(K6<='RFPR cover'!$C$7,"Actuals","N/A") -> Actuals
D6: ='RFPR cover'!$C$13 -> 2014 | E6: =D6+1 -> 2015 | F6: =E6+1 -> 2016 | G6: 2017 | H6: 2018 | I6: 2019 | J6: 2020 | K6: 2021
B8: Total Expenditure Per Accounts
B9: Tangible Fixed Asset Additions | C9: £m nominal | D9: 509 | E9: 520 | F9: 581 | G9: 549 | H9: 610 | I9: 706 | J9: 815 | K9: 995
B10: Intangible Asset Additions (under IFRS) - IT Software | C10: £m nominal | D10: 35 | E10: 40 | F10: 24 | G10: 11 | H10: 2 | I10: 30 | J10: 46 | K10: 34
B11: Disposals (cash proceeds) [If Statutory Accounts treat this as an exceptional item, leave the input blank] | C11: £m nominal | D11: 0 | E11: 0 | F11: 0 | G11: 0 | H11: 0 | I11: -2 | J11: -1 | K11: 0
B12: Customer Contributions Additions | C12: £m nominal | D12: -21.08830086 | E12: -20.50484706 | F12: -22.98658171 | G12: -39.2042886 | H12: -59 | I12: -109 | J12: -94 | K12: -85
B13: Capitalised interest | C13: £m nominal | D13: -2 | E13: -2 | F13: 0 | G13: -1 | H13: 0 | I13: 0 | J13: 0 | K13: 0
B14: Revaluation of tangible fixed assets | C14: £m nominal | D14: 0 | E14: 0 | F14: 0 | G14: 0 | H14: 0 | I14: 0 | J14: 0 | K14: 0
A15: 1 | B15: [Input description] | C15: £m nominal | D15: 0 | E15: 0 | F15: 0 | G15: 0 | H15: 0 | I15: 0 | J15: 0 | K15: 0
A16: 2 | B16: [Input description] | C16: £m nominal | D16: 0 | E16: 0 | F16: 0 | G16: 0 | H16: 0 | I16: 0 | J16: 0 | K16: 0
A17: 3 | B17: [Input description] | C17: £m nominal | D17: 0 | E17: 0 | F17: 0 | G17: 0 | H17: 0 | I17: 0 | J17: 0 | K17: 0
B18: Capex Incurred | C18: £m nominal | D18: =SUM(D9:D17) -> 520.9116991 | E18: =SUM(E9:E17) -> 537.4951529 | F18: 582.0134183 | G18: 519.7957114 | H18: 553 | I18: 625 | J18: 766 | K18: 944
B19: Operational Costs Incurred | C19: £m nominal | D19: 1187 | E19: 1153 | F19: 1178 | G19: 1129 | H19: 1128 | I19: 1182 | J19: 1191 | K19: 1174
A20: 1 | B20: [Input description] | C20: £m nominal | D20: 0 | E20: 0 | F20: 0 | G20: 0 | H20: 0 | I20: 0 | J20: 0 | K20: 0
A21: 2 | B21: [Input description] | C21: £m nominal | D21: 0 | E21: 0 | F21: 0 | G21: 0 | H21: 0 | I21: 0 | J21: 0 | K21: 0
A22: 3 | B22: [Input description] | C22: £m nominal | D22: 0 | E22: 0 | F22: 0 | G22: 0 | H22: 0 | I22: 0 | J22: 0 | K22: 0
B23: Total Expenditure Incurred | C23: £m nominal | D23: =SUM(D18:D22) -> 1707.911699 | E23: =SUM(E18:E22) -> 1690.495153 | F23: 1760.013418 | G23: 1648.795711 | H23: 1681 | I23: 1807 | J23: 1957 | K23: 2118
B25: Reconciling Items to Total Net costs after non-price control allocations | C25: £m nominal
A26: 1 | B26: Total expenditure relating to excluded services (deminimis, excluded, consented and meter reading) | C26: £m nominal | D26: -88.77479166 | E26: -86.64717082 | F26: -66.48738517 | G26: -42.34823526 | H26: -33 | I26: -31.2133087 | J26: -29.4 | K26: -13.51016604
A27: 2 | B27: Depreciation & amortisation of Intangibles | C27: £m nominal | D27: -271 | E27: -287 | F27: -298 | G27: -309 | H27: -305 | I27: -319 | J27: -343 | K27: -376
A28: 3 | B28: Customer Contribution Amortisation | C28: £m nominal | D28: 21.10836141 | E28: 21.59868519 | F28: 22.23225969 | G28: 22.23225969 | H28: 20.73451775 | I28: 0 | J28: 0 | K28: 0
A29: 4 | B29: Total expenditure relating to Metering business | C29: £m nominal | D29: -215 | E29: -199 | F29: -179 | G29: 0 | H29: 0 | I29: 0 | J29: 0 | K29: 0
A30: 5 | B30: Inter business unit charging elimination | C30: £m nominal | D30: 45.70734259 | E30: 36.43455694 | F30: 27.3579207 | G30: 0 | H30: 0 | I30: 0 | J30: 0 | K30: 0
A31: 6 | B31: Profit / (Loss) on disposal | C31: £m nominal | D31: 83 | E31: 40 | F31: 0 | G31: -11 | H31: 0.4511035798 | I31: 2 | J31: 3 | K31: 1
A32: 7 | B32: Cadent Total GSOP Payments | C32: £m nominal | D32: -1.802924563 | E32: -2.269957382 | F32: -2.87115647 | G32: -3.112271917 | H32: -2.916930748 | I32: -3.31741929 | J32: -5 | K32: -2.35883085
A33: 8 | B33: Network Innovation Competition Costs | C33: £m nominal | D33: 0 | E33: 0 | F33: 0 | G33: -0.03567741 | H33: -1.06975698 | I33: -0.72411407 | J33: -1 | K33: 0.28220298
A34: 9 | B34: Supplier of Last Resort (SoLR) | C34: £m nominal | D34: 0 | E34: 0 | F34: 0 | G34: 0 | H34: 0 | I34: -3.18509389 | J34: -3.1 | K34: -3.94609369
A35: 10 | B35: Cash typical adjustments (provision movements) | C35: £m nominal | D35: -30 | E35: -1 | F35: 0 | G35: -15 | H35: -1 | I35: -6 | J35: -39 | K35: 8.65084533
A36: 11 | B36: Atypical items - Separation expenditure (Opex) | C36: £m nominal | D36: 0 | E36: 0 | F36: 0 | G36: -4.91904316 | H36: -21.22645788 | I36: -17.52971129 | J36: -19 | K36: -7
A37: 12 | B37: Atypical items - Separation expenditure (Capex) | C37: £m nominal | D37: 0 | E37: 0 | F37: 0 | G37: 0 | H37: 0 | I37: 0 | J37: -5.92985427 | K37: -2.2169228
A38: 13 | B38: Atypical Items - Grenfell investigation | C38: £m nominal | D38: 0 | E38: 0 | F38: 0 | G38: 0 | H38: -1.35563067 | I38: -1.09242274 | J38: 0.73110853 | K38: -0.23005095
A39: 14 | B39: Atypical Items - Energy Savings Trust contributions | C39: £m nominal | D39: 0 | E39: 0 | F39: 0 | G39: 0 | H39: 0 | I39: -8.9 | J39: 0 | K39: 0
A40: 15 | B40: Atypical Items - HRB recovery programme costs | C40: £m nominal | D40: 0 | E40: 0 | F40: 0 | G40: 0 | H40: 0 | I40: -3.67517683 | J40: -0.08331893 | K40: 0
A41: 16 | B41: Atypical Items - Guaranteed minimum pensions payments | C41: £m nominal | D41: 0 | E41: 0 | F41: 0 | G41: 0 | H41: 0 | I41: -14 | J41: 0 | K41: -0.7
A42: 17 | B42: Atypical Items - Service transformation costs | C42: £m nominal | D42: 0 | E42: 0 | F42: 0 | G42: 0 | H42: 0 | I42: -0.61276066 | J42: 0 | K42: 0
A43: 18 | B43: Atypical Items - Donation to National Energy Action | C43: £m nominal | D43: 0 | E43: 0 | F43: -3 | G43: 0 | H43: 0 | I43: 0 | J43: 0 | K43: 0
A44: 19 | B44: Atypical items - Legal fines and penalties | C44: £m nominal | D44: 0 | E44: 0 | F44: -3 | G44: 0 | H44: 0 | I44: 0 | J44: 0 | K44: 0
A45: 20 | B45: Atypical Items - Enhanced GSOP payments | C45: £m nominal | D45: 0 | E45: 0 | F45: 0 | G45: 0 | H45: -1.33857 | I45: 0 | J45: 0 | K45: 0
A46: 21 | B46: Atypical Items - Establishment of a Community Fund | C46: £m nominal | D46: 0 | E46: 0 | F46: 0 | G46: 0 | H46: 0 | I46: -4.123628 | J46: -5.691342 | K46: -8.48665578
A47: 22 | B47: IFRS 16 Impact | C47: £m nominal | D47: 0 | E47: 0 | F47: 0 | G47: 0 | H47: 0 | I47: 0 | J47: 4.03311072 | K47: 8
A48: 23 | B48: Total expenditure relating to other three networks | C48: £m nominal | D48: -934.5872914 | E48: -900.0139136 | F48: -945.970614 | G48: -985.8742795 | H48: -1019.507787 | I48: -1074.687088 | J48: -1153.516237 | K48: -1315.062385
A49: 24 | B49: Connections Income (including Biogas connections income) | C49: £m nominal | D49: -1.172058393 | E49: -1.254224328 | F49: -1.272481709 | G49: -2.478764926 | H49: -2.268307311 | I49: -2.102146728 | J49: -2.2 | K49: -2.0879968
A50: 25 | B50: Ongoing Pension Costs Accrued under IAS 19 (-ve) | C50: £m nominal | D50: 1.037338131 | E50: 0.1762399757 | F50: -0.3985237105 | G50: -1.359075756 | H50: -2.304377096 | I50: 3.124482977 | J50: 0.0008271491415 | K50: 0.0247233
A51: 26 | B51: Incremental pension deficit funding | C51: £m nominal | D51: 0 | E51: 0 | F51: 0 | G51: 0 | H51: 0.285924778 | I51: 0.299289463 | J51: 0.4417963789 | K51: -0.07609599154
A52: 27 | B52: Established pension deficit recovery plan payment | C52: £m nominal | D52: 0 | E52: 0 | F52: 0 | G52: 0 | H52: 9.156668189 | I52: 9.72969229 | J52: 13.75296754 | K52: 0.2769865371
A53: 28 | B53: A grossing up of costs and revenue in the regulatory accounts | C53: £m nominal | D53: 0 | E53: 0 | F53: 0 | G53: -1.772266718 | H53: 0 | I53: 0 | J53: 0 | K53: 0
A54: 29 | B54: Adjustment for efficient level of fines | C54: £m nominal | D54: -0.7176514357 | E54: 0 | F54: 0 | G54: 0 | H54: 0 | I54: 0 | J54: 0 | K54: 0
A55: 30 | B55: Cash typical adjustments (Utilisation) | C55: £m nominal | D55: -11.50469214 | E55: 32.73272025 | F55: 6.35019111 | G55: 2.033939762 | H55: 1.172190612 | I55: 1.203097263 | J55: 4.262744103 | K55: 1.736189469
A56: 31 | B56: Cumulative impact of rounding in reg accounts | C56: £m nominal | D56: -0.3169925486 | E56: 0.7675186447 | F56: 0.8626533926 | G56: -0.3518093422 | H56: -0.0834663366 | I56: 1.382949271 | J56: 1.324651379 | K56: 0.7502145915
A57: 32 | B57: 0 | C57: £m nominal | D57: 0 | E57: 0 | F57: 0 | G57: 0 | H57: 0 | I57: 0 | J57: 0 | K57: 0
A58: 33 | B58: 0 | C58: £m nominal | D58: 0 | E58: 0 | F58: 0 | G58: 0 | H58: 0 | I58: 0 | J58: 0 | K58: 0
A59: 34 | B59: 0 | C59: £m nominal | D59: 0 | E59: 0 | F59: 0 | G59: 0 | H59: 0 | I59: 0 | J59: 0 | K59: 0
A60: 35 | B60: 0 | C60: £m nominal | D60: 0 | E60: 0 | F60: 0 | G60: 0 | H60: 0 | I60: 0 | J60: 0 | K60: 0
B61: Total Reconciling Items | C61: £m nominal | D61: =SUM(D26:D60) -> -1404.02336 | E61: =SUM(E26:E60) -> -1345.475545 | F61: -1443.197136 | G61: -1352.985225 | H61: -1359.270879 | I61: -1472.423359 | J61: -1579.373547 | K61: -1710.954036
B63: Total Net costs after non-price control allocations | C63: £m nominal | D63: =D61+D23 -> 303.8883391 | E63: =E61+E23 -> 345.0196078 | F63: 316.8162821 | G63: 295.8104869 | H63: 321.7291211 | I63: 334.5766414 | J63: 377.6264532 | K63: 407.0459641
B64: Total Costs per latest RRP submission | C64: £m nominal | D64: 303.9291094 | E64: 345.0689127 | F64: 316.8514311 | G64: 295.7876562 | H64: 321.7407047 | I64: 334.5766414 | J64: 377.6264532 | K64: 407.0459641
C65: check | D65: =IF(D$5="Actuals",IF(ABS(D63-D64)<1,"OK","ERROR"),"N/A") -> OK | E65: =IF(E$5="Actuals",IF(ABS(E63-E64)<1,"OK","ERROR"),"N/A") -> OK | F65: OK | G65: OK | H65: OK | I65: OK | J65: OK | K65: OK
B67: Reconciling Items to Totex
A68: 1 | B68: Shrinkage | C68: £m nominal | D68: 8.25072035 | E68: 6.18308734 | F68: 4.38837132 | G68: 4.421819696 | H68: 5.213927307 | I68: 6.422942575 | J68: 3.00420959 | K68: 3.08176826
A69: 2 | B69: Ofgem Licence | C69: £m nominal | D69: 1.52 | E69: 1.623924988 | F69: 1.637695825 | G69: 1.381511421 | H69: 1.78544266 | I69: 1.855004928 | J69: 2.0517948 | K69: 2.05403137
A70: 3 | B70: Network Rates | C70: £m nominal | D70: 31.382 | E70: 32.11313248 | F70: 32.84376522 | G70: 33.15611442 | H70: 47.44236388 | I70: 48.6991809 | J70: 49.785775 | K70: 50.5760256
A71: 4 | B71: Established pension deficit recovery plan payment | C71: £m nominal | D71: 1.805 | E71: 3.17 | F71: 3.184482112 | G71: 3.239591412 | H71: 9.131494216 | I71: 9.72969229 | J71: 13.75296754 | K71: 0.2769865371
A72: 5 | B72: PPF levy costs | C72: £m nominal | D72: 0.022 | E72: 0.188 | F72: 0.01456685634 | G72: 0.01556826898 | H72: 0.0251739732 | I72: 0.04070279174 | J72: 0.05927650921 | K72: 0.0397045152
A73: 6 | B73: Pension scheme administration costs | C73: £m nominal | D73: 0.154 | E73: 0.163 | F73: 0.1629665769 | G73: 0.1631402463 | H73: 0.7501362103 | I73: 0.8626335071 | J73: 1.409107127 | K73: 0.8727863364
A74: 7 | B74: NTS Pension Recharge | C74: £m nominal | D74: 5.17 | E74: 5.302317088 | F74: 7.435732116 | G74: 7.474330804 | H74: 4.876722718 | I74: 5.040588 | J74: 0 | K74: 0
A75: 8 | B75: Bad debt | C75: £m nominal | D75: -0.002819151834 | E75: 0.150961312 | F75: -0.49752165 | G75: 0.2477169362 | H75: 0.5780943087 | I75: 0.02433685096 | J75: -0.0301938857 | K75: 0.4809431
A76: 9 | B76: NTS exit costs | C76: £m nominal | D76: 36.314 | E76: 39.40609172 | F76: 37.92693852 | G76: 37.34042275 | H76: 38.46022292 | I76: 34.1922361 | J76: 36.11106916 | K76: 37.54435901
A77: 10 | B77: Network Innovation (ex IRM) | C77: £m nominal | D77: 0.697528013 | E77: 2.012508559 | F77: 2.167646759 | G77: 1.871289564 | H77: 1.804325058 | I77: 1.192169677 | J77: 1.492537677 | K77: 1.93
A78: 11 | B78: Innovation Roll-out expenditure (IRM) | C78: £m nominal | D78: 0 | E78: 0 | F78: 0 | G78: 0 | H78: 0 | I78: 0 | J78: 0 | K78: 0
A79: 12 | B79: Unfunded Network Innovation | C79: £m nominal | D79: 0 | E79: 0.002678945 | F79: 0 | G79: 0.2410255365 | H79: 0.1674368887 | I79: 0.1670098458 | J79: 0.3413087172 | K79: -0.053161375
A80: 13 | B80: SIU Gas Cost Price Differential | C80: £m nominal | D80: 0 | E80: 0 | F80: 0 | G80: 0.0008982225 | H80: 0.00015525 | I80: 0 | J80: 0 | K80: 0
A81: 14 | B81: [Input description] | C81: £m nominal | D81: 0 | E81: 0 | F81: 0 | G81: 0 | H81: 0 | I81: 0 | J81: 0 | K81: 0
A82: 15 | B82: [Input description] | C82: £m nominal | D82: 0 | E82: 0 | F82: 0 | G82: 0 | H82: 0 | I82: 0 | J82: 0 | K82: 0
A83: 16 | B83: [Input description] | C83: £m nominal | D83: 0 | E83: 0 | F83: 0 | G83: 0 | H83: 0 | I83: 0 | J83: 0 | K83: 0
A84: 17 | B84: [Input description] | C84: £m nominal | D84: 0 | E84: 0 | F84: 0 | G84: 0 | H84: 0 | I84: 0 | J84: 0 | K84: 0
A85: 18 | B85: [Input description] | C85: £m nominal | D85: 0 | E85: 0 | F85: 0 | G85: 0 | H85: 0 | I85: 0 | J85: 0 | K85: 0
A86: 19 | B86: [Input description] | C86: £m nominal | D86: 0 | E86: 0 | F86: 0 | G86: 0 | H86: 0 | I86: 0 | J86: 0 | K86: 0
A87: 20 | B87: [Input description] | C87: £m nominal | D87: 0 | E87: 0 | F87: 0 | G87: 0 | H87: 0 | I87: 0 | J87: 0 | K87: 0
A88: 21 | B88: [Input description] | C88: £m nominal | D88: 0 | E88: 0 | F88: 0 | G88: 0 | H88: 0 | I88: 0 | J88: 0 | K88: 0
A89: 22 | B89: [Input description] | C89: £m nominal | D89: 0 | E89: 0 | F89: 0 | G89: 0 | H89: 0 | I89: 0 | J89: 0 | K89: 0
A90: 23 | B90: [Input description] | C90: £m nominal | D90: 0 | E90: 0 | F90: 0 | G90: 0 | H90: 0 | I90: 0 | J90: 0 | K90: 0
A91: 24 | B91: [Input description] | C91: £m nominal | D91: 0 | E91: 0 | F91: 0 | G91: 0 | H91: 0 | I91: 0 | J91: 0 | K91: 0
A92: 25 | B92: [Input description] | C92: £m nominal | D92: 0 | E92: 0 | F92: 0 | G92: 0 | H92: 0 | I92: 0 | J92: 0 | K92: 0
B93: Total reconciling items not recognised in totex | C93: £m nominal | D93: =SUM(D68:D92) -> 85.31242921 | E93: =SUM(E68:E92) -> 90.31570243 | F93: 89.26464366 | G93: 89.55342928 | H93: 110.2354954 | I93: 108.2264975 | J93: 107.9778522 | K93: 96.80344335
B95: PCFM Totex (excluding enduring value) | C95: £m nominal | D95: =D63-D93 -> 218.5759099 | E95: =E63-E93 -> 254.7039054 | F95: 227.5516385 | G95: 206.2570576 | H95: 211.4936257 | I95: 226.3501439 | J95: 269.648601 | K95: 310.2425207
B96: RRP reported totex | C96: £m nominal | D96: ='R4 - Totex'!D90+'R4 - Totex'!D118 -> 218.5761725 | E96: ='R4 - Totex'!E90+'R4 - Totex'!E118 -> 254.7032626 | F96: ='R4 - Totex'!F90+'R4 - Totex'!F118 -> 227.5519317 | G96: ='R4 - Totex'!G90+'R4 - Totex'!G118 -> 206.2570576 | H96: ='R4 - Totex'!H90+'R4 - Totex'!H118 -> 211.4998475 | I96: ='R4 - Totex'!I90+'R4 - Totex'!I118 -> 226.3501439 | J96: ='R4 - Totex'!J90+'R4 - Totex'!J118 -> 269.6199 | K96: ='R4 - Totex'!K90+'R4 - Totex'!K118 -> 310.2425207
C97: check | D97: =IF(D$5="Actuals",IF(ABS(D95-('R4 - Totex'!D90+'R4 - Totex'!D118))<'RFPR cover'!$F$14,"OK","Error"),"N/A") -> OK | E97: =IF(E$5="Actuals",IF(ABS(E95-('R4 - Totex'!E90+'R4 - Totex'!E118))<'RFPR cover'!$F$14,"OK","Error"),"N/A") -> OK | F97: =IF(F$5="Actuals",IF(ABS(F95-('R4 - Totex'!F90+'R4 - Totex'!F118))<'RFPR cover'!$F$14,"OK","Error"),"N/A") -> OK | G97: =IF(G$5="Actuals",IF(ABS(G95-('R4 - Totex'!G90+'R4 - Totex'!G118))<'RFPR cover'!$F$14,"OK","Error"),"N/A") -> OK | H97: =IF(H$5="Actuals",IF(ABS(H95-('R4 - Totex'!H90+'R4 - Totex'!H118))<'RFPR cover'!$F$14,"OK","Error"),"N/A") -> OK | I97: =IF(I$5="Actuals",IF(ABS(I95-('R4 - Totex'!I90+'R4 - Totex'!I118))<'RFPR cover'!$F$14,"OK","Error"),"N/A") -> OK | J97: =IF(J$5="Actuals",IF(ABS(J95-('R4 - Totex'!J90+'R4 - Totex'!J118))<'RFPR cover'!$F$14,"OK","Error"),"N/A") -> OK | K97: =IF(K$5="Actuals",IF(ABS(K95-('R4 - Totex'!K90+'R4 - Totex'!K118))<'RFPR cover'!$F$14,"OK","Error"),"N/A") -> OK

Sheet R4 - Totex
A1: R4 - Totex
A2: ='RFPR cover'!C5 -> Cadent-NW
A3: ='RFPR cover'!C7 -> 2021
D5: =IF(D6<='RFPR cover'!$C$7,"Actuals","Forecast") -> Actuals | E5: =IF(E6<='RFPR cover'!$C$7,"Actuals","Forecast") -> Actuals | F5: =IF(F6<='RFPR cover'!$C$7,"Actuals","Forecast") -> Actuals | G5: =IF(G6<='RFPR cover'!$C$7,"Actuals","Forecast") -> Actuals | H5: =IF(H6<='RFPR cover'!$C$7,"Actuals","Forecast") -> Actuals | I5: =IF(I6<='RFPR cover'!$C$7,"Actuals","Forecast") -> Actuals | J5: =IF(J6<='RFPR cover'!$C$7,"Actuals","Forecast") -> Actuals | K5: =IF(K6<='RFPR cover'!$C$7,"Actuals","Forecast") -> Actuals
D6: ='RFPR cover'!$C$13 -> 2014 | E6: =D6+1 -> 2015 | F6: =E6+1 -> 2016 | G6: 2017 | H6: 2018 | I6: 2019 | J6: 2020 | K6: 2021 | L6: ="Cumulative to "&'RFPR cover'!$C$7 -> Cumulative to 2021 | M6: RIIO-1 period | N6: Enduring Value Appendix in Commentary
B8: Totex per the latest RRP submission
B10: =Data!B48 -> Totex excluding repex
B12: Latest Totex actuals/forecast | C12: ='RFPR cover'!$C$14 -> £m 09/10 | D12: 117.8341705 | E12: 140.7005221 | F12: 107.5639538 | G12: 102.8861451 | H12: 100.9405163 | I12: 108.2973976 | J12: 117.9360724 | K12: 116.4643069 | L12: =SUM(D12:INDEX(D12:K12,0,MATCH('RFPR cover'!$C$7,$D$6:$K$6,0))) -> 912.6230847 | M12: =SUM(D12:K12) -> 912.6230847
B13: Totex allowance including allowed adjustments and uncertainty mechanisms | C13: ='RFPR cover'!$C$14 -> £m 09/10 | D13: 129.0194172 | E13: 118.3467544 | F13: 111.1652802 | G13: 113.2566673 | H13: 115.0308263 | I13: 111.7885967 | J13: 107.587061 | K13: 102.147049 | L13: =SUM(D13:INDEX(D13:K13,0,MATCH('RFPR cover'!$C$7,$D$6:$K$6,0))) -> 908.3416521 | M13: =SUM(D13:K13) -> 908.3416521
B14: Totex out(under)performance | C14: ='RFPR cover'!$C$14 -> £m 09/10 | D14: =D13-D12 -> 11.18524664 | E14: =E13-E12 -> -22.35376769 | F14: 3.601326395 | G14: 10.37052219 | H14: 14.09031006 | I14: 3.491199108 | J14: -10.34901142 | K14: -14.31725794 | L14: -4.281432648 | M14: -4.281432648
B16: Funding Adjustment Rate (often referred to as 'sharing factor') | C16: % | D16: =1-INDEX(Data!$D$73:$D$100,MATCH('RFPR cover'!$C$5,Data!$B$73:$B$100,0),0) -> 0.3696 | E16: =1-INDEX(Data!$D$73:$D$100,MATCH('RFPR cover'!$C$5,Data!$B$73:$B$100,0),0) -> 0.3696 | F16: =1-INDEX(Data!$D$73:$D$100,MATCH('RFPR cover'!$C$5,Data!$B$73:$B$100,0),0) -> 0.3696 | G16: =1-INDEX(Data!$D$73:$D$100,MATCH('RFPR cover'!$C$5,Data!$B$73:$B$100,0),0) -> 0.3696 | H16: =1-INDEX(Data!$D$73:$D$100,MATCH('RFPR cover'!$C$5,Data!$B$73:$B$100,0),0) -> 0.3696 | I16: =1-INDEX(Data!$D$73:$D$100,MATCH('RFPR cover'!$C$5,Data!$B$73:$B$100,0),0) -> 0.3696 | J16: =1-INDEX(Data!$D$73:$D$100,MATCH('RFPR cover'!$C$5,Data!$B$73:$B$100,0),0) -> 0.3696 | K16: =1-INDEX(Data!$D$73:$D$100,MATCH('RFPR cover'!$C$5,Data!$B$73:$B$100,0),0) -> 0.3696
B18: Customer share of out(under) performance | C18: ='RFPR cover'!$C$14 -> £m 09/10 | D18: =D14*D16 -> 4.134067159 | E18: =E14*E16 -> -8.261952538 | F18: 1.331050236 | G18: 3.832945003 | H18: 5.2077786 | I18: 1.29034719 | J18: -3.824994622 | K18: -5.291658535 | L18: =SUM(D18:INDEX(D18:K18,0,MATCH('RFPR cover'!$C$7,$D$6:$K$6,0))) -> -1.582417507 | M18: =SUM(D18:K18) -> -1.582417507
B19: NWO share of performance | C19: ='RFPR cover'!$C$14 -> £m 09/10 | D19: =D14*(1-D16) -> 7.051179484 | E19: =E14*(1-E16) -> -14.09181515 | F19: 2.270276159 | G19: 6.537577191 | H19: 8.882531465 | I19: 2.200851918 | J19: -6.524016802 | K19: -9.025599407 | L19: =SUM(D19:INDEX(D19:K19,0,MATCH('RFPR cover'!$C$7,$D$6:$K$6,0))) -> -2.699015141 | M19: =SUM(D19:K19) -> -2.699015141
B21: Enduring Value adjustments to Totex performance
A22: a | B22: Gas Holders | C22: ='RFPR cover'!$C$14 -> £m 09/10 | D22: -0.6356185432 | E22: 12.77015437 | F22: -2.022422637 | G22: -2.022422637 | H22: -2.022422637 | I22: -2.022422637 | J22: -2.022422637 | K22: -2.022422637 | L22: =SUM(D22:INDEX(D22:K22,0,MATCH('RFPR cover'!$C$7,$D$6:$K$6,0))) -> 0 | M22: =SUM(D22:K22) -> 0
A23: b | B23: Capex Enduring Value | C23: ='RFPR cover'!$C$14 -> £m 09/10 | D23: -12.45770207 | E23: -3.802565379 | F23: -2.838602958 | G23: -5.963878064 | H23: -7.775512085 | I23: 0.5250659561 | J23: 13.46187492 | K23: 18.85131968 | L23: =SUM(D23:INDEX(D23:K23,0,MATCH('RFPR cover'!$C$7,$D$6:$K$6,0))) -> 5.329070518e-14 | M23: 5.329070518e-14
A24: c | B24: [Enduring Value adjustment] | C24: ='RFPR cover'!$C$14 -> £m 09/10 | D24: 0 | E24: 0 | F24: 0 | G24: 0 | H24: 0 | I24: 0 | J24: 0 | K24: 0 | L24: =SUM(D24:INDEX(D24:K24,0,MATCH('RFPR cover'!$C$7,$D$6:$K$6,0))) -> 0 | M24: 0
A25: d | B25: [Enduring Value adjustment] | C25: ='RFPR cover'!$C$14 -> £m 09/10 | D25: 0 | E25: 0 | F25: 0 | G25: 0 | H25: 0 | I25: 0 | J25: 0 | K25: 0 | L25: =SUM(D25:INDEX(D25:K25,0,MATCH('RFPR cover'!$C$7,$D$6:$K$6,0))) -> 0 | M25: 0
A26: e | B26: [Enduring Value adjustment] | C26: ='RFPR cover'!$C$14 -> £m 09/10 | D26: 0 | E26: 0 | F26: 0 | G26: 0 | H26: 0 | I26: 0 | J26: 0 | K26: 0 | L26: =SUM(D26:INDEX(D26:K26,0,MATCH('RFPR cover'!$C$7,$D$6:$K$6,0))) -> 0 | M26: 0
A27: f | B27: [Enduring Value adjustment] | C27: ='RFPR cover'!$C$14 -> £m 09/10 | D27: 0 | E27: 0 | F27: 0 | G27: 0 | H27: 0 | I27: 0 | J27: 0 | K27: 0 | L27: =SUM(D27:INDEX(D27:K27,0,MATCH('RFPR cover'!$C$7,$D$6:$K$6,0))) -> 0 | M27: 0
B28: Total enduring value adjustments | C28: ='RFPR cover'!$C$14 -> £m 09/10 | D28: =SUM(D22:D27) -> -13.09332061 | E28: =SUM(E22:E27) -> 8.967588989 | F28: -4.861025596 | G28: -7.986300701 | H28: -9.797934723 | I28: -1.497356681 | J28: 11.43945228 | K28: 16.82889704 | L28: =SUM(D28:INDEX(D28:K28,0,MATCH('RFPR cover'!$C$7,$D$6:$K$6,0))) -> 5.329070518e-14 | M28: =SUM(D28:K28) -> 5.329070518e-14
B30: Enduring Value: Customer share of performance | C30: ='RFPR cover'!$C$14 -> £m 09/10 | D30: =D28*D16 -> -4.839291297 | E30: 3.31442089 | F30: -1.79663506 | G30: -2.951736739 | H30: -3.621316673 | I30: -0.5534230294 | J30: 4.228021563 | K30: 6.219960346 | L30: =SUM(D30:INDEX(D30:K30,0,MATCH('RFPR cover'!$C$7,$D$6:$K$6,0))) -> 1.776356839e-14 | M30: =SUM(D30:K30) -> 1.776356839e-14
B31: Enduring Value: NWO share of performance | C31: ='RFPR cover'!$C$14 -> £m 09/10 | D31: =D28*(1-D16) -> -8.254029312 | E31: 5.653168099 | F31: -3.064390536 | G31: -5.034563962 | H31: -6.176618049 | I31: -0.9439336519 | J31: 7.211430717 | K31: 10.60893669 | L31: =SUM(D31:INDEX(D31:K31,0,MATCH('RFPR cover'!$C$7,$D$6:$K$6,0))) -> 3.019806627e-14 | M31: =SUM(D31:K31) -> 3.019806627e-14
B33: Total out(under) performance (including enduring value adjustments)
B34: Customer share of performance | C34: ='RFPR cover'!$C$14 -> £m 09/10 | D34: =D18+D30 -> -0.7052241376 | E34: =E18+E30 -> -4.947531647 | F34: -0.4655848246 | G34: 0.8812082639 | H34: 1.586461927 | I34: 0.7369241608 | J34: 0.4030269404 | K34: 0.9283018111 | L34: =SUM(D34:INDEX(D34:K34,0,MATCH('RFPR cover'!$C$7,$D$6:$K$6,0))) -> -1.582417507 | M34: =SUM(D34:K34) -> -1.582417507
B35: NWO share of performance | C35: ='RFPR cover'!$C$14 -> £m 09/10 | D35: =D19+D31 -> -1.202849828 | E35: -8.438647052 | F35: -0.7941143762 | G35: 1.503013229 | H35: 2.705913416 | I35: 1.256918266 | J35: 0.6874139157 | K35: 1.583337288 | L35: =SUM(D35:INDEX(D35:K35,0,MATCH('RFPR cover'!$C$7,$D$6:$K$6,0))) -> -2.699015141 | M35: =SUM(D35:K35) -> -2.699015141
B36: Total | C36: ='RFPR cover'!$C$14 -> £m 09/10 | D36: =SUM(D34:D35) -> -1.908073965 | E36: =SUM(E34:E35) -> -13.3861787 | F36: -1.259699201 | G36: 2.384221493 | H36: 4.292375342 | I36: 1.993842426 | J36: 1.090440856 | K36: 2.511639099 | L36: =SUM(D36:INDEX(D36:K36,0,MATCH('RFPR cover'!$C$7,$D$6:$K$6,0))) -> -4.281432648 | M36: =SUM(D36:K36) -> -4.281432648
B38: =Data!B51 -> Repex
B40: Latest Totex actuals/forecast | C40: ='RFPR cover'!$C$14 -> £m 09/10 | D40: 69.51323727 | E40: 73.41566294 | F40: 81.68798274 | G40: 65.05653449 | H40: 65.05933676 | I40: 64.09057413 | J40: 82.2245271 | K40: 111.0938419 | L40: =SUM(D40:INDEX(D40:K40,0,MATCH('RFPR cover'!$C$7,$D$6:$K$6,0))) -> 612.1416973 | M40: =SUM(D40:K40) -> 612.1416973
B41: Totex allowance including allowed adjustments and uncertainty mechanisms | C41: ='RFPR cover'!$C$14 -> £m 09/10 | D41: 85.79023377 | E41: 85.01433227 | F41: 85.61637984 | G41: 85.07105148 | H41: 85.7057977 | I41: 84.94286055 | J41: 88.60871842 | K41: 86.68550109 | L41: =SUM(D41:INDEX(D41:K41,0,MATCH('RFPR cover'!$C$7,$D$6:$K$6,0))) -> 687.4348751 | M41: =SUM(D41:K41) -> 687.4348751
B42: Totex out(under)performance | C42: ='RFPR cover'!$C$14 -> £m 09/10 | D42: =D41-D40 -> 16.2769965 | E42: =E41-E40 -> 11.59866933 | F42: 3.928397096 | G42: 20.01451699 | H42: 20.64646093 | I42: 20.85228642 | J42: 6.38419132 | K42: -24.4083408 | L42: 75.29317778 | M42: 75.29317778
B44: Funding Adjustment Rate (often referred to as 'sharing factor') | C44: % | D44: =1-INDEX(Data!$D$73:$D$100,MATCH('RFPR cover'!$C$5,Data!$B$73:$B$100,0),0) -> 0.3696 | E44: =1-INDEX(Data!$D$73:$D$100,MATCH('RFPR cover'!$C$5,Data!$B$73:$B$100,0),0) -> 0.3696 | F44: =1-INDEX(Data!$D$73:$D$100,MATCH('RFPR cover'!$C$5,Data!$B$73:$B$100,0),0) -> 0.3696 | G44: =1-INDEX(Data!$D$73:$D$100,MATCH('RFPR cover'!$C$5,Data!$B$73:$B$100,0),0) -> 0.3696 | H44: =1-INDEX(Data!$D$73:$D$100,MATCH('RFPR cover'!$C$5,Data!$B$73:$B$100,0),0) -> 0.3696 | I44: =1-INDEX(Data!$D$73:$D$100,MATCH('RFPR cover'!$C$5,Data!$B$73:$B$100,0),0) -> 0.3696 | J44: =1-INDEX(Data!$D$73:$D$100,MATCH('RFPR cover'!$C$5,Data!$B$73:$B$100,0),0) -> 0.3696 | K44: =1-INDEX(Data!$D$73:$D$100,MATCH('RFPR cover'!$C$5,Data!$B$73:$B$100,0),0) -> 0.3696
B46: Customer share of out(under) performance | C46: ='RFPR cover'!$C$14 -> £m 09/10 | D46: =D42*D44 -> 6.015977905 | E46: =E42*E44 -> 4.286868185 | F46: 1.451935567 | G46: 7.397365479 | H46: 7.630931961 | I46: 7.707005061 | J46: 2.359597112 | K46: -9.021322761 | L46: =SUM(D46:INDEX(D46:K46,0,MATCH('RFPR cover'!$C$7,$D$6:$K$6,0))) -> 27.82835851 | M46: =SUM(D46:K46) -> 27.82835851
B47: NWO share of performance | C47: ='RFPR cover'!$C$14 -> £m 09/10 | D47: =D42*(1-D44) -> 10.26101859 | E47: =E42*(1-E44) -> 7.311801146 | F47: 2.47646153 | G47: 12.61715151 | H47: 13.01552897 | I47: 13.14528136 | J47: 4.024594208 | K47: -15.38701804 | L47: =SUM(D47:INDEX(D47:K47,0,MATCH('RFPR cover'!$C$7,$D$6:$K$6,0))) -> 47.46481927 | M47: =SUM(D47:K47) -> 47.46481927
B49: Enduring Value adjustments to Totex performance
A50: a | B50: Repex Enduring Value | C50: ='RFPR cover'!$C$14 -> £m 09/10 | D50: 0.07687193823 | E50: -12.44346614 | F50: 13.55235394 | G50: -3.201760074 | H50: -1.563284814 | I50: -8.53073429 | J50: 4.493746367 | K50: 7.616273076 | L50: =SUM(D50:INDEX(D50:K50,0,MATCH('RFPR cover'!$C$7,$D$6:$K$6,0))) -> 7.993605777e-15 | M50: =SUM(D50:K50) -> 7.993605777e-15
A51: b | B51: [Enduring Value adjustment] | C51: ='RFPR cover'!$C$14 -> £m 09/10 | D51: 0 | E51: 0 | F51: 0 | G51: 0 | H51: 0 | I51: 0 | J51: 0 | K51: 0 | L51: =SUM(D51:INDEX(D51:K51,0,MATCH('RFPR cover'!$C$7,$D$6:$K$6,0))) -> 0 | M51: 0
A52: c | B52: [Enduring Value adjustment] | C52: ='RFPR cover'!$C$14 -> £m 09/10 | D52: 0 | E52: 0 | F52: 0 | G52: 0 | H52: 0 | I52: 0 | J52: 0 | K52: 0 | L52: =SUM(D52:INDEX(D52:K52,0,MATCH('RFPR cover'!$C$7,$D$6:$K$6,0))) -> 0 | M52: 0
A53: d | B53: [Enduring Value adjustment] | C53: ='RFPR cover'!$C$14 -> £m 09/10 | D53: 0 | E53: 0 | F53: 0 | G53: 0 | H53: 0 | I53: 0 | J53: 0 | K53: 0 | L53: =SUM(D53:INDEX(D53:K53,0,MATCH('RFPR cover'!$C$7,$D$6:$K$6,0))) -> 0 | M53: 0
A54: e | B54: [Enduring Value adjustment] | C54: ='RFPR cover'!$C$14 -> £m 09/10 | D54: 0 | E54: 0 | F54: 0 | G54: 0 | H54: 0 | I54: 0 | J54: 0 | K54: 0 | L54: =SUM(D54:INDEX(D54:K54,0,MATCH('RFPR cover'!$C$7,$D$6:$K$6,0))) -> 0 | M54: 0
A55: f | B55: [Enduring Value adjustment] | C55: ='RFPR cover'!$C$14 -> £m 09/10 | D55: 0 | E55: 0 | F55: 0 | G55: 0 | H55: 0 | I55: 0 | J55: 0 | K55: 0 | L55: =SUM(D55:INDEX(D55:K55,0,MATCH('RFPR cover'!$C$7,$D$6:$K$6,0))) -> 0 | M55: 0
B56: Total enduring value adjustments | C56: ='RFPR cover'!$C$14 -> £m 09/10 | D56: =SUM(D50:D55) -> 0.07687193823 | E56: =SUM(E50:E55) -> -12.44346614 | F56: 13.55235394 | G56: -3.201760074 | H56: -1.563284814 | I56: -8.53073429 | J56: 4.493746367 | K56: 7.616273076 | L56: =SUM(D56:INDEX(D56:K56,0,MATCH('RFPR cover'!$C$7,$D$6:$K$6,0))) -> 7.993605777e-15 | M56: 7.993605777e-15
B58: Enduring Value: Customer share of performance | C58: ='RFPR cover'!$C$14 -> £m 09/10 | D58: =D56*D44 -> 0.02841186837 | E58: -4.599105087 | F58: 5.008950017 | G58: -1.183370523 | H58: -0.5777900672 | I58: -3.152959394 | J58: 1.660888657 | K58: 2.814974529 | L58: =SUM(D58:INDEX(D58:K58,0,MATCH('RFPR cover'!$C$7,$D$6:$K$6,0))) -> 0 | M58: =SUM(D58:K58) -> 0
B59: Enduring Value: NWO share of performance | C59: ='RFPR cover'!$C$14 -> £m 09/10 | D59: =D56*(1-D44) -> 0.04846006986 | E59: -7.844361058 | F59: 8.543403924 | G59: -2.01838955 | H59: -0.9854947466 | I59: -5.377774896 | J59: 2.83285771 | K59: 4.801298547 | L59: =SUM(D59:INDEX(D59:K59,0,MATCH('RFPR cover'!$C$7,$D$6:$K$6,0))) -> 0 | M59: =SUM(D59:K59) -> 0
B61: Total out(under) performance (including enduring value adjustments)
B62: Customer share of performance | C62: ='RFPR cover'!$C$14 -> £m 09/10 | D62: =D46+D58 -> 6.044389774 | E62: =E46+E58 -> -0.3122369022 | F62: 6.460885583 | G62: 6.213994955 | H62: 7.053141894 | I62: 4.554045667 | J62: 4.020485769 | K62: -6.206348232 | L62: =SUM(D62:INDEX(D62:K62,0,MATCH('RFPR cover'!$C$7,$D$6:$K$6,0))) -> 27.82835851 | M62: =SUM(D62:K62) -> 27.82835851
B63: NWO share of performance | C63: ='RFPR cover'!$C$14 -> £m 09/10 | D63: =D47+D59 -> 10.30947866 | E63: -0.5325599112 | F63: 11.01986545 | G63: 10.59876196 | H63: 12.03003423 | I63: 7.767506463 | J63: 6.857451918 | K63: -10.58571949 | L63: =SUM(D63:INDEX(D63:K63,0,MATCH('RFPR cover'!$C$7,$D$6:$K$6,0))) -> 47.46481927 | M63: =SUM(D63:K63) -> 47.46481927
B64: Total | C64: ='RFPR cover'!$C$14 -> £m 09/10 | D64: =SUM(D62:D63) -> 16.35386844 | E64: =SUM(E62:E63) -> -0.8447968134 | F64: 17.48075104 | G64: 16.81275691 | H64: 19.08317612 | I64: 12.32155213 | J64: 10.87793769 | K64: -16.79206773 | L64: =SUM(D64:INDEX(D64:K64,0,MATCH('RFPR cover'!$C$7,$D$6:$K$6,0))) -> 75.29317778 | M64: =SUM(D64:K64) -> 75.29317778
B66: Totex Summary
B68: Total out(under) performance (including enduring value adjustments)
B69: Customer share of performance | C69: ='RFPR cover'!$C$14 -> £m 09/10 | D69: =D34+D62 -> 5.339165636 | E69: =E34+E62 -> -5.25976855 | F69: 5.995300759 | G69: 7.095203219 | H69: 8.63960382 | I69: 5.290969828 | J69: 4.42351271 | K69: -5.27804642 | L69: =SUM(D69:INDEX(D69:K69,0,MATCH('RFPR cover'!$C$7,$D$6:$K$6,0))) -> 26.245941 | M69: =SUM(D69:K69) -> 26.245941
B70: NWO share of performance | C70: ='RFPR cover'!$C$14 -> £m 09/10 | D70: =D35+D63 -> 9.106628834 | E70: -8.971206963 | F70: 10.22575108 | G70: 12.10177519 | H70: 14.73594764 | I70: 9.024424728 | J70: 7.544865834 | K70: -9.002382206 | L70: =SUM(D70:INDEX(D70:K70,0,MATCH('RFPR cover'!$C$7,$D$6:$K$6,0))) -> 44.76580413 | M70: =SUM(D70:K70) -> 44.76580413
B71: Total | C71: ='RFPR cover'!$C$14 -> £m 09/10 | D71: =SUM(D69:D70) -> 14.44579447 | E71: =SUM(E69:E70) -> -14.23097551 | F71: 16.22105184 | G71: 19.19697841 | H71: 23.37555146 | I71: 14.31539456 | J71: 11.96837854 | K71: -14.28042863 | L71: =SUM(D71:INDEX(D71:K71,0,MATCH('RFPR cover'!$C$7,$D$6:$K$6,0))) -> 71.01174513 | M71: =SUM(D71:K71) -> 71.01174513
B74: IQI Additional Income
B75: Additional Income is Pre-tax for Fast Track companies and Post-tax for Slow Track.
B77: IQI Additional Income per PCFM | C77: ='RFPR cover'!$C$14 -> £m 09/10 | D77: =INDEX(Data!$C$119:$L$146,MATCH('RFPR cover'!$C$5,Data!$B$119:$B$146,0),MATCH('R4 - Totex'!D$6,Data!$C$118:$L$118,0)) -> 1.089395985 | E77: =INDEX(Data!$C$119:$L$146,MATCH('RFPR cover'!$C$5,Data!$B$119:$B$146,0),MATCH('R4 - Totex'!E$6,Data!$C$118:$L$118,0)) -> 1.027913195 | F77: =INDEX(Data!$C$119:$L$146,MATCH('RFPR cover'!$C$5,Data!$B$119:$B$146,0),MATCH('R4 - Totex'!F$6,Data!$C$118:$L$118,0)) -> 1.006698714 | G77: =INDEX(Data!$C$119:$L$146,MATCH('RFPR cover'!$C$5,Data!$B$119:$B$146,0),MATCH('R4 - Totex'!G$6,Data!$C$118:$L$118,0)) -> 1.01923509 | H77: =INDEX(Data!$C$119:$L$146,MATCH('RFPR cover'!$C$5,Data!$B$119:$B$146,0),MATCH('R4 - Totex'!H$6,Data!$C$118:$L$118,0)) -> 1.034148078 | I77: =INDEX(Data!$C$119:$L$146,MATCH('RFPR cover'!$C$5,Data!$B$119:$B$146,0),MATCH('R4 - Totex'!I$6,Data!$C$118:$L$118,0)) -> 1.020424079 | J77: =INDEX(Data!$C$119:$L$146,MATCH('RFPR cover'!$C$5,Data!$B$119:$B$146,0),MATCH('R4 - Totex'!J$6,Data!$C$118:$L$118,0)) -> 1.013773955 | K77: =INDEX(Data!$C$119:$L$146,MATCH('RFPR cover'!$C$5,Data!$B$119:$B$146,0),MATCH('R4 - Totex'!K$6,Data!$C$118:$L$118,0)) -> 0.9898055017 | L77: =SUM(D77:INDEX(D77:K77,0,MATCH('RFPR cover'!$C$7,$D$6:$K$6,0))) -> 8.201394598 | M77: =SUM(D77:K77) -> 8.201394598
B78: Corporation tax rate when recognised in allowed revenue | C78: % | D78: =IF(INDEX(Data!$J$73:$J$100,MATCH('RFPR cover'!$C$5,Data!$B$73:$B$100,0),0)="Pre",INDEX(Data!$G$18:$G$27,MATCH('R4 - Totex'!D$6,Data!$C$18:$C$27,0),0),"n/a") -> 0.23 | E78: =IF(INDEX(Data!$J$73:$J$100,MATCH('RFPR cover'!$C$5,Data!$B$73:$B$100,0),0)="Pre",INDEX(Data!$G$18:$G$27,MATCH('R4 - Totex'!E$6,Data!$C$18:$C$27,0),0),"n/a") -> 0.21 | F78: =IF(INDEX(Data!$J$73:$J$100,MATCH('RFPR cover'!$C$5,Data!$B$73:$B$100,0),0)="Pre",INDEX(Data!$G$18:$G$27,MATCH('R4 - Totex'!F$6,Data!$C$18:$C$27,0),0),"n/a") -> 0.2 | G78: =IF(INDEX(Data!$J$73:$J$100,MATCH('RFPR cover'!$C$5,Data!$B$73:$B$100,0),0)="Pre",INDEX(Data!$G$18:$G$27,MATCH('R4 - Totex'!G$6,Data!$C$18:$C$27,0),0),"n/a") -> 0.2 | H78: =IF(INDEX(Data!$J$73:$J$100,MATCH('RFPR cover'!$C$5,Data!$B$73:$B$100,0),0)="Pre",INDEX(Data!$G$18:$G$27,MATCH('R4 - Totex'!H$6,Data!$C$18:$C$27,0),0),"n/a") -> 0.19 | I78: =IF(INDEX(Data!$J$73:$J$100,MATCH('RFPR cover'!$C$5,Data!$B$73:$B$100,0),0)="Pre",INDEX(Data!$G$18:$G$27,MATCH('R4 - Totex'!I$6,Data!$C$18:$C$27,0),0),"n/a") -> 0.19 | J78: =IF(INDEX(Data!$J$73:$J$100,MATCH('RFPR cover'!$C$5,Data!$B$73:$B$100,0),0)="Pre",INDEX(Data!$G$18:$G$27,MATCH('R4 - Totex'!J$6,Data!$C$18:$C$27,0),0),"n/a") -> 0.19 | K78: =IF(INDEX(Data!$J$73:$J$100,MATCH('RFPR cover'!$C$5,Data!$B$73:$B$100,0),0)="Pre",INDEX(Data!$G$18:$G$27,MATCH('R4 - Totex'!K$6,Data!$C$18:$C$27,0),0),"n/a") -> 0.19
B79: Post tax | C79: ='RFPR cover'!$C$14 -> £m 09/10 | D79: =IF(ISNUMBER(D78),D77*(1-D78),D77) -> 0.8388349084 | E79: =IF(ISNUMBER(E78),E77*(1-E78),E77) -> 0.8120514237 | F79: 0.8053589715 | G79: 0.815388072 | H79: 0.8376599432 | I79: 0.8265435042 | J79: 0.8211569035 | K79: 0.8017424564 | L79: =SUM(D79:INDEX(D79:K79,0,MATCH('RFPR cover'!$C$7,$D$6:$K$6,0))) -> 6.558736183 | M79: =SUM(D79:K79) -> 6.558736183
B84: £m Nominal
B86: =Data!B34 -> Financial Year Average RPI (RPIt) | C86: Index | D86: =Data!C$34 -> 1.166689067 | E86: =Data!D$34 -> 1.189556327 | F86: =Data!E$34 -> 1.202375711 | G86: =Data!F$34 -> 1.228139614 | H86: =Data!G$34 -> 1.274096595 | I86: =Data!H$34 -> 1.313027479 | J86: =Data!I$34 -> 1.347017848 | K86: =Data!J$34 -> 1.363354915
B88: =B10 -> Totex excluding repex
B90: Latest Totex actuals/forecast | C90: £m nominal | D90: =D12*D$86 -> 137.4758385 | E90: 167.3711962 | F90: 129.3322854 | G90: 126.3585505 | H90: 128.6079681 | I90: 142.197459 | J90: 158.8619945 | K90: =K12*K$86 -> 158.7821853 | L90: =SUM(D90:INDEX(D90:K90,0,MATCH('RFPR cover'!$C$7,$D$6:$K$6,0))) -> 1148.987477 | M90: =SUM(D90:K90) -> 1148.987477
B91: Totex allowance including forecast allowed adjustments and uncertainty mechanisms | C91: £m nominal | D91: 150.5255435 | E91: 140.7801305 | F91: 133.6624328 | G91: 139.0949996 | H91: 146.5603842 | I91: 146.7814993 | J91: 144.9216914 | K91: 139.2626813 | L91: =SUM(D91:INDEX(D91:K91,0,MATCH('RFPR cover'!$C$7,$D$6:$K$6,0))) -> 1141.589362 | M91: =SUM(D91:K91) -> 1141.589362
B92: Totex out(under)performance | C92: £m nominal | D92: =D91-D90 -> 13.04970497 | E92: =E91-E90 -> -26.59106579 | F92: 4.330147384 | G92: 12.73644912 | H92: 17.95241608 | I92: 4.584040362 | J92: -13.9403031 | K92: -19.51950399 | L92: -7.398114953 | M92: -7.398114953
B94: Funding Adjustment Rate (often referred to as 'sharing factor') | C94: % | D94: =1-INDEX(Data!$D$73:$D$100,MATCH('RFPR cover'!$C$5,Data!$B$73:$B$100,0),0) -> 0.3696 | E94: =1-INDEX(Data!$D$73:$D$100,MATCH('RFPR cover'!$C$5,Data!$B$73:$B$100,0),0) -> 0.3696 | F94: =1-INDEX(Data!$D$73:$D$100,MATCH('RFPR cover'!$C$5,Data!$B$73:$B$100,0),0) -> 0.3696 | G94: =1-INDEX(Data!$D$73:$D$100,MATCH('RFPR cover'!$C$5,Data!$B$73:$B$100,0),0) -> 0.3696 | H94: =1-INDEX(Data!$D$73:$D$100,MATCH('RFPR cover'!$C$5,Data!$B$73:$B$100,0),0) -> 0.3696 | I94: =1-INDEX(Data!$D$73:$D$100,MATCH('RFPR cover'!$C$5,Data!$B$73:$B$100,0),0) -> 0.3696 | J94: =1-INDEX(Data!$D$73:$D$100,MATCH('RFPR cover'!$C$5,Data!$B$73:$B$100,0),0) -> 0.3696 | K94: =1-INDEX(Data!$D$73:$D$100,MATCH('RFPR cover'!$C$5,Data!$B$73:$B$100,0),0) -> 0.3696
B96: Customer share of out(under) performance | C96: £m nominal | D96: =D92*D94 -> 4.823170959 | E96: =E92*E94 -> -9.828057914 | F96: 1.600422473 | G96: 4.707391595 | H96: 6.635212981 | I96: 1.694261318 | J96: -5.152336025 | K96: -7.214408674 | L96: =SUM(D96:INDEX(D96:K96,0,MATCH('RFPR cover'!$C$7,$D$6:$K$6,0))) -> -2.734343287 | M96: =SUM(D96:K96) -> -2.734343287
B97: NWO share of performance | C97: £m nominal | D97: =D92*(1-D94) -> 8.226534016 | E97: =E92*(1-E94) -> -16.76300787 | F97: 2.729724911 | G97: 8.029057526 | H97: 11.31720309 | I97: 2.889779044 | J97: -8.787967072 | K97: -12.30509531 | L97: =SUM(D97:INDEX(D97:K97,0,MATCH('RFPR cover'!$C$7,$D$6:$K$6,0))) -> -4.663771666 | M97: =SUM(D97:K97) -> -4.663771666
B99: Enduring Value adjustments to Totex performance
A100: a | B100: =B22 -> Gas Holders | C100: £m nominal | D100: =D22*D$86 -> -0.7415692054 | E100: 15.19081792 | F100: -2.431711856 | G100: -2.483817356 | H100: -2.576761796 | I100: -2.655496497 | J100: -2.724239389 | K100: -2.757279844 | L100: =SUM(D100:INDEX(D100:K100,0,MATCH('RFPR cover'!$C$7,$D$6:$K$6,0))) -> -1.180058018 | M100: =SUM(D100:K100) -> -1.180058018
A101: b | B101: Capex Enduring Value | C101: £m nominal | D101: -14.5342648 | E101: -4.523365706 | F101: -3.41306725 | G101: -7.324474901 | H101: -9.906753471 | I101: 0.6894260285 | J101: 18.13338578 | K101: 25.70103934 | L101: =SUM(D101:INDEX(D101:K101,0,MATCH('RFPR cover'!$C$7,$D$6:$K$6,0))) -> 4.82192502 | M101: 4.82192502
A102: c | B102: [Enduring Value adjustment] | C102: £m nominal | D102: 0 | E102: 0 | F102: 0 | G102: 0 | H102: 0 | I102: 0 | J102: 0 | K102: 0 | L102: =SUM(D102:INDEX(D102:K102,0,MATCH('RFPR cover'!$C$7,$D$6:$K$6,0))) -> 0 | M102: 0
A103: d | B103: [Enduring Value adjustment] | C103: £m nominal | D103: 0 | E103: 0 | F103: 0 | G103: 0 | H103: 0 | I103: 0 | J103: 0 | K103: 0 | L103: =SUM(D103:INDEX(D103:K103,0,MATCH('RFPR cover'!$C$7,$D$6:$K$6,0))) -> 0 | M103: 0
A104: e | B104: [Enduring Value adjustment] | C104: £m nominal | D104: 0 | E104: 0 | F104: 0 | G104: 0 | H104: 0 | I104: 0 | J104: 0 | K104: 0 | L104: =SUM(D104:INDEX(D104:K104,0,MATCH('RFPR cover'!$C$7,$D$6:$K$6,0))) -> 0 | M104: 0
A105: f | B105: [Enduring Value adjustment] | C105: £m nominal | D105: 0 | E105: 0 | F105: 0 | G105: 0 | H105: 0 | I105: 0 | J105: 0 | K105: 0 | L105: =SUM(D105:INDEX(D105:K105,0,MATCH('RFPR cover'!$C$7,$D$6:$K$6,0))) -> 0 | M105: 0
B106: Total enduring value adjustments | C106: £m nominal | D106: =SUM(D100:D105) -> -15.27583401 | E106: =SUM(E100:E105) -> 10.66745222 | F106: -5.844779106 | G106: -9.808292257 | H106: -12.48351527 | I106: -1.966070468 | J106: 15.40914639 | K106: 22.9437595 | L106: =SUM(D106:INDEX(D106:K106,0,MATCH('RFPR cover'!$C$7,$D$6:$K$6,0))) -> 3.641867002 | M106: 3.641867002
B108: Enduring Value: Customer share of performance | C108: £m nominal | D108: =D106*D94 -> -5.64594825 | E108: 3.94269034 | F108: -2.160230358 | G108: -3.625144818 | H108: -4.613907243 | I108: -0.726659645 | J108: 5.695220506 | K108: 8.480013511 | L108: =SUM(D108:INDEX(D108:K108,0,MATCH('RFPR cover'!$C$7,$D$6:$K$6,0))) -> 1.346034044 | M108: =SUM(D108:K108) -> 1.346034044
B109: Enduring Value: NWO share of performance | C109: £m nominal | D109: =D106*(1-D94) -> -9.62988576 | E109: 6.724761879 | F109: -3.684548749 | G109: -6.183147439 | H109: -7.869608025 | I109: -1.239410823 | J109: 9.713925886 | K109: 14.46374599 | L109: =SUM(D109:INDEX(D109:K109,0,MATCH('RFPR cover'!$C$7,$D$6:$K$6,0))) -> 2.295832958 | M109: =SUM(D109:K109) -> 2.295832958
B111: Total out(under) performance (including enduring value adjustments)
B112: Customer share of performance | C112: £m nominal | D112: =D96+D108 -> -0.8227772914 | E112: =E96+E108 -> -5.885367574 | F112: -0.5598078845 | G112: 1.082246777 | H112: 2.021305739 | I112: 0.9676016729 | J112: 0.542884482 | K112: 1.265604837 | L112: =SUM(D112:INDEX(D112:K112,0,MATCH('RFPR cover'!$C$7,$D$6:$K$6,0))) -> -1.388309243 | M112: =SUM(D112:K112) -> -1.388309243
B113: NWO share of performance | C113: £m nominal | D113: =D97+D109 -> -1.403351744 | E113: -10.03824599 | F113: -0.9548238376 | G113: 1.845910087 | H113: 3.447595069 | I113: 1.650368221 | J113: 0.9259588134 | K113: 2.158650674 | L113: =SUM(D113:INDEX(D113:K113,0,MATCH('RFPR cover'!$C$7,$D$6:$K$6,0))) -> -2.367938708 | M113: =SUM(D113:K113) -> -2.367938708
B114: Total | C114: £m nominal | D114: =SUM(D112:D113) -> -2.226129035 | E114: =SUM(E112:E113) -> -15.92361357 | F114: -1.514631722 | G114: 2.928156863 | H114: 5.468900808 | I114: 2.617969894 | J114: 1.468843295 | K114: 3.424255512 | L114: =SUM(D114:INDEX(D114:K114,0,MATCH('RFPR cover'!$C$7,$D$6:$K$6,0))) -> -3.756247951 | M114: =SUM(D114:K114) -> -3.756247951
B116: =B38 -> Repex
B118: Latest Totex actuals/forecast | C118: £m nominal | D118: =D40*D$86 -> 81.10033396 | E118: 87.33206635 | F118: 98.21964632 | G118: 79.89850713 | H118: 82.89187944 | I118: 84.15268496 | J118: 110.7579055 | K118: 151.4603354 | L118: =SUM(D118:INDEX(D118:K118,0,MATCH('RFPR cover'!$C$7,$D$6:$K$6,0))) -> 775.8133591 | M118: =SUM(D118:K118) -> 775.8133591
B119: Totex allowance including forecast allowed adjustments and uncertainty mechanisms | C119: £m nominal | D119: 100.0905278 | E119: 101.1293368 | F119: 102.9430556 | G119: 104.4791283 | H119: 109.197465 | I119: 111.53231 | J119: 119.3575252 | K119: 118.183104 | L119: =SUM(D119:INDEX(D119:K119,0,MATCH('RFPR cover'!$C$7,$D$6:$K$6,0))) -> 866.9124527 | M119: =SUM(D119:K119) -> 866.9124527
B120: Totex out(under)performance | C120: £m nominal | D120: =D119-D118 -> 18.99019386 | E120: =E119-E118 -> 13.79727049 | F120: 4.723409251 | G120: 24.58062116 | H120: 26.30558557 | I120: 27.37962506 | J120: 8.599619653 | K120: -33.27723141 | L120: 91.09909364 | M120: 91.09909364
B122: Funding Adjustment Rate (often referred to as 'sharing factor') | C122: % | D122: =1-INDEX(Data!$D$73:$D$100,MATCH('RFPR cover'!$C$5,Data!$B$73:$B$100,0),0) -> 0.3696 | E122: =1-INDEX(Data!$D$73:$D$100,MATCH('RFPR cover'!$C$5,Data!$B$73:$B$100,0),0) -> 0.3696 | F122: =1-INDEX(Data!$D$73:$D$100,MATCH('RFPR cover'!$C$5,Data!$B$73:$B$100,0),0) -> 0.3696 | G122: =1-INDEX(Data!$D$73:$D$100,MATCH('RFPR cover'!$C$5,Data!$B$73:$B$100,0),0) -> 0.3696 | H122: =1-INDEX(Data!$D$73:$D$100,MATCH('RFPR cover'!$C$5,Data!$B$73:$B$100,0),0) -> 0.3696 | I122: =1-INDEX(Data!$D$73:$D$100,MATCH('RFPR cover'!$C$5,Data!$B$73:$B$100,0),0) -> 0.3696 | J122: =1-INDEX(Data!$D$73:$D$100,MATCH('RFPR cover'!$C$5,Data!$B$73:$B$100,0),0) -> 0.3696 | K122: =1-INDEX(Data!$D$73:$D$100,MATCH('RFPR cover'!$C$5,Data!$B$73:$B$100,0),0) -> 0.3696
B124: Customer share of out(under) performance | C124: £m nominal | D124: =D120*D122 -> 7.018775652 | E124: =E120*E122 -> 5.099471172 | F124: 1.745772059 | G124: 9.08499758 | H124: 9.722544427 | I124: 10.11950942 | J124: 3.178419424 | K124: -12.29926473 | L124: =SUM(D124:INDEX(D124:K124,0,MATCH('RFPR cover'!$C$7,$D$6:$K$6,0))) -> 33.67022501 | M124: =SUM(D124:K124) -> 33.67022501
B125: NO share of performance | C125: £m nominal | D125: =D120*(1-D122) -> 11.97141821 | E125: =E120*(1-E122) -> 8.697799315 | F125: 2.977637192 | G125: 15.49562358 | H125: 16.58304114 | I125: 17.26011564 | J125: 5.421200229 | K125: -20.97796668 | L125: =SUM(D125:INDEX(D125:K125,0,MATCH('RFPR cover'!$C$7,$D$6:$K$6,0))) -> 57.42886863 | M125: =SUM(D125:K125) -> 57.42886863
B127: Enduring Value adjustments to Totex performance
A128: a | B128: =B50 -> Repex Enduring Value | C128: £m nominal | D128: =D50*D$86 -> 0.08968564992 | E128: -14.80220388 | F128: 16.2950212 | G128: -3.93220838 | H128: -1.991775858 | I128: -11.20108854 | J128: 6.05315656 | K128: 10.38368333 | L128: =SUM(D128:INDEX(D128:K128,0,MATCH('RFPR cover'!$C$7,$D$6:$K$6,0))) -> 0.8942700918 | M128: =SUM(D128:K128) -> 0.8942700918
A129: b | B129: [Enduring Value adjustment] | C129: £m nominal | D129: 0 | E129: 0 | F129: 0 | G129: 0 | H129: 0 | I129: 0 | J129: 0 | K129: 0 | L129: =SUM(D129:INDEX(D129:K129,0,MATCH('RFPR cover'!$C$7,$D$6:$K$6,0))) -> 0 | M129: 0
A130: c | B130: [Enduring Value adjustment] | C130: £m nominal | D130: 0 | E130: 0 | F130: 0 | G130: 0 | H130: 0 | I130: 0 | J130: 0 | K130: 0 | L130: =SUM(D130:INDEX(D130:K130,0,MATCH('RFPR cover'!$C$7,$D$6:$K$6,0))) -> 0 | M130: 0
A131: d | B131: [Enduring Value adjustment] | C131: £m nominal | D131: 0 | E131: 0 | F131: 0 | G131: 0 | H131: 0 | I131: 0 | J131: 0 | K131: 0 | L131: =SUM(D131:INDEX(D131:K131,0,MATCH('RFPR cover'!$C$7,$D$6:$K$6,0))) -> 0 | M131: 0
A132: e | B132: [Enduring Value adjustment] | C132: £m nominal | D132: 0 | E132: 0 | F132: 0 | G132: 0 | H132: 0 | I132: 0 | J132: 0 | K132: 0 | L132: =SUM(D132:INDEX(D132:K132,0,MATCH('RFPR cover'!$C$7,$D$6:$K$6,0))) -> 0 | M132: 0
A133: f | B133: [Enduring Value adjustment] | C133: £m nominal | D133: 0 | E133: 0 | F133: 0 | G133: 0 | H133: 0 | I133: 0 | J133: 0 | K133: 0 | L133: =SUM(D133:INDEX(D133:K133,0,MATCH('RFPR cover'!$C$7,$D$6:$K$6,0))) -> 0 | M133: 0
B134: Total enduring value adjustments | C134: £m nominal | D134: =SUM(D128:D133) -> 0.08968564992 | E134: =SUM(E128:E133) -> -14.80220388 | F134: 16.2950212 | G134: -3.93220838 | H134: -1.991775858 | I134: -11.20108854 | J134: 6.05315656 | K134: 10.38368333 | L134: =SUM(D134:INDEX(D134:K134,0,MATCH('RFPR cover'!$C$7,$D$6:$K$6,0))) -> 0.8942700918 | M134: 0.8942700918
B136: Enduring Value: Customer share of performance | C136: £m nominal | D136: =D134*D122 -> 0.03314781621 | E136: -5.470894555 | F136: 6.022639837 | G136: -1.453344217 | H136: -0.7361603572 | I136: -4.139922323 | J136: 2.237246665 | K136: 3.83780936 | L136: =SUM(D136:INDEX(D136:K136,0,MATCH('RFPR cover'!$C$7,$D$6:$K$6,0))) -> 0.3305222259 | M136: =SUM(D136:K136) -> 0.3305222259
B137: Enduring Value: NWO share of performance | C137: £m nominal | D137: =D134*(1-D122) -> 0.05653783371 | E137: -9.331309327 | F137: 10.27238137 | G137: -2.478864163 | H137: -1.255615501 | I137: -7.061166213 | J137: 3.815909895 | K137: 6.545873974 | L137: =SUM(D137:INDEX(D137:K137,0,MATCH('RFPR cover'!$C$7,$D$6:$K$6,0))) -> 0.5637478659 | M137: =SUM(D137:K137) -> 0.5637478659
B139: Total out(under) performance (including enduring value adjustments)
B140: Customer share of performance | C140: £m nominal | D140: =D124+D136 -> 7.051923468 | E140: =E124+E136 -> -0.3714233826 | F140: 7.768411896 | G140: 7.631653363 | H140: 8.98638407 | I140: 5.9795871 | J140: 5.415666088 | K140: -8.461455367 | L140: =SUM(D140:INDEX(D140:K140,0,MATCH('RFPR cover'!$C$7,$D$6:$K$6,0))) -> 34.00074724 | M140: =SUM(D140:K140) -> 34.00074724
B141: NWO share of performance | C141: £m nominal | D141: =D125+D137 -> 12.02795604 | E141: -0.6335100118 | F141: 13.25001856 | G141: 13.01675942 | H141: 15.32742564 | I141: 10.19894943 | J141: 9.237110125 | K141: -14.4320927 | L141: =SUM(D141:INDEX(D141:K141,0,MATCH('RFPR cover'!$C$7,$D$6:$K$6,0))) -> 57.9926165 | M141: =SUM(D141:K141) -> 57.9926165
B142: Total | C142: £m nominal | D142: =SUM(D140:D141) -> 19.07987951 | E142: =SUM(E140:E141) -> -1.004933394 | F142: 21.01843045 | G142: 20.64841278 | H142: 24.31380971 | I142: 16.17853653 | J142: 14.65277621 | K142: -22.89354807 | L142: =SUM(D142:INDEX(D142:K142,0,MATCH('RFPR cover'!$C$7,$D$6:$K$6,0))) -> 91.99336373 | M142: =SUM(D142:K142) -> 91.99336373
B144: Totex Summary
B146: Total out(under) performance (including enduring value adjustments)
B147: Customer share of performance | C147: £m nominal | D147: =D112+D140 -> 6.229146176 | E147: =E112+E140 -> -6.256790956 | F147: 7.208604011 | G147: 8.71390014 | H147: 11.00768981 | I147: 6.947188773 | J147: 5.95855057 | K147: -7.19585053 | L147: =SUM(D147:INDEX(D147:K147,0,MATCH('RFPR cover'!$C$7,$D$6:$K$6,0))) -> 32.61243799 | M147: =SUM(D147:K147) -> 32.61243799
B148: NWO share of performance | C148: £m nominal | D148: =D113+D141 -> 10.6246043 | E148: -10.671756 | F148: 12.29519472 | G148: 14.8626695 | H148: 18.77502071 | I148: 11.84931765 | J148: 10.16306894 | K148: -12.27344203 | L148: =SUM(D148:INDEX(D148:K148,0,MATCH('RFPR cover'!$C$7,$D$6:$K$6,0))) -> 55.62467779 | M148: =SUM(D148:K148) -> 55.62467779
B149: Total | C149: £m nominal | D149: =SUM(D147:D148) -> 16.85375048 | E149: =SUM(E147:E148) -> -16.92854696 | F149: 19.50379873 | G149: 23.57656964 | H149: 29.78271052 | I149: 18.79650642 | J149: 16.12161951 | K149: -19.46929256 | L149: =SUM(D149:INDEX(D149:K149,0,MATCH('RFPR cover'!$C$7,$D$6:$K$6,0))) -> 88.23711578 | M149: =SUM(D149:K149) -> 88.23711578

Sheet R5 - Output Incentives
A1: R5 - Output Incentives
A2: ='RFPR cover'!C5 -> Cadent-NW
A3: ='RFPR cover'!C7 -> 2021
D5: =IF(D6<='RFPR cover'!$C$7,"Actuals","Forecast") -> Actuals | E5: =IF(E6<='RFPR cover'!$C$7,"Actuals","Forecast") -> Actuals | F5: =IF(F6<='RFPR cover'!$C$7,"Actuals","Forecast") -> Actuals | G5: =IF(G6<='RFPR cover'!$C$7,"Actuals","Forecast") -> Actuals | H5: =IF(H6<='RFPR cover'!$C$7,"Actuals","Forecast") -> Actuals | I5: =IF(I6<='RFPR cover'!$C$7,"Actuals","Forecast") -> Actuals | J5: =IF(J6<='RFPR cover'!$C$7,"Actuals","Forecast") -> Actuals | K5: =IF(K6<='RFPR cover'!$C$7,"Actuals","Forecast") -> Actuals
D6: ='RFPR cover'!$C$13 -> 2014 | E6: =D6+1 -> 2015 | F6: =E6+1 -> 2016 | G6: 2017 | H6: 2018 | I6: 2019 | J6: 2020 | K6: 2021 | L6: ="Cumulative to "&'RFPR cover'!$C$7 -> Cumulative to 2021 | M6: RIIO-1 period
B8: Pre-tax Earned Incentives (Actuals may be updated once all incentives are determined)
B9: These values exclude any inflation, interest or time value of money adjustments
A11: a | B11: =Data!B153 -> Broad Measure of Customer Satisfaction | C11: ='RFPR cover'!$C$14 -> £m 09/10 | D11: 1.404935362 | E11: 1.577567052 | F11: 2.206993411 | G11: 1.822388508 | H11: 1.87761925 | I11: 2.241151963 | J11: 2.522906777 | K11: 2.629982254 | L11: =SUM(D11:INDEX(D11:K11,0,MATCH('RFPR cover'!$C$7,$D$6:$K$6,0))) -> 16.28354458 | M11: =SUM(D11:K11) -> 16.28354458
A12: b | B12: =Data!B154 -> Shrinkage Allowance Revenue Adjustment | C12: ='RFPR cover'!$C$14 -> £m 09/10 | D12: 0.3131986078 | E12: 0.2391988034 | F12: 0.2380250512 | G12: 0.2186221094 | H12: 0.2439428331 | I12: 0.3741698715 | J12: 0.2313675401 | K12: 0.6844959191 | L12: =SUM(D12:INDEX(D12:K12,0,MATCH('RFPR cover'!$C$7,$D$6:$K$6,0))) -> 2.543020736 | M12: 2.543020736
A13: c | B13: =Data!B155 -> Environment Emissions Incentive | C13: ='RFPR cover'!$C$14 -> £m 09/10 | D13: 1.025884196 | E13: 1.070023594 | F13: 1.389152208 | G13: 1.3095389 | H13: 1.193676674 | I13: 1.720997898 | J13: 2.113294498 | K13: 6.006644716 | L13: =SUM(D13:INDEX(D13:K13,0,MATCH('RFPR cover'!$C$7,$D$6:$K$6,0))) -> 15.82921268 | M13: 15.82921268
A14: d | B14: =Data!B156 -> Discretionary Reward Scheme | C14: ='RFPR cover'!$C$14 -> £m 09/10 | D14: 0.05504838363 | E14: 0.05504838363 | F14: 0.03494566364 | G14: 0.03494566364 | H14: 0.03494566364 | I14: 0 | J14: 0 | K14: 0 | L14: =SUM(D14:INDEX(D14:K14,0,MATCH('RFPR cover'!$C$7,$D$6:$K$6,0))) -> 0.2149337582 | M14: 0.2149337582
A15: e | B15: =Data!B157 -> NTS Exit Capacity | C15: ='RFPR cover'!$C$14 -> £m 09/10 | D15: 0.77003263 | E15: 1.22241958 | F15: 4.26616612 | G15: 3.40721755 | H15: 3.99126061 | I15: 3.79614248 | J15: 3.92579799 | K15: 2.93803986 | L15: =SUM(D15:INDEX(D15:K15,0,MATCH('RFPR cover'!$C$7,$D$6:$K$6,0))) -> 24.31707682 | M15: 24.31707682
A16: f | B16: =Data!B158 ->  | C16: ='RFPR cover'!$C$14 -> £m 09/10 | D16: 0 | E16: 0 | F16: 0 | G16: 0 | H16: 0 | I16: 0 | J16: 0 | K16: 0 | L16: =SUM(D16:INDEX(D16:K16,0,MATCH('RFPR cover'!$C$7,$D$6:$K$6,0))) -> 0 | M16: 0
A17: g | B17: =Data!B159 ->  | C17: ='RFPR cover'!$C$14 -> £m 09/10 | D17: 0 | E17: 0 | F17: 0 | G17: 0 | H17: 0 | I17: 0 | J17: 0 | K17: 0 | L17: =SUM(D17:INDEX(D17:K17,0,MATCH('RFPR cover'!$C$7,$D$6:$K$6,0))) -> 0 | M17: 0
B18: Earned Incentive revenue | C18: ='RFPR cover'!$C$14 -> £m 09/10 | D18: =SUM(D11:D17) -> 3.56909918 | E18: =SUM(E11:E17) -> 4.164257413 | F18: 8.135282453 | G18: 6.792712731 | H18: 7.341445032 | I18: 8.132462212 | J18: 8.793366805 | K18: 12.25916275 | L18: =SUM(L11:L17) -> 59.18778858 | M18: =SUM(M11:M17) -> 59.18778858
B20: Additional Commentary
A21: =A11 -> a
A22: =A12 -> b
A23: =A13 -> c
A24: =A14 -> d
A25: =A15 -> e
A26: f
A27: g
B30: Post-tax Earned Incentives (Actuals may be updated once all incentives are determined)
B32: Year tax paid when incentive recognised in allowed revenue. Select from dropdown in Column C
B33: -
B34: t+0
B35: t+1
B36: t+2
B37: t+3
A39: =A11 -> a | B39: =$B$11&"" -> Broad Measure of Customer Satisfaction | C39: ='RFPR cover'!$C$14 -> £m 09/10 | D39: =D51 -> 1.12394829 | E39: =E51 -> 1.262053642 | F39: 1.787664663 | G39: 1.476134691 | H39: 1.520871593 | I39: 1.81533309 | J39: 2.043554489 | K39: 2.130285626 | L39: =SUM(D39:INDEX(D39:K39,0,MATCH('RFPR cover'!$C$7,$D$6:$K$6,0))) -> 13.15984608 | M39: =SUM(D39:K39) -> 13.15984608
A40: b | B40: =$B$12&"" -> Shrinkage Allowance Revenue Adjustment | C40: ='RFPR cover'!$C$14 -> £m 09/10 | D40: =D55 -> 0.2505588862 | E40: =E55 -> 0.1913590427 | F40: 0.1928002915 | G40: 0.1770839086 | H40: 0.1975936948 | I40: 0.3030775959 | J40: 0.1874077075 | K40: 0.5544416945 | L40: =SUM(D40:INDEX(D40:K40,0,MATCH('RFPR cover'!$C$7,$D$6:$K$6,0))) -> 2.054322822 | M40: 2.054322822
A41: c | B41: =$B$13&"" -> Environment Emissions Incentive | C41: ='RFPR cover'!$C$14 -> £m 09/10 | D41: =D59 -> 0.820707357 | E41: =E59 -> 0.8560188755 | F41: 1.125213288 | G41: 1.060726509 | H41: 0.9668781063 | I41: 1.394008297 | J41: 1.711768544 | K41: 4.86538222 | L41: =SUM(D41:INDEX(D41:K41,0,MATCH('RFPR cover'!$C$7,$D$6:$K$6,0))) -> 12.8007032 | M41: 12.8007032
A42: d | B42: =$B$14&"" -> Discretionary Reward Scheme | C42: ='RFPR cover'!$C$14 -> £m 09/10 | D42: =D63 -> 0.0440387069 | E42: =E63 -> 0.0440387069 | F42: 0.02830598755 | G42: 0.02830598755 | H42: 0.02830598755 | I42: 0 | J42: 0 | K42: 0 | L42: =SUM(D42:INDEX(D42:K42,0,MATCH('RFPR cover'!$C$7,$D$6:$K$6,0))) -> 0.1729953765 | M42: 0.1729953765
A43: e | B43: =$B$15&"" -> NTS Exit Capacity | C43: ='RFPR cover'!$C$14 -> £m 09/10 | D43: =D67 -> 0.616026104 | E43: =E67 -> 0.977935664 | F43: 3.455594557 | G43: 2.759846216 | H43: 3.232921094 | I43: 3.074875409 | J43: 3.179896372 | K43: 2.379812287 | L43: =SUM(D43:INDEX(D43:K43,0,MATCH('RFPR cover'!$C$7,$D$6:$K$6,0))) -> 19.6769077 | M43: 19.6769077
A44: f | B44: =$B$16&"" ->  | C44: ='RFPR cover'!$C$14 -> £m 09/10 | D44: =D71 -> 0 | E44: =E71 -> 0 | F44: 0 | G44: 0 | H44: 0 | I44: 0 | J44: 0 | K44: 0 | L44: =SUM(D44:INDEX(D44:K44,0,MATCH('RFPR cover'!$C$7,$D$6:$K$6,0))) -> 0 | M44: 0
A45: g | B45: =$B$17&"" ->  | C45: ='RFPR cover'!$C$14 -> £m 09/10 | D45: =D75 -> 0 | E45: =E75 -> 0 | F45: 0 | G45: 0 | H45: 0 | I45: 0 | J45: 0 | K45: 0 | L45: =SUM(D45:INDEX(D45:K45,0,MATCH('RFPR cover'!$C$7,$D$6:$K$6,0))) -> 0 | M45: 0
B46: Post-Tax Earned Incentive revenue | C46: ='RFPR cover'!$C$14 -> £m 09/10 | D46: =SUM(D39:D45) -> 2.855279344 | E46: =SUM(E39:E45) -> 3.331405931 | F46: 6.589578787 | G46: 5.502097312 | H46: 5.946570476 | I46: 6.587294392 | J46: 7.122627112 | K46: 9.929921827 | L46: 47.86477518 | M46: 47.86477518
A49: =$A$11 -> a | B49: =INDEX($B$11:$B$15,MATCH($A49,$A$11:$A$15,0),0)&"" -> Broad Measure of Customer Satisfaction | C49: ='RFPR cover'!$C$14 -> £m 09/10 | D49: =INDEX($D$11:$K$17,MATCH($A49,$A$11:$A$17,0),0) -> 1.404935362 | E49: =INDEX($D$11:$K$17,MATCH($A49,$A$11:$A$17,0),0) -> 1.577567052 | F49: 2.206993411 | G49: 1.822388508 | H49: 1.87761925 | I49: 2.241151963 | J49: 2.522906777 | K49: 2.629982254 | L49: =SUM(D49:INDEX(D49:K49,0,MATCH('RFPR cover'!$C$7,$D$6:$K$6,0))) -> 16.28354458 | M49: =SUM(D49:K49) -> 16.28354458
B50: Corporation tax rate when recognised in allowed revenue | C50: t+2 | D50: =IF($C50=$B$33,$B$33,INDEX(Data!$G$14:$G$30,MATCH('R5 - Output Incentives'!D$6+RIGHT('R5 - Output Incentives'!$C50,2),Data!$C$14:$C$30,0),0)) -> 0.2 | E50: =IF($C50=$B$33,$B$33,INDEX(Data!$G$14:$G$30,MATCH('R5 - Output Incentives'!E$6+RIGHT('R5 - Output Incentives'!$C50,2),Data!$C$14:$C$30,0),0)) -> 0.2 | F50: =IF($C50=$B$33,$B$33,INDEX(Data!$G$14:$G$30,MATCH('R5 - Output Incentives'!F$6+RIGHT('R5 - Output Incentives'!$C50,2),Data!$C$14:$C$30,0),0)) -> 0.19 | G50: =IF($C50=$B$33,$B$33,INDEX(Data!$G$14:$G$30,MATCH('R5 - Output Incentives'!G$6+RIGHT('R5 - Output Incentives'!$C50,2),Data!$C$14:$C$30,0),0)) -> 0.19 | H50: =IF($C50=$B$33,$B$33,INDEX(Data!$G$14:$G$30,MATCH('R5 - Output Incentives'!H$6+RIGHT('R5 - Output Incentives'!$C50,2),Data!$C$14:$C$30,0),0)) -> 0.19 | I50: =IF($C50=$B$33,$B$33,INDEX(Data!$G$14:$G$30,MATCH('R5 - Output Incentives'!I$6+RIGHT('R5 - Output Incentives'!$C50,2),Data!$C$14:$C$30,0),0)) -> 0.19 | J50: =IF($C50=$B$33,$B$33,INDEX(Data!$G$14:$G$30,MATCH('R5 - Output Incentives'!J$6+RIGHT('R5 - Output Incentives'!$C50,2),Data!$C$14:$C$30,0),0)) -> 0.19 | K50: =IF($C50=$B$33,$B$33,INDEX(Data!$G$14:$G$30,MATCH('R5 - Output Incentives'!K$6+RIGHT('R5 - Output Incentives'!$C50,2),Data!$C$14:$C$30,0),0)) -> 0.19
B51: Post tax | D51: =IFERROR(D49*(1-D50),0) -> 1.12394829 | E51: =IFERROR(E49*(1-E50),0) -> 1.262053642 | F51: 1.787664663 | G51: 1.476134691 | H51: 1.520871593 | I51: 1.81533309 | J51: 2.043554489 | K51: 2.130285626 | L51: =SUM(D51:INDEX(D51:K51,0,MATCH('RFPR cover'!$C$7,$D$6:$K$6,0))) -> 13.15984608 | M51: =SUM(D51:K51) -> 13.15984608
A53: =$A$12 -> b | B53: =INDEX($B$11:$B$15,MATCH($A53,$A$11:$A$15,0),0)&"" -> Shrinkage Allowance Revenue Adjustment | C53: ='RFPR cover'!$C$14 -> £m 09/10 | D53: =INDEX($D$11:$K$17,MATCH($A53,$A$11:$A$17,0),0) -> 0.3131986078 | E53: =INDEX($D$11:$K$17,MATCH($A53,$A$11:$A$17,0),0) -> 0.2391988034 | F53: 0.2380250512 | G53: 0.2186221094 | H53: 0.2439428331 | I53: 0.3741698715 | J53: 0.2313675401 | K53: 0.6844959191 | L53: =SUM(D53:INDEX(D53:K53,0,MATCH('RFPR cover'!$C$7,$D$6:$K$6,0))) -> 2.543020736 | M53: =SUM(D53:K53) -> 2.543020736
B54: Corporation tax rate when recognised in allowed revenue | C54: t+2 | D54: =IF($C54=$B$33,$B$33,INDEX(Data!$G$14:$G$30,MATCH('R5 - Output Incentives'!D$6+RIGHT('R5 - Output Incentives'!$C54,2),Data!$C$14:$C$30,0),0)) -> 0.2 | E54: =IF($C54=$B$33,$B$33,INDEX(Data!$G$14:$G$30,MATCH('R5 - Output Incentives'!E$6+RIGHT('R5 - Output Incentives'!$C54,2),Data!$C$14:$C$30,0),0)) -> 0.2 | F54: =IF($C54=$B$33,$B$33,INDEX(Data!$G$14:$G$30,MATCH('R5 - Output Incentives'!F$6+RIGHT('R5 - Output Incentives'!$C54,2),Data!$C$14:$C$30,0),0)) -> 0.19 | G54: =IF($C54=$B$33,$B$33,INDEX(Data!$G$14:$G$30,MATCH('R5 - Output Incentives'!G$6+RIGHT('R5 - Output Incentives'!$C54,2),Data!$C$14:$C$30,0),0)) -> 0.19 | H54: =IF($C54=$B$33,$B$33,INDEX(Data!$G$14:$G$30,MATCH('R5 - Output Incentives'!H$6+RIGHT('R5 - Output Incentives'!$C54,2),Data!$C$14:$C$30,0),0)) -> 0.19 | I54: =IF($C54=$B$33,$B$33,INDEX(Data!$G$14:$G$30,MATCH('R5 - Output Incentives'!I$6+RIGHT('R5 - Output Incentives'!$C54,2),Data!$C$14:$C$30,0),0)) -> 0.19 | J54: =IF($C54=$B$33,$B$33,INDEX(Data!$G$14:$G$30,MATCH('R5 - Output Incentives'!J$6+RIGHT('R5 - Output Incentives'!$C54,2),Data!$C$14:$C$30,0),0)) -> 0.19 | K54: =IF($C54=$B$33,$B$33,INDEX(Data!$G$14:$G$30,MATCH('R5 - Output Incentives'!K$6+RIGHT('R5 - Output Incentives'!$C54,2),Data!$C$14:$C$30,0),0)) -> 0.19
B55: Post tax | D55: =IFERROR(D53*(1-D54),0) -> 0.2505588862 | E55: =IFERROR(E53*(1-E54),0) -> 0.1913590427 | F55: 0.1928002915 | G55: 0.1770839086 | H55: 0.1975936948 | I55: 0.3030775959 | J55: 0.1874077075 | K55: 0.5544416945 | L55: =SUM(D55:INDEX(D55:K55,0,MATCH('RFPR cover'!$C$7,$D$6:$K$6,0))) -> 2.054322822 | M55: =SUM(D55:K55) -> 2.054322822
A57: =$A$13 -> c | B57: =INDEX($B$11:$B$15,MATCH($A57,$A$11:$A$15,0),0)&"" -> Environment Emissions Incentive | C57: ='RFPR cover'!$C$14 -> £m 09/10 | D57: =INDEX($D$11:$K$17,MATCH($A57,$A$11:$A$17,0),0) -> 1.025884196 | E57: =INDEX($D$11:$K$17,MATCH($A57,$A$11:$A$17,0),0) -> 1.070023594 | F57: 1.389152208 | G57: 1.3095389 | H57: 1.193676674 | I57: 1.720997898 | J57: 2.113294498 | K57: 6.006644716 | L57: =SUM(D57:INDEX(D57:K57,0,MATCH('RFPR cover'!$C$7,$D$6:$K$6,0))) -> 15.82921268 | M57: =SUM(D57:K57) -> 15.82921268
B58: Corporation tax rate when recognised in allowed revenue | C58: t+2 | D58: =IF($C58=$B$33,$B$33,INDEX(Data!$G$14:$G$30,MATCH('R5 - Output Incentives'!D$6+RIGHT('R5 - Output Incentives'!$C58,2),Data!$C$14:$C$30,0),0)) -> 0.2 | E58: =IF($C58=$B$33,$B$33,INDEX(Data!$G$14:$G$30,MATCH('R5 - Output Incentives'!E$6+RIGHT('R5 - Output Incentives'!$C58,2),Data!$C$14:$C$30,0),0)) -> 0.2 | F58: =IF($C58=$B$33,$B$33,INDEX(Data!$G$14:$G$30,MATCH('R5 - Output Incentives'!F$6+RIGHT('R5 - Output Incentives'!$C58,2),Data!$C$14:$C$30,0),0)) -> 0.19 | G58: =IF($C58=$B$33,$B$33,INDEX(Data!$G$14:$G$30,MATCH('R5 - Output Incentives'!G$6+RIGHT('R5 - Output Incentives'!$C58,2),Data!$C$14:$C$30,0),0)) -> 0.19 | H58: =IF($C58=$B$33,$B$33,INDEX(Data!$G$14:$G$30,MATCH('R5 - Output Incentives'!H$6+RIGHT('R5 - Output Incentives'!$C58,2),Data!$C$14:$C$30,0),0)) -> 0.19 | I58: =IF($C58=$B$33,$B$33,INDEX(Data!$G$14:$G$30,MATCH('R5 - Output Incentives'!I$6+RIGHT('R5 - Output Incentives'!$C58,2),Data!$C$14:$C$30,0),0)) -> 0.19 | J58: =IF($C58=$B$33,$B$33,INDEX(Data!$G$14:$G$30,MATCH('R5 - Output Incentives'!J$6+RIGHT('R5 - Output Incentives'!$C58,2),Data!$C$14:$C$30,0),0)) -> 0.19 | K58: =IF($C58=$B$33,$B$33,INDEX(Data!$G$14:$G$30,MATCH('R5 - Output Incentives'!K$6+RIGHT('R5 - Output Incentives'!$C58,2),Data!$C$14:$C$30,0),0)) -> 0.19
B59: Post tax | D59: =IFERROR(D57*(1-D58),0) -> 0.820707357 | E59: =IFERROR(E57*(1-E58),0) -> 0.8560188755 | F59: 1.125213288 | G59: 1.060726509 | H59: 0.9668781063 | I59: 1.394008297 | J59: 1.711768544 | K59: 4.86538222 | L59: =SUM(D59:INDEX(D59:K59,0,MATCH('RFPR cover'!$C$7,$D$6:$K$6,0))) -> 12.8007032 | M59: =SUM(D59:K59) -> 12.8007032
A61: =$A$14 -> d | B61: =INDEX($B$11:$B$15,MATCH($A61,$A$11:$A$15,0),0)&"" -> Discretionary Reward Scheme | C61: ='RFPR cover'!$C$14 -> £m 09/10 | D61: =INDEX($D$11:$K$17,MATCH($A61,$A$11:$A$17,0),0) -> 0.05504838363 | E61: =INDEX($D$11:$K$17,MATCH($A61,$A$11:$A$17,0),0) -> 0.05504838363 | F61: 0.03494566364 | G61: 0.03494566364 | H61: 0.03494566364 | I61: 0 | J61: 0 | K61: 0 | L61: =SUM(D61:INDEX(D61:K61,0,MATCH('RFPR cover'!$C$7,$D$6:$K$6,0))) -> 0.2149337582 | M61: =SUM(D61:K61) -> 0.2149337582
B62: Corporation tax rate when recognised in allowed revenue | C62: t+2 | D62: =IF($C62=$B$33,$B$33,INDEX(Data!$G$14:$G$30,MATCH('R5 - Output Incentives'!D$6+RIGHT('R5 - Output Incentives'!$C62,2),Data!$C$14:$C$30,0),0)) -> 0.2 | E62: =IF($C62=$B$33,$B$33,INDEX(Data!$G$14:$G$30,MATCH('R5 - Output Incentives'!E$6+RIGHT('R5 - Output Incentives'!$C62,2),Data!$C$14:$C$30,0),0)) -> 0.2 | F62: =IF($C62=$B$33,$B$33,INDEX(Data!$G$14:$G$30,MATCH('R5 - Output Incentives'!F$6+RIGHT('R5 - Output Incentives'!$C62,2),Data!$C$14:$C$30,0),0)) -> 0.19 | G62: =IF($C62=$B$33,$B$33,INDEX(Data!$G$14:$G$30,MATCH('R5 - Output Incentives'!G$6+RIGHT('R5 - Output Incentives'!$C62,2),Data!$C$14:$C$30,0),0)) -> 0.19 | H62: =IF($C62=$B$33,$B$33,INDEX(Data!$G$14:$G$30,MATCH('R5 - Output Incentives'!H$6+RIGHT('R5 - Output Incentives'!$C62,2),Data!$C$14:$C$30,0),0)) -> 0.19 | I62: =IF($C62=$B$33,$B$33,INDEX(Data!$G$14:$G$30,MATCH('R5 - Output Incentives'!I$6+RIGHT('R5 - Output Incentives'!$C62,2),Data!$C$14:$C$30,0),0)) -> 0.19 | J62: =IF($C62=$B$33,$B$33,INDEX(Data!$G$14:$G$30,MATCH('R5 - Output Incentives'!J$6+RIGHT('R5 - Output Incentives'!$C62,2),Data!$C$14:$C$30,0),0)) -> 0.19 | K62: =IF($C62=$B$33,$B$33,INDEX(Data!$G$14:$G$30,MATCH('R5 - Output Incentives'!K$6+RIGHT('R5 - Output Incentives'!$C62,2),Data!$C$14:$C$30,0),0)) -> 0.19
B63: Post tax | D63: =IFERROR(D61*(1-D62),0) -> 0.0440387069 | E63: =IFERROR(E61*(1-E62),0) -> 0.0440387069 | F63: 0.02830598755 | G63: 0.02830598755 | H63: 0.02830598755 | I63: 0 | J63: 0 | K63: 0 | L63: =SUM(D63:INDEX(D63:K63,0,MATCH('RFPR cover'!$C$7,$D$6:$K$6,0))) -> 0.1729953765 | M63: =SUM(D63:K63) -> 0.1729953765
A65: =$A$15 -> e | B65: =INDEX($B$11:$B$15,MATCH($A65,$A$11:$A$15,0),0)&"" -> NTS Exit Capacity | C65: ='RFPR cover'!$C$14 -> £m 09/10 | D65: =INDEX($D$11:$K$17,MATCH($A65,$A$11:$A$17,0),0) -> 0.77003263 | E65: =INDEX($D$11:$K$17,MATCH($A65,$A$11:$A$17,0),0) -> 1.22241958 | F65: 4.26616612 | G65: 3.40721755 | H65: 3.99126061 | I65: 3.79614248 | J65: 3.92579799 | K65: 2.93803986 | L65: =SUM(D65:INDEX(D65:K65,0,MATCH('RFPR cover'!$C$7,$D$6:$K$6,0))) -> 24.31707682 | M65: =SUM(D65:K65) -> 24.31707682
B66: Corporation tax rate when recognised in allowed revenue | C66: t+2 | D66: =IF($C66=$B$33,$B$33,INDEX(Data!$G$14:$G$30,MATCH('R5 - Output Incentives'!D$6+RIGHT('R5 - Output Incentives'!$C66,2),Data!$C$14:$C$30,0),0)) -> 0.2 | E66: =IF($C66=$B$33,$B$33,INDEX(Data!$G$14:$G$30,MATCH('R5 - Output Incentives'!E$6+RIGHT('R5 - Output Incentives'!$C66,2),Data!$C$14:$C$30,0),0)) -> 0.2 | F66: =IF($C66=$B$33,$B$33,INDEX(Data!$G$14:$G$30,MATCH('R5 - Output Incentives'!F$6+RIGHT('R5 - Output Incentives'!$C66,2),Data!$C$14:$C$30,0),0)) -> 0.19 | G66: =IF($C66=$B$33,$B$33,INDEX(Data!$G$14:$G$30,MATCH('R5 - Output Incentives'!G$6+RIGHT('R5 - Output Incentives'!$C66,2),Data!$C$14:$C$30,0),0)) -> 0.19 | H66: =IF($C66=$B$33,$B$33,INDEX(Data!$G$14:$G$30,MATCH('R5 - Output Incentives'!H$6+RIGHT('R5 - Output Incentives'!$C66,2),Data!$C$14:$C$30,0),0)) -> 0.19 | I66: =IF($C66=$B$33,$B$33,INDEX(Data!$G$14:$G$30,MATCH('R5 - Output Incentives'!I$6+RIGHT('R5 - Output Incentives'!$C66,2),Data!$C$14:$C$30,0),0)) -> 0.19 | J66: =IF($C66=$B$33,$B$33,INDEX(Data!$G$14:$G$30,MATCH('R5 - Output Incentives'!J$6+RIGHT('R5 - Output Incentives'!$C66,2),Data!$C$14:$C$30,0),0)) -> 0.19 | K66: =IF($C66=$B$33,$B$33,INDEX(Data!$G$14:$G$30,MATCH('R5 - Output Incentives'!K$6+RIGHT('R5 - Output Incentives'!$C66,2),Data!$C$14:$C$30,0),0)) -> 0.19
B67: Post tax | D67: =IFERROR(D65*(1-D66),0) -> 0.616026104 | E67: =IFERROR(E65*(1-E66),0) -> 0.977935664 | F67: 3.455594557 | G67: 2.759846216 | H67: 3.232921094 | I67: 3.074875409 | J67: 3.179896372 | K67: 2.379812287 | L67: =SUM(D67:INDEX(D67:K67,0,MATCH('RFPR cover'!$C$7,$D$6:$K$6,0))) -> 19.6769077 | M67: =SUM(D67:K67) -> 19.6769077
A69: =$A$16 -> f | B69: =INDEX($B$11:$B$17,MATCH($A69,$A$11:$A$17,0),0)&"" ->  | C69: ='RFPR cover'!$C$14 -> £m 09/10 | D69: =INDEX($D$11:$K$17,MATCH($A69,$A$11:$A$17,0),0) -> 0 | E69: =INDEX($D$11:$K$17,MATCH($A69,$A$11:$A$17,0),0) -> 0 | F69: 0 | G69: 0 | H69: 0 | I69: 0 | J69: 0 | K69: 0 | L69: =SUM(D69:INDEX(D69:K69,0,MATCH('RFPR cover'!$C$7,$D$6:$K$6,0))) -> 0 | M69: =SUM(D69:K69) -> 0
B70: Corporation tax rate when recognised in allowed revenue | C70: t+2 | D70: =IF($C70=$B$33,$B$33,INDEX(Data!$G$14:$G$30,MATCH('R5 - Output Incentives'!D$6+RIGHT('R5 - Output Incentives'!$C70,2),Data!$C$14:$C$30,0),0)) -> 0.2 | E70: =IF($C70=$B$33,$B$33,INDEX(Data!$G$14:$G$30,MATCH('R5 - Output Incentives'!E$6+RIGHT('R5 - Output Incentives'!$C70,2),Data!$C$14:$C$30,0),0)) -> 0.2 | F70: =IF($C70=$B$33,$B$33,INDEX(Data!$G$14:$G$30,MATCH('R5 - Output Incentives'!F$6+RIGHT('R5 - Output Incentives'!$C70,2),Data!$C$14:$C$30,0),0)) -> 0.19 | G70: =IF($C70=$B$33,$B$33,INDEX(Data!$G$14:$G$30,MATCH('R5 - Output Incentives'!G$6+RIGHT('R5 - Output Incentives'!$C70,2),Data!$C$14:$C$30,0),0)) -> 0.19 | H70: =IF($C70=$B$33,$B$33,INDEX(Data!$G$14:$G$30,MATCH('R5 - Output Incentives'!H$6+RIGHT('R5 - Output Incentives'!$C70,2),Data!$C$14:$C$30,0),0)) -> 0.19 | I70: =IF($C70=$B$33,$B$33,INDEX(Data!$G$14:$G$30,MATCH('R5 - Output Incentives'!I$6+RIGHT('R5 - Output Incentives'!$C70,2),Data!$C$14:$C$30,0),0)) -> 0.19 | J70: =IF($C70=$B$33,$B$33,INDEX(Data!$G$14:$G$30,MATCH('R5 - Output Incentives'!J$6+RIGHT('R5 - Output Incentives'!$C70,2),Data!$C$14:$C$30,0),0)) -> 0.19 | K70: =IF($C70=$B$33,$B$33,INDEX(Data!$G$14:$G$30,MATCH('R5 - Output Incentives'!K$6+RIGHT('R5 - Output Incentives'!$C70,2),Data!$C$14:$C$30,0),0)) -> 0.19
B71: Post tax | D71: =IFERROR(D69*(1-D70),0) -> 0 | E71: =IFERROR(E69*(1-E70),0) -> 0 | F71: 0 | G71: 0 | H71: 0 | I71: 0 | J71: 0 | K71: 0 | L71: =SUM(D71:INDEX(D71:K71,0,MATCH('RFPR cover'!$C$7,$D$6:$K$6,0))) -> 0 | M71: =SUM(D71:K71) -> 0
A73: g | B73: =INDEX($B$11:$B$17,MATCH($A73,$A$11:$A$17,0),0)&"" ->  | C73: ='RFPR cover'!$C$14 -> £m 09/10 | D73: =INDEX($D$11:$K$17,MATCH($A73,$A$11:$A$17,0),0) -> 0 | E73: =INDEX($D$11:$K$17,MATCH($A73,$A$11:$A$17,0),0) -> 0 | F73: 0 | G73: 0 | H73: 0 | I73: 0 | J73: 0 | K73: 0 | L73: =SUM(D73:INDEX(D73:K73,0,MATCH('RFPR cover'!$C$7,$D$6:$K$6,0))) -> 0 | M73: =SUM(D73:K73) -> 0
B74: Corporation tax rate when recognised in allowed revenue | C74: t+2 | D74: =IF($C74=$B$33,$B$33,INDEX(Data!$G$14:$G$30,MATCH('R5 - Output Incentives'!D$6+RIGHT('R5 - Output Incentives'!$C74,2),Data!$C$14:$C$30,0),0)) -> 0.2 | E74: =IF($C74=$B$33,$B$33,INDEX(Data!$G$14:$G$30,MATCH('R5 - Output Incentives'!E$6+RIGHT('R5 - Output Incentives'!$C74,2),Data!$C$14:$C$30,0),0)) -> 0.2 | F74: =IF($C74=$B$33,$B$33,INDEX(Data!$G$14:$G$30,MATCH('R5 - Output Incentives'!F$6+RIGHT('R5 - Output Incentives'!$C74,2),Data!$C$14:$C$30,0),0)) -> 0.19 | G74: =IF($C74=$B$33,$B$33,INDEX(Data!$G$14:$G$30,MATCH('R5 - Output Incentives'!G$6+RIGHT('R5 - Output Incentives'!$C74,2),Data!$C$14:$C$30,0),0)) -> 0.19 | H74: =IF($C74=$B$33,$B$33,INDEX(Data!$G$14:$G$30,MATCH('R5 - Output Incentives'!H$6+RIGHT('R5 - Output Incentives'!$C74,2),Data!$C$14:$C$30,0),0)) -> 0.19 | I74: =IF($C74=$B$33,$B$33,INDEX(Data!$G$14:$G$30,MATCH('R5 - Output Incentives'!I$6+RIGHT('R5 - Output Incentives'!$C74,2),Data!$C$14:$C$30,0),0)) -> 0.19 | J74: =IF($C74=$B$33,$B$33,INDEX(Data!$G$14:$G$30,MATCH('R5 - Output Incentives'!J$6+RIGHT('R5 - Output Incentives'!$C74,2),Data!$C$14:$C$30,0),0)) -> 0.19 | K74: =IF($C74=$B$33,$B$33,INDEX(Data!$G$14:$G$30,MATCH('R5 - Output Incentives'!K$6+RIGHT('R5 - Output Incentives'!$C74,2),Data!$C$14:$C$30,0),0)) -> 0.19
B75: Post tax | D75: =IFERROR(D73*(1-D74),0) -> 0 | E75: =IFERROR(E73*(1-E74),0) -> 0 | F75: 0 | G75: 0 | H75: 0 | I75: 0 | J75: 0 | K75: 0 | L75: =SUM(D75:INDEX(D75:K75,0,MATCH('RFPR cover'!$C$7,$D$6:$K$6,0))) -> 0 | M75: =SUM(D75:K75) -> 0
B77: Impact on Allowed Revenue within RIIO-1
B78: This table shows the impact on allowed revenue in the relevant year - with actuals (subject to determination) and forecasts thereafter.
B79: The cells above the allowed revenue indicate the year of performance
C81: Performance Year | D81: =IF($C50=$B$33,D$6,IF(D$6-RIGHT($C50,1)<$D$6,"Pre-RIIO",D$6-RIGHT($C50,1))) -> Pre-RIIO | E81: Pre-RIIO | F81: 2014 | G81: 2015 | H81: 2016 | I81: 2017 | J81: 2018 | K81: 2019
A82: =A11 -> a | B82: =B11&"" -> Broad Measure of Customer Satisfaction | C82: £m nominal | D82: 0 | E82: 0 | F82: 1.63912743 | G82: 1.87660533 | H82: 2.65364278 | I82: 2.23814816 | J82: 2.39227489 | K82: 2.94270212
C84: Performance Year | D84: =IF($C54=$B$33,D$6,IF(D$6-RIGHT($C54,1)<$D$6,"Pre-RIIO",D$6-RIGHT($C54,1))) -> Pre-RIIO | E84: Pre-RIIO | F84: 2014 | G84: 2015 | H84: 2016 | I84: 2017 | J84: 2018 | K84: 2019
A85: =A12 -> b | B85: =B12&"" -> Shrinkage Allowance Revenue Adjustment | C85: £m nominal | D85: 0 | E85: 0 | F85: 0.3517037 | G85: 0.28098376 | H85: 0.28266306 | I85: 0.26518375 | J85: 0.31080759 | K85: 0.47945819
C87: Performance Year | D87: =IF($C58=$B$33,D$6,IF(D$6-RIGHT($C58,1)<$D$6,"Pre-RIIO",D$6-RIGHT($C58,1))) -> Pre-RIIO | E87: Pre-RIIO | F87: 2014 | G87: 2015 | H87: 2016 | I87: 2017 | J87: 2018 | K87: 2019
A88: =A13 -> c | B88: =B13&"" -> Environment Emissions Incentive | C88: £m nominal | D88: 0 | E88: 0 | F88: 1.15200788 | G88: 1.25694298 | H88: 1.64966677 | I88: 1.58844154 | J88: 1.52086358 | K88: 2.2052725
C90: Performance Year | D90: =IF($C62=$B$33,D$6,IF(D$6-RIGHT($C62,1)<$D$6,"Pre-RIIO",D$6-RIGHT($C62,1))) -> Pre-RIIO | E90: Pre-RIIO | F90: 2014 | G90: 2015 | H90: 2016 | I90: 2017 | J90: 2018 | K90: 2019
A91: =A14 -> d | B91: =B14&"" -> Discretionary Reward Scheme | C91: £m nominal | D91: 0.22725563 | E91: 0.20503508 | F91: 0 | G91: 0.13521424 | H91: 0 | I91: 0 | J91: 0.14136035 | K91: 0
C93: Performance Year | D93: =IF($C66=$B$33,D$6,IF(D$6-RIGHT($C66,1)<$D$6,"Pre-RIIO",D$6-RIGHT($C66,1))) -> Pre-RIIO | E93: =IF($C66=$B$33,E$6,IF(E$6-RIGHT($C66,1)<$D$6,"Pre-RIIO",E$6-RIGHT($C66,1))) -> Pre-RIIO | F93: 2014 | G93: 2015 | H93: 2016 | I93: 2017 | J93: 2018 | K93: 2019
A94: =A15 -> e | B94: =B15&"" -> NTS Exit Capacity | C94: £m nominal | D94: 0 | E94: 0 | F94: 1.02513876 | G94: 1.63169191 | H94: 5.85845003 | I94: 4.82761353 | J94: 5.82973615 | K94: 5.62942756
C96: Performance Year | D96: =IF($C70=$B$33,D$6,IF(D$6-RIGHT($C70,1)<$D$6,"Pre-RIIO",D$6-RIGHT($C70,1))) -> Pre-RIIO | E96: =IF($C70=$B$33,E$6,IF(E$6-RIGHT($C70,1)<$D$6,"Pre-RIIO",E$6-RIGHT($C70,1))) -> Pre-RIIO | F96: 2014 | G96: 2015 | H96: 2016 | I96: 2017 | J96: 2018 | K96: 2019
A97: =A16 -> f | B97: =B16&"" ->  | C97: £m nominal | D97: 0 | E97: 0 | F97: 0 | G97: 0 | H97: 0 | I97: 0 | J97: 0 | K97: 0
C99: Performance Year | D99: =IF($C74=$B$33,D$6,IF(D$6-RIGHT($C74,1)<$D$6,"Pre-RIIO",D$6-RIGHT($C74,1))) -> Pre-RIIO | E99: =IF($C74=$B$33,E$6,IF(E$6-RIGHT($C74,1)<$D$6,"Pre-RIIO",E$6-RIGHT($C74,1))) -> Pre-RIIO | F99: 2014 | G99: 2015 | H99: 2016 | I99: 2017 | J99: 2018 | K99: 2019
A100: =A17 -> g | B100: =B17&"" ->  | C100: £m nominal | D100: 0 | E100: 0 | F100: 0 | G100: 0 | H100: 0 | I100: 0 | J100: 0 | K100: 0
B102: Total Impact on Allowed Revenue | C102: £m nominal | D102: =SUM(D82,D85,D88,D91,D94,D97,D100) -> 0.22725563 | E102: =SUM(E82,E85,E88,E91,E94,E97,E100) -> 0.20503508 | F102: 4.16797777 | G102: 5.18143822 | H102: =SUM(H82,H85,H88,H91,H94,H97,H100) -> 10.44442264 | I102: 8.91938698 | J102: 10.19504256 | K102: 11.25686037
B104: Additional Commentary
A105: =A82 -> a
A106: =A85 -> b
A107: =A88 -> c
A108: =A91 -> d
A109: =A94 -> e
A110: =A97 -> f
A111: =A100 -> g

Sheet R6 - Innovation
A1: R6 - Innovation
A2: ='RFPR cover'!C5 -> Cadent-NW
A3: ='RFPR cover'!C7 -> 2021 | B3: ='R1 - RoRE'!B3 -> 
D5: =IF(D6<='RFPR cover'!$C$7,"Actuals","Forecast") -> Actuals | E5: =IF(E6<='RFPR cover'!$C$7,"Actuals","Forecast") -> Actuals | F5: =IF(F6<='RFPR cover'!$C$7,"Actuals","Forecast") -> Actuals | G5: =IF(G6<='RFPR cover'!$C$7,"Actuals","Forecast") -> Actuals | H5: =IF(H6<='RFPR cover'!$C$7,"Actuals","Forecast") -> Actuals | I5: =IF(I6<='RFPR cover'!$C$7,"Actuals","Forecast") -> Actuals | J5: =IF(J6<='RFPR cover'!$C$7,"Actuals","Forecast") -> Actuals | K5: =IF(K6<='RFPR cover'!$C$7,"Actuals","Forecast") -> Actuals
D6: ='RFPR cover'!$C$13 -> 2014 | E6: =D6+1 -> 2015 | F6: =E6+1 -> 2016 | G6: 2017 | H6: 2018 | I6: 2019 | J6: 2020 | K6: 2021
B8: Network Innovation Allowance
B9: Eligible NIA expenditure and Bid Preparation costs | C9: £m nominal | D9: 0.69832304 | E9: 1.87749757 | F9: 2.34507387 | G9: 1.87 | H9: 1.80114264 | I9: 1.192169677 | J9: 1.492537677 | K9: 1.93
B10: Unrecoverable Expenditure (eg not conforming to technical requirements) | C10: £m nominal | D10: 0 | E10: 0 | F10: 0 | G10: 0 | H10: 0 | I10: 0 | J10: 0 | K10: 0
B11: Company Compulsory Contribution (including % contribution funded by licensee) | C11: £m nominal | D11: 0.07020962 | E11: 0.18774976 | F11: 0.23450739 | G11: 0.18925 | H11: 0.18011426 | I11: 0.1192169677 | J11: 0.1492537677 | K11: 0.193
B12: Allowed NIA adjustment | C12: £m nominal | D12: =D9-D10-D11 -> 0.62811342 | E12: =E9-E10-E11 -> 1.68974781 | F12: 2.11056648 | G12: 1.68075 | H12: 1.62102838 | I12: 1.072952709 | J12: 1.343283909 | K12: 1.737
B14: Low Carbon Networks Fund
B15: Second Tier and Discretionary (as per latest Revenue RRP) | C15: £m nominal | D15: 0 | E15: 0 | F15: 0 | G15: 0 | H15: 0 | I15: 0 | J15: 0 | K15: 0
B16: First Tier Funding Mechanism (as per latest Revenue RRP) | C16: £m nominal | D16: 0 | E16: 0 | F16: 0 | G16: 0 | H16: 0 | I16: 0 | J16: 0 | K16: 0
B17: Low Carbon Networks Fund revenue adjustment | C17: £m nominal | D17: =D15-D16 -> 0 | E17: =E15-E16 -> 0 | F17: 0 | G17: 0 | H17: 0 | I17: 0 | J17: 0 | K17: 0
B19: Network Innovation Competition
B20: Awarded NIC funding actually spent or forecast to be spent | C20: £m nominal | D20: 0 | E20: 0.2290546254 | F20: 0.1999233751 | G20: 1.529165316 | H20: 1.244444791 | I20: 0.9850033 | J20: 1.150785179 | K20: 1.07
B21: Company Compulsory Contribution (including % contribution funded by licensee) | C21: £m nominal | D21: 0 | E21: 0 | F21: 0.05225962657 | G21: 0.1475064508 | H21: 0.10663901 | I21: 0.1276023488 | J21: 0.1739457508 | K21: 0.08651987419
B23: Successful Delivery Rewards | C23: £m nominal | D23: 0 | E23: 0 | F23: 0 | G23: 0 | H23: 0 | I23: 0.05210021654 | J23: 0 | K23: 0
B27: RoRE Inputs
B28: Network innovation | C28: ='RFPR cover'!$C$14 -> £m 09/10 | D28: =(SUM(D10,D11,D21)-D23)/Data!C34 -> 0.06017851882 | E28: =(SUM(E10,E11,E21)-E23)/Data!D34 -> 0.1578317527 | F28: =(SUM(F10,F11,F21)-F23)/Data!E34 -> 0.2385003406 | G28: =(SUM(G10,G11,G21)-G23)/Data!F34 -> 0.2742004631 | H28: =(SUM(H10,H11,H21)-H23)/Data!G34 -> 0.2250639953 | I28: =(SUM(I10,I11,I21)-I23)/Data!H34 -> 0.1482978103 | J28: =(SUM(J10,J11,J21)-J23)/Data!I34 -> 0.2399370721 | K28: =(SUM(K10,K11,K21)-K23)/Data!J34 -> 0.205023557

Sheet R7 - Financing
A1: R7 - Financing
A2: ='RFPR cover'!C5 -> Cadent-NW
A3: ='RFPR cover'!C7 -> 2021 | B3: ='R1 - RoRE'!B3 -> 
D5: Actuals | E5: Actuals | F5: Actuals | G5: Actuals | H5: Actuals | I5: Actuals | J5: Actuals | K5: Actuals
D6: ='RFPR cover'!$C$13 -> 2014 | E6: =D6+1 -> 2015 | F6: =E6+1 -> 2016 | G6: 2017 | H6: 2018 | I6: 2019 | J6: 2020 | K6: 2021 | L6: ="Cumulative to "&'RFPR cover'!$C$7 -> Cumulative to 2021 | M6: RIIO-1 period
B8: Net Interest Per Statutory Accounts | C8: £m nominal | D8: 190 | E8: 202 | F8: 157 | G8: 1009.9592 | H8: 144.5319051 | I8: 146.4870987 | J8: 158.5290155 | K8: 124.1933551
B10: Reconciliation with Statutory Accounts
B11: Interest not qualifying for corporation tax relief | C11: £m nominal | D11: 0 | E11: 0 | F11: 0 | G11: 0 | H11: 0 | I11: 0 | J11: 0 | K11: 0
B12: Fair value adjustments (e.g. losses on derivatives) | C12: £m nominal | D12: 0 | E12: 0 | F12: 0 | G12: -12 | H12: 6.412367166 | I12: 8 | J12: 11.87911731 | K12: 12.94153078
B13: Dividends on preference shares | C13: £m nominal | D13: 0 | E13: 0 | F13: 0 | G13: 0 | H13: 0 | I13: 0 | J13: 0 | K13: 0
B14: Costs of early redemption on long term debt | C14: £m nominal | D14: 0 | E14: -18.13 | F14: 0 | G14: 0 | H14: 0 | I14: 0 | J14: -4.376 | K14: 0
B15: Swap Termination Costs paid | C15: £m nominal | D15: -0.3169319263 | E15: 0 | F15: 0 | G15: 0 | H15: 0 | I15: 0 | J15: 0 | K15: 0
B16: Movements relating to pension fund liabilities reported within net interest | C16: £m nominal | D16: 11.22097399 | E16: 0 | F16: 0 | G16: -1 | H16: 1.99999996 | I16: 14 | J16: 17 | K16: 21
B17: Debt issuance expenses (inc. amortisation to discounts that had previously benefitted from a tax deduction) | C17: £m nominal | D17: 0 | E17: 0 | F17: 0 | G17: -1 | H17: -2.750202954 | I17: -2.77 | J17: -4.566235503 | K17: -3.06516627
B18: Commitment fees for undrawn liquidity backup lines | C18: £m nominal | D18: 0 | E18: 0 | F18: 0 | G18: -1 | H18: -2.509623794 | I18: -2.15 | J18: -2.13299451 | K18: -1.95211823
B19: Less: Capitalised Interest | C19: £m nominal | D19: 0 | E19: 11.8 | F19: 0 | G19: 1 | H19: 0 | I19: 0 | J19: 0 | K19: 0
B20: Less: Unwind of discount | C20: £m nominal | D20: -1.234323432 | E20: -4.32 | F20: -4 | G20: -2 | H20: -2.16435857 | I20: -0.3 | J20: -0.30747824 | K20: -0.30747824
B21: Less: Term Debt / Letter of Credit / RCF Fees | C21: £m nominal | D21: 0 | E21: 0 | F21: 0 | G21: 0 | H21: -1.610053807 | I21: -1.63 | J21: -1.62036365 | K21: -2.26122196
B22: losses/(gains) on derivative financial instruments | C22: £m nominal | D22: 10.14087222 | E22: -15.53 | F22: -6 | G22: 0 | H22: 0 | I22: -18 | J22: -15.03896397 | K22: -0.7278433283
B23: Less: Commitment Commission and other | C23: £m nominal | D23: 0 | E23: -1.24 | F23: 0 | G23: 0 | H23: 0 | I23: 0 | J23: 0 | K23: 0
B24: Economic cost of changing capital structure in FY16/17 | C24: £m nominal | D24: 0 | E24: 0 | F24: 0 | G24: 0 | H24: 0 | I24: 0 | J24: 0 | K24: 0
B25: Less: Debt cap disallowance | C25: £m nominal | D25: -2.319436911 | E25: 0 | F25: 0 | G25: 0 | H25: 0 | I25: 0 | J25: 0 | K25: 0
B26: Less finance costs relating to metering | C26: £m nominal | D26: -15 | E26: -12 | F26: -11 | G26: 0 | H26: 0 | I26: 0 | J26: 0 | K26: 0
B27: Less finance costs relating to other three networks | C27: £m nominal | D27: -144.3783447 | E27: -121.2 | F27: -101 | G27: -118.673208 | H27: -109.7407811 | I27: -109.495548 | J27: -121.7673684 | K27: -114.5193759
B28: Exceptional costs of early redemption on long term debt- TBC | C28: £m nominal | D28: 0 | E28: 0 | F28: 0 | G28: -833 | H28: 0 | I28: 0 | J28: 0 | K28: 0
B29: Rounding | C29: £m nominal | D29: -1.010654234 | E29: 0.36 | F29: 0 | G29: -1.452200429 | H29: 0.3216586914 | I29: 0 | J29: 0 | K29: 0
B30: Net Interest Per Regulatory (RIIO-1) Definition | C30: £m nominal | D30: =SUM(D8,D11:D29) -> 47.10215501 | E30: 41.74 | F30: 35 | G30: 40.833792 | H30: 34.49091065 | I30: 34.14155068 | J30: 37.59872848 | K30: 35.30168198
B31: Forecast new financing/refinancing Net Interest costs | C31: £m nominal
B32: Net Interest including forecast new financing/refinancing costs | C32: £m nominal | D32: =SUM(D30:D31) -> 47.10215501 | E32: =SUM(E30:E31) -> 41.74 | F32: 35 | G32: 40.833792 | H32: 34.49091065 | I32: 34.14155068 | J32: 37.59872848 | K32: 35.30168198
B33: External Net Interest | C33: £m nominal | D33: 43.8708068 | E33: 38.68 | F33: 33 | G33: 27.446528 | H33: 34.49091065 | I33: 34.14155068 | J33: 37.59872848 | K33: 35.30168198
B34: Intra-company Net Interest | C34: £m nominal | D34: 3.231348206 | E34: 3.06 | F34: 2 | G34: 13.387264 | H34: 0 | I34: 0 | J34: 0 | K34: 0
D35: =IF(ABS(D32-SUM(D33:D34))<'RFPR cover'!$F$14,"OK","ERROR") -> OK | E35: =IF(ABS(E32-SUM(E33:E34))<'RFPR cover'!$F$14,"OK","ERROR") -> OK | F35: =IF(ABS(F32-SUM(F33:F34))<'RFPR cover'!$F$14,"OK","ERROR") -> OK | G35: =IF(ABS(G32-SUM(G33:G34))<'RFPR cover'!$F$14,"OK","ERROR") -> OK | H35: =IF(ABS(H32-SUM(H33:H34))<'RFPR cover'!$F$14,"OK","ERROR") -> OK | I35: =IF(ABS(I32-SUM(I33:I34))<'RFPR cover'!$F$14,"OK","ERROR") -> OK | J35: =IF(ABS(J32-SUM(J33:J34))<'RFPR cover'!$F$14,"OK","ERROR") -> OK | K35: =IF(ABS(K32-SUM(K33:K34))<'RFPR cover'!$F$14,"OK","ERROR") -> OK
B37: Memo: Net interest (RIIO-1) Definition that relates to non-cash principal inflation accretion on bonds and loans | C37: £m nominal | D37: 0 | E37: 0 | F37: 0 | G37: 0 | H37: 7.422858576 | I37: 5.978685235 | J37: 6.63506169 | K37: 2.801057897
B39: Less inflation in interest charge | C39: £m nominal | D39: 43.98463426 | E39: 29.87121504 | F39: 15.16975367 | G39: 28.94174902 | H39: 55.11769414 | I39: 51.00066895 | J39: 46.72581755 | K39: 25.30710095
B41: Assumed Regulatory finance cost at actual gearing | C41: £m nominal | D41: =D32-D39 -> 3.117520754 | E41: 11.86878496 | F41: 19.83024633 | G41: 11.89204298 | H41: -20.62678349 | I41: -16.85911827 | J41: -9.12708907 | K41: 9.994581033
B43: Financial Year Average RPI (RPIt) | C43: Index | D43: 1.166689067 | E43: 1.189556327 | F43: 1.202375711 | G43: 1.228139614 | H43: 1.274096595 | I43: 1.313027479 | J43: 1.347017848 | K43: 1.363354915
B45: Assumed regulatory finance cost at actual gearing | C45: £m 09/10 | D45: =D41/D43 -> 2.67210934 | E45: 9.977488829 | F45: 16.49255399 | G45: 9.682973211 | H45: -16.18934041 | I45: -12.83988229 | J45: -6.775774414 | K45: 7.330872483 | L45: =SUM(D45:INDEX(D45:K45,0,MATCH('RFPR cover'!$C$7,$D$6:$K$6,0))) -> 10.35100074 | M45: =SUM(D45:K45) -> 10.35100074
B47: Adjustments to be applied to Assumed Finance cost for performance assessment
B48: Add back Debt Issuance expenses | C48: £m nominal | D48: 0 | E48: 0 | F48: 0 | G48: 1 | H48: 2.750202954 | I48: 2.77 | J48: 4.566235503 | K48: 3.06516627 | L48: =SUM(D48:INDEX(D48:K48,0,MATCH('RFPR cover'!$C$7,$D$6:$K$6,0))) -> 14.15160473 | M48: =SUM(D48:K48) -> 14.15160473
B49: New/refinanced debt issuance expenses | C49: £m nominal | L49: =SUM(D49:INDEX(D49:K49,0,MATCH('RFPR cover'!$C$7,$D$6:$K$6,0))) -> 0 | M49: =SUM(D49:K49) -> 0
B50: Costs of early redemption on long term debt (excluding exceptional costs of buy backs associated with M&A activity) | C50: £m nominal | D50: 0 | E50: 18.13 | F50: 0 | G50: 0 | H50: 0 | I50: 0 | J50: 4.376 | K50: 0 | L50: =SUM(D50:INDEX(D50:K50,0,MATCH('RFPR cover'!$C$7,$D$6:$K$6,0))) -> 22.506 | M50: =SUM(D50:K50) -> 22.506
B51: Add accrual for inflation accretion on index-linked swaps (if applicable) | C51: £m nominal | D51: 0 | E51: 0 | F51: 0 | G51: 0 | H51: 0 | I51: 0 | J51: 0 | K51: 0 | L51: =SUM(D51:INDEX(D51:K51,0,MATCH('RFPR cover'!$C$7,$D$6:$K$6,0))) -> 0 | M51: 0
B52: Correction of debt issuance expense add back above | C52: £m nominal | D52: 0 | E52: 0 | F52: 0 | G52: -0.6567477153 | H52: -1.811514265 | I52: -1.828953683 | J52: 0 | K52: 0 | L52: =SUM(D52:INDEX(D52:K52,0,MATCH('RFPR cover'!$C$7,$D$6:$K$6,0))) -> -4.297215664 | M52: -4.297215664
B53: Correction of inflation strip calculation | C53: £m nominal | D53: 7.227440822 | E53: 3.114583784 | F53: 1.048841208 | G53: 0.7509989348 | H53: 2.507052284 | I53: 4.967062691 | J53: 0 | K53: 0 | L53: =SUM(D53:INDEX(D53:K53,0,MATCH('RFPR cover'!$C$7,$D$6:$K$6,0))) -> 19.61597972 | M53: 19.61597972
B54: Other Adjustments [please specify] | C54: £m nominal | D54: 0 | E54: 0 | F54: 0 | G54: 0 | H54: 0 | I54: 0 | J54: 0 | K54: 0 | L54: =SUM(D54:INDEX(D54:K54,0,MATCH('RFPR cover'!$C$7,$D$6:$K$6,0))) -> 0 | M54: 0
B55: Other Adjustments [please specify] | C55: £m nominal | D55: 0 | E55: 0 | F55: 0 | G55: 0 | H55: 0 | I55: 0 | J55: 0 | K55: 0 | L55: =SUM(D55:INDEX(D55:K55,0,MATCH('RFPR cover'!$C$7,$D$6:$K$6,0))) -> 0 | M55: 0
B57: Total Adjustments to be applied for performance assessment (at actual gearing) | C57: £m nominal | D57: =SUM(D48:D55) -> 7.227440822 | E57: =SUM(E48:E55) -> 21.24458378 | F57: 1.048841208 | G57: 1.094251219 | H57: 3.445740973 | I57: 5.908109008 | J57: 8.942235503 | K57: 3.06516627 | L57: =SUM(D57:INDEX(D57:K57,0,MATCH('RFPR cover'!$C$7,$D$6:$K$6,0))) -> 51.97636879 | M57: 51.97636879
B58: Total Adjustments to be applied for performance assessment (at actual gearing) | C58: £m 09/10 | D58: =D57/D43 -> 6.194830331 | E58: =E57/E43 -> 17.85924996 | F58: 0.8723073815 | G58: 0.8909827575 | H58: 2.704458192 | I58: 4.499608046 | J58: 6.638542701 | K58: 2.248252627 | L58: =SUM(D58:INDEX(D58:K58,0,MATCH('RFPR cover'!$C$7,$D$6:$K$6,0))) -> 41.908232 | M58: =SUM(D58:K58) -> 41.908232
B61: Cost of Debt out(under)performance at notional gearing
B62: Performance against allowance is impacted by deviating from notional levels of gearing
B64: Notional Gearing | C64: % | D64: 0.65 | E64: 0.65 | F64: 0.65 | G64: 0.65 | H64: 0.65 | I64: 0.65 | J64: 0.65 | K64: 0.65
B65: Actual Gearing | C65: % | D65: 0.5618498756 | E65: 0.6253860141 | F65: 0.6083958923 | G65: 0.6107673795 | H65: 0.6240583354 | I65: 0.6288356 | J65: 0.6339802005 | K65: 0.6282636889
B67: Assumed regulatory finance cost at actual gearing | C67: £m nominal | D67: =D41 -> 3.117520754 | E67: 11.86878496 | F67: 19.83024633 | G67: 11.89204298 | H67: -20.62678349 | I67: -16.85911827 | J67: -9.12708907 | K67: 9.994581033
B68: Adjustment to regulatory finance cost relating to variance from notional gearing | C68: £m nominal | D68: =((D64-D65)/D65)*D67 -> 0.4891161396 | E68: =((E64-E65)/E65)*E67 -> 0.4671324577 | F68: 1.356057319 | G68: 0.7638849498 | H68: -0.8574408337 | I68: -0.5674187691 | J68: -0.2306288702 | K68: 0.3457868513
B69: Assumed regulatory finance cost at notional gearing | C69: £m nominal | D69: =SUM(D67:D68) -> 3.606636893 | E69: =SUM(E67:E68) -> 12.33591742 | F69: 21.18630364 | G69: 12.65592793 | H69: -21.48422432 | I69: -17.42653704 | J69: -9.35771794 | K69: 10.34036788
B71: Assumed regulatory finance cost at notional gearing | C71: £m 09/10 | D71: =D69/D43 -> 3.091343696 | E71: 10.37018352 | F71: 17.62036895 | G71: 10.30495864 | H71: -16.86231987 | I71: -13.27202768 | J71: -6.946988827 | K71: 7.584501855 | L71: =SUM(D71:INDEX(D71:K71,0,MATCH('RFPR cover'!$C$7,$D$6:$K$6,0))) -> 11.8900203 | M71: =SUM(D71:K71) -> 11.8900203
B72: Adjustments to be applied for performance assessment (at notional gearing) | C72: £m 09/10 | D72: =D58*((D64-D65)/D65)+D58 -> 7.166753772 | E72: =E58*((E64-E65)/E65)+E58 -> 18.56215555 | F72: 0.9319586228 | G72: 0.9482150026 | H72: 2.81688061 | I72: 4.651049065 | J72: 6.806289459 | K72: 2.326036398 | L72: =SUM(D72:INDEX(D72:K72,0,MATCH('RFPR cover'!$C$7,$D$6:$K$6,0))) -> 44.20933848 | M72: =SUM(D72:K72) -> 44.20933848
B74: Cost of Debt Allowance
B76: The latest published PCFM contains the allowed cost of debt rate (%) for the reporting year.
B77: However, the RAV does not account for the reporting year actual expenditure and additional allowances.
B78: Consequently the return element of revenue does not currently reflect the monetary allowance. This is updated and available in the forthcoming annual iteration process.
B79: To address this timing issue, network operators should forecast the allowance in row 79 (linked to R9-RAV table) - which will be trued-up over time.
B81: Cost of Debt Allowance as per latest published PCFM (prior year AIP) | C81: £m 09/10 | D81: 32.28796513 | E81: 29.91590688 | F81: 28.01344961 | G81: 26.21376345 | H81: 24.52530665 | I81: 21.14816184 | J81: 17.5541368 | K81: 12.19361177
B82: Forecast revised Cost of Debt Allowance | C82: £m 09/10 | D82: 32.26857703 | E82: 29.85424983 | F82: 27.97060403 | G82: 26.19135786 | H82: 24.468923 | I82: 21.05773328 | J82: 17.48441417 | K82: 12.20033789 | L82: =SUM(D82:INDEX(D82:K82,0,MATCH('RFPR cover'!$C$7,$D$6:$K$6,0))) -> 191.4961971 | M82: =SUM(D82:K82) -> 191.4961971
B85: Out(under) performance
B87: Pre-Tax performance
B88: Pre-Tax Cost of Debt out(under)performance at actual gearing | C88: £m 09/10 | D88: =D82-D45-D58 -> 23.40163736 | E88: =E82-E45-E58 -> 2.01751104 | F88: 10.60574266 | G88: 15.61740189 | H88: 37.95380522 | I88: 29.39800752 | J88: 17.62164588 | K88: 2.621212782 | L88: =SUM(D88:INDEX(D88:K88,0,MATCH('RFPR cover'!$C$7,$D$6:$K$6,0))) -> 139.2369644 | M88: =SUM(D88:K88) -> 139.2369644
B90: Pre-Tax Cost of Debt out(under)performance at notional gearing | C90: £m 09/10 | D90: =D82-D71-D72 -> 22.01047956 | E90: =E82-E71-E72 -> 0.9219107533 | F90: 9.418276454 | G90: 14.93818422 | H90: 38.51436225 | I90: 29.67871189 | J90: 17.62511354 | K90: 2.289799639 | L90: =SUM(D90:INDEX(D90:K90,0,MATCH('RFPR cover'!$C$7,$D$6:$K$6,0))) -> 135.3968383 | M90: =SUM(D90:K90) -> 135.3968383
B92: Pre-Tax Impact on out(under) performance relating to deviating from notional levels of gearing | C92: £m 09/10 | D92: =D88-D90 -> 1.391157797 | E92: 1.095600286 | F92: 1.187466206 | G92: 0.6792176785 | H92: -0.5605570378 | I92: -0.2807043684 | J92: -0.003467654876 | K92: 0.3314131427 | L92: =SUM(D92:INDEX(D92:K92,0,MATCH('RFPR cover'!$C$7,$D$6:$K$6,0))) -> 3.840126049 | M92: =SUM(D92:K92) -> 3.840126049

Sheet R8 - Net Debt
A1: R8 - Net Debt
A2: ='RFPR cover'!C5 -> Cadent-NW
A3: ='RFPR cover'!C7 -> 2021 | B3: ='R1 - RoRE'!B3 -> 
D5: Actuals | E5: Actuals | F5: Actuals | G5: Actuals | H5: Actuals | I5: Actuals | J5: Actuals | K5: Actuals
D6: ='RFPR cover'!$C$13 -> 2014 | E6: =D6+1 -> 2015 | F6: =E6+1 -> 2016 | G6: 2017 | H6: 2018 | I6: 2019 | J6: 2020 | K6: 2021
B8: Opening Cash, short term deposits and overdrafts (per Balance Sheet) | C8: £m nominal | D8: -513 | E8: =D10 -> -257.707346 | F8: =E10 -> -230.1982394 | G8: -67.9508992 | H8: -38.99908504 | I8: -164.53 | J8: -328.34 | K8: -335.7
B10: Closing Cash, short term deposits and overdrafts (per Balance Sheet) | C10: £m nominal | D10: -257.707346 | E10: -230.1982394 | F10: -67.9508992 | G10: -38.99908504 | H10: -164.53 | I10: -328.34 | J10: -335.7 | K10: -826.1311099
B11: External borrowings, bonds, external loans and finance leases (+ve) | C11: £m nominal | D11: 4571.476896 | E11: 4673.721831 | F11: 4702.326905 | G11: 1709.99927 | H11: 6330.666466 | I11: 6684.145364 | J11: 6966.039115 | K11: 7428.536388
B12: Loans from other group companies (+ve) | C12: £m nominal | D12: 0 | E12: 0 | F12: 0 | G12: 4311.999103 | H12: 0 | I12: 0 | J12: 0 | K12: 0
B13: Loans to other group companies (-ve) | C13: £m nominal | D13: 1196.767773 | E13: 1241.041197 | F13: 955.0530052 | G13: 0 | H13: 0 | I13: 0 | J13: 0 | K13: 0
B14: Other amounts due to/(from) group companies per Balance Sheet | C14: £m nominal | D14: 0 | E14: 0 | F14: 0 | G14: 0 | H14: 0 | I14: 0 | J14: 0 | K14: 0
B15: Guarantees given on behalf of other group companies (per Notes to the Accounts) (+ve) | C15: £m nominal | D15: 0 | E15: 0 | F15: 0 | G15: 0 | H15: 40.91 | I15: 41.91 | J15: 69.77177841 | K15: 63.90936975
B16: Currency SWAPS | C16: £m nominal | D16: 0 | E16: 0 | F16: 0 | G16: 0 | H16: -14.64129762 | I16: -4.74769047 | J16: -26.10001358 | K16: 48.30554987
B17: Interest rate SWAPS | C17: £m nominal | D17: 0 | E17: 0 | F17: 0 | G17: 0 | H17: 0 | I17: 0 | J17: 0 | K17: 0
B18: Inflation-linked SWAPS | C18: £m nominal | D18: 0 | E18: 0 | F18: 0 | G18: 0 | H18: 5.52257724 | I18: 34.6005225 | J18: 58.91810593 | K18: 66.74754241
B19: Interest Rate Forward Contracts | C19: £m nominal | D19: 0 | E19: 0 | F19: 0 | G19: 0 | H19: 0 | I19: 0 | J19: 0 | K19: 0
B20: Foreign exchange forward rate contracts | C20: £m nominal | D20: 0 | E20: 0 | F20: 0 | G20: 0 | H20: 0 | I20: 0 | J20: 0.10614119 | K20: 0.18268189
B21: Other swaps, forward rate contracts & OTC options | C21: £m nominal | D21: -205.5373223 | E21: -281.5647887 | F21: -320.4290109 | G21: 0 | H21: 0 | I21: 0 | J21: 0 | K21: 0
B22: Other derivatives including exchange traded futures and options | C22: £m nominal | D22: 0 | E22: 0 | F22: 0 | G22: 0 | H22: 0 | I22: 0 | J22: 0 | K22: 0
B23: Total Debt per Statutory Accounts | C23: £m nominal | D23: =SUM(D10:D22) -> 5305 | E23: =SUM(E10:E22) -> 5403 | F23: 5269 | G23: 5982.999288 | H23: 6197.927745 | I23: 6427.568196 | J23: 6733.035127 | K23: 6781.550422
B25: Conversion to Regulatory (RIIO-1) Definition of Net Debt
B26: Unamortised Issue Costs | C26: £m nominal | D26: 0 | E26: 0 | F26: 0 | G26: 11.76529318 | H26: 11.70151638 | I26: 10.9 | J26: 14.36155951 | K26: 14.46798041
B27: Fixed asset investments not readily convertible to cash | C27: £m nominal | D27: 0 | E27: 0 | F27: 0 | G27: 0 | H27: 0 | I27: 0 | J27: 0 | K27: 0
B28: Preference shares | C28: £m nominal | D28: 0 | E28: 0 | F28: 0 | G28: 0 | H28: 0 | I28: 0 | J28: 0 | K28: 0
B29: Long term loans (Not for benefit of regulated business or distribution in nature) | C29: £m nominal | D29: 0 | E29: 0 | F29: 0 | G29: 0 | H29: 0 | I29: 0 | J29: 0 | K29: 0
B30: Currency debt amount to reflect ultimate sterling liability | C30: £m nominal | D30: 0 | E30: 0 | F30: 0 | G30: -9.751834099 | H30: -5.349132993 | I30: -1.74 | J30: -17.71589001 | K30: -19.38318735
B31: Impact of fair value adjustments | C31: £m nominal | D31: 42.38373791 | E31: -6.4196 | F31: -28.08 | G31: -317.4531761 | H31: -309.3773091 | I31: -301.32 | J31: -283.6513216 | K31: -271.1186843
B32: Accrued Interest | C32: £m nominal | D32: -50.67388744 | E32: -49.606 | F32: -50.31 | G32: -40.00826043 | H32: -40.91080948 | I32: -41.91 | J32: -44.0983376 | K32: -44.03666732
B33: ILS financial exposure; direct offset with row 180 (no net impact on regulatory net debt) | C33: £m nominal | D33: 0 | E33: 0 | F33: 0 | G33: 0 | H33: -5.52257724 | I33: -34.600522 | J33: -58.91810593 | K33: -66.74754241
B34: ILS financial exposure; financials presented up to FY16/17 relate to pre segmentation derivatives. Post FY 17/18 balances relate to accretions on instrument B2.1. | C34: £m nominal | D34: 57.6433474 | E34: 34.4324 | F34: 26.325 | G34: 0 | H34: 0 | I34: 27.848262 | J34: 37.16919655 | K34: 42.9211242
B35: Less: Derivatives excluding Cross currency | C35: £m nominal | D35: 0 | E35: 0 | F35: 0 | G35: 0 | H35: 0 | I35: 0 | J35: 0 | K35: 0
B36: Net debt relating to Metering | C36: £m nominal | D36: -299 | E36: -430 | F36: -332 | G36: 0 | H36: 0 | I36: 0 | J36: 0 | K36: 0
B37: Net debt relating to other three networks | C37: £m nominal | D37: -3761.768026 | E37: -3684.1649 | F37: -3634.285 | G37: -4283.755407 | H37: -4449.928686 | I37: -4640.004326 | J37: -4855.310055 | K37: -4905.587077
B38: 9. IFRS 16 Lease Liabilities | C38: £m nominal | D38: 0 | E38: 0 | F38: 0 | G38: 0 | H38: 0 | I38: 0 | J38: -25.67344081 | K38: -19.87270243
B39: 10. [Insert adjustment as necessary] | C39: £m nominal | D39: 0 | E39: 0 | F39: 0 | G39: 0 | H39: 0 | I39: 0 | J39: 0 | K39: 0
B40: 11. [Insert adjustment as necessary] | C40: £m nominal | D40: 0 | E40: 0 | F40: 0 | G40: 0 | H40: 0 | I40: 0 | J40: 0 | K40: 0
B41: 12. [Insert adjustment as necessary] | C41: £m nominal | D41: 0.06 | E41: -0.73 | F41: 0 | G41: -0.03061514993 | H41: 0.05999985 | I41: 0 | J41: 0 | K41: 0
B42: Total Net Debt per Regulatory (RIIO-1) definition | C42: £m nominal | D42: =SUM(D23,D26:D41) -> 1293.645172 | E42: =SUM(E23,E26:E41) -> 1266.5119 | F42: 1250.65 | G42: 1343.765288 | H42: 1398.600747 | I42: 1446.74161 | J42: 1499.198733 | K42: 1512.193666
B43: Forecast new debt/refinancing | C43: £m nominal
B44: Regulatory Net Debt including forecast new debt/refinancing | C44: £m nominal | D44: =SUM(D42:D43) -> 1293.645172 | E44: =SUM(E42:E43) -> 1266.5119 | F44: 1250.65 | G44: 1343.765288 | H44: 1398.600747 | I44: 1446.74161 | J44: 1499.198733 | K44: 1512.193666
D45: =IF(ABS(D42-'[3]R8a - Net Debt input'!T334)<'RFPR cover'!$F$14,"OK","Error") -> OK | E45: =IF(ABS(E42-'[3]R8a - Net Debt input'!U334)<'RFPR cover'!$F$14,"OK","Error") -> OK | F45: =IF(ABS(F42-'[3]R8a - Net Debt input'!V334)<'RFPR cover'!$F$14,"OK","Error") -> OK | G45: =IF(ABS(G42-'[3]R8a - Net Debt input'!W334)<'RFPR cover'!$F$14,"OK","Error") -> OK | H45: =IF(ABS(H42-'[3]R8a - Net Debt input'!X334)<'RFPR cover'!$F$14,"OK","Error") -> OK | I45: =IF(ABS(I42-'[3]R8a - Net Debt input'!Y334)<'RFPR cover'!$F$14,"OK","Error") -> OK | J45: =IF(ABS(J42-'[3]R8a - Net Debt input'!Z334)<'RFPR cover'!$F$14,"OK","Error") -> OK | K45: =IF(ABS(K42-'[3]R8a - Net Debt input'!AA334)<'RFPR cover'!$F$14,"OK","Error") -> OK
B47: Opening Regulatory Net Debt including forecast new debt/refinancing | C47: £m nominal | D47: 985.2197088 | E47: =D48 -> 1293.645172 | F47: =E48 -> 1266.5119 | G47: 1250.65 | H47: 1343.765288 | I47: 1398.600747 | J47: 1446.74161 | K47: 1499.198733
B48: Closing Regulatory Net Debt including forecast new debt/refinancing | C48: £m nominal | D48: =D44 -> 1293.645172 | E48: =E44 -> 1266.5119 | F48: =F44 -> 1250.65 | G48: 1343.765288 | H48: 1398.600747 | I48: 1446.74161 | J48: 1499.198733 | K48: 1512.193666
B50: Allocation of net debt (Per regulatory definition. Transmission companies only)
B51: System operator allocation (transmission companies only) | C51: % | D51: 0 | E51: 0 | F51: 0 | G51: 0 | H51: 0 | I51: 0 | J51: 0 | K51: 0
B52: Transmission or distribution allocation | C52: % | D52: =1-D51 -> 1 | E52: =1-E51 -> 1 | F52: 1 | G52: 1 | H52: 1 | I52: 1 | J52: 1 | K52: 1
B54: Average Net Debt (per Regulatory Definition) | C54: £m nominal | D54: =AVERAGE(D47:D48)*D52 -> 1139.43244 | E54: =AVERAGE(E47:E48)*E52 -> 1280.078536 | F54: 1258.58095 | G54: 1297.207644 | H54: 1371.183017 | I54: 1422.671179 | J54: 1472.970171 | K54: 1505.696199
B55: Equity RAV | C55: £m nominal | D55: =D56-D54 -> 888.5691482 | E55: =E56-E54 -> 766.7829337 | F55: 810.1065047 | G55: 826.6904022 | H55: 826.0202562 | I55: 839.718512 | J55: 850.3991868 | K55: 890.9029134
B56: Average RAV | C56: £m nominal | D56: 2028.001588 | E56: 2046.861469 | F56: 2068.687455 | G56: 2123.898046 | H56: 2197.203274 | I56: 2262.389691 | J56: 2323.369358 | K56: 2396.599113
B57: Actual Regulatory Gearing | C57: % | D57: =D54/D56 -> 0.5618498756 | E57: =E54/E56 -> 0.6253860141 | F57: 0.6083958923 | G57: 0.6107673795 | H57: 0.6240583354 | I57: 0.6288356 | J57: 0.6339802005 | K57: 0.6282636889
B58: Notional Gearing | C58: % | D58: 0.65 | E58: 0.65 | F58: 0.65 | G58: 0.65 | H58: 0.65 | I58: 0.65 | J58: 0.65 | K58: 0.65
B59: Gearing Ratio delta | C59: % | D59: =IF(ISBLANK(D23),"n/a",D57-D58) -> -0.08815012439 | E59: -0.0246139859 | F59: -0.04160410766 | G59: -0.03923262049 | H59: -0.02594166462 | I59: -0.02116439996 | J59: -0.01601979955 | K59: -0.02173631111
B61: NPV Neutral assumed Average Net Debt | C61: £m 09/10 | D61: =D63*D57 -> 955.2210744 | E61: 1056.019814 | F61: 1026.678769 | G61: 1034.054752 | H61: 1058.214508 | I61: 1066.601075 | J61: 1079.33519 | K61: 1081.867225
B62: NPV Neutral assumed Equity RAV | C62: £m 09/10 | D62: =D63*(1-D57) -> 744.9147018 | E62: =E63*(1-E57) -> 632.5689776 | F62: 660.8388194 | G62: 658.987127 | H62: 637.4835512 | I62: 629.5514246 | J62: 623.1394127 | K62: 640.1282431
B63: NPV Neutral assumed Average RAV | C63: £m 09/10 | D63: 1700.135776 | E63: 1688.588791 | F63: 1687.517588 | G63: 1693.041879 | H63: 1695.698059 | I63: 1696.152499 | J63: 1702.474603 | K63: 1721.995468
B64: Actual Regulatory Gearing | C64: % | D64: =D61/D63 -> 0.5618498756 | E64: =E61/E63 -> 0.6253860141 | F64: 0.6083958923 | G64: 0.6107673795 | H64: 0.6240583354 | I64: 0.6288356 | J64: 0.6339802005 | K64: 0.6282636889
B65: Notional Gearing | C65: % | D65: 0.65 | E65: 0.65 | F65: 0.65 | G65: 0.65 | H65: 0.65 | I65: 0.65 | J65: 0.65 | K65: 0.65
B66: Gearing Ratio delta | C66: % | D66: =IF(ISBLANK(D23),"n/a",D64-D65) -> -0.08815012439 | E66: -0.0246139859 | F66: -0.04160410766 | G66: -0.03923262049 | H66: -0.02594166462 | I66: -0.02116439996 | J66: -0.01601979955 | K66: -0.02173631111

Sheet R9 - RAV
A1: R9 - Regulatory Asset Value (RAV)
A2: ='RFPR cover'!C5 -> Cadent-NW
A3: ='RFPR cover'!C7 -> 2021
D5: =IF(D6<='RFPR cover'!$C$7-1,"Actuals","Forecast") -> Actuals | E5: =IF(E6<='RFPR cover'!$C$7-1,"Actuals","Forecast") -> Actuals | F5: =IF(F6<='RFPR cover'!$C$7-1,"Actuals","Forecast") -> Actuals | G5: =IF(G6<='RFPR cover'!$C$7-1,"Actuals","Forecast") -> Actuals | H5: =IF(H6<='RFPR cover'!$C$7-1,"Actuals","Forecast") -> Actuals | I5: =IF(I6<='RFPR cover'!$C$7-1,"Actuals","Forecast") -> Actuals | J5: =IF(J6<='RFPR cover'!$C$7-1,"Actuals","Forecast") -> Actuals | K5: =IF(K6<='RFPR cover'!$C$7-1,"Actuals","Forecast") -> Forecast
D6: ='RFPR cover'!$C$13 -> 2014 | E6: =D6+1 -> 2015 | F6: =E6+1 -> 2016 | G6: 2017 | H6: 2018 | I6: 2019 | J6: 2020 | K6: 2021
B8: RAV per latest published PCFM
B9: The latest published PCFM does not account for the impact of the reporting years totex. This will be published in the forthcoming annual iteration process.
B11: Closing RAV per latest published PCFM | C11: ='RFPR cover'!$C$14 -> £m 09/10 | D11: 1729.90934 | E11: 1722.282038 | F11: 1724.281413 | G11: 1729.48908 | H11: 1732.970884 | I11: 1733.936231 | J11: 1742.288838 | K11: 1752.627722
B13: Revised RAV - including forecast totex, allowances and enduring value
B14: Revised adjusted RAV including forecast totex, allowances and enduring value
B16: Opening RAV (before transfers) | C16: ='RFPR cover'!$C$14 -> £m 09/10 | D16: 1742.817669 | E16: =D29 -> 1727.779652 | F16: =E29 -> 1717.237667 | G16: 1724.150855 | H16: 1726.615331 | I16: 1727.842684 | J16: 1724.158255 | K16: 1737.467221
B17: Transfers | C17: ='RFPR cover'!$C$14 -> £m 09/10 | D17: 0 | E17: 0 | F17: 0 | G17: 0 | H17: 0 | I17: 0 | J17: 0 | K17: 0
B18: Opening RAV (after transfers) | C18: ='RFPR cover'!$C$14 -> £m 09/10 | D18: =SUM(D16:D17) -> 1742.817669 | E18: =SUM(E16:E17) -> 1727.779652 | F18: 1717.237667 | G18: 1724.150855 | H18: 1726.615331 | I18: 1727.842684 | J18: 1724.158255 | K18: 1737.467221
B19: Net additions (after disposals) | C19: ='RFPR cover'!$C$14 -> £m 09/10 | D19: 73.32381936 | E19: 80.01875526 | F19: 83.04603129 | G19: 86.29520407 | H19: 89.56546888 | I19: 93.76675668 | J19: 108.0263578 | K19: 122.0453715
B20: Net additions (after disposals) - enduring value adjustment | C20: ='RFPR cover'!$C$14 -> £m 09/10 | D20: -2.129688008 | E20: -3.007277891 | F20: 4.692524725 | G20: -2.755494034 | H20: -2.386127552 | I20: -4.855844153 | J20: 4.512358995 | K20: 7.569737973
B21: Total Net Additions | C21: ='RFPR cover'!$C$14 -> £m 09/10 | D21: =SUM(D19:D20) -> 71.19413136 | E21: 77.01147736 | F21: 87.73855601 | G21: 83.53971004 | H21: 87.17934133 | I21: 88.91091253 | J21: 112.5387168 | K21: 129.6151095
B22: Depreciation | C22: ='RFPR cover'!$C$14 -> £m 09/10 | D22: -86.23214792 | E22: -87.64605741 | F22: -81.04665664 | G22: -81.08753707 | H22: -86.0836649 | I22: -92.82767225 | J22: -99.6678076 | K22: -108.6816917
B23: Depreciation - enduring value adjustment | C23: ='RFPR cover'!$C$14 -> £m 09/10 | D23: 0 | E23: 0.0925951308 | F23: 0.2212886739 | G23: 0.01230260766 | H23: 0.1316772843 | I23: 0.2323302357 | J23: 0.4380567324 | K23: 0.231778412
B24: Total Depreciation | C24: ='RFPR cover'!$C$14 -> £m 09/10 | D24: =SUM(D22:D23) -> -86.23214792 | E24: -87.55346228 | F24: -80.82536797 | G24: -81.07523446 | H24: -85.95198761 | I24: -92.59534201 | J24: -99.22975087 | K24: -108.4499133
B25: [Input other adjustment] | C25: ='RFPR cover'!$C$14 -> £m 09/10 | D25: 0 | E25: 0 | F25: 0 | G25: 0 | H25: 0 | I25: 0 | J25: 0 | K25: 0
B26: [Input other adjustment] | C26: ='RFPR cover'!$C$14 -> £m 09/10 | D26: 0 | E26: 0 | F26: 0 | G26: 0 | H26: 0 | I26: 0 | J26: 0 | K26: 0
B27: [Input other adjustment] | C27: ='RFPR cover'!$C$14 -> £m 09/10 | D27: 0 | E27: 0 | F27: 0 | G27: 0 | H27: 0 | I27: 0 | J27: 0 | K27: 0
B28: Other adjustments | C28: ='RFPR cover'!$C$14 -> £m 09/10 | D28: =SUM(D25:D27) -> 0 | E28: =SUM(E25:E27) -> 0 | F28: 0 | G28: 0 | H28: 0 | I28: 0 | J28: 0 | K28: 0
B29: Adjusted Closing RAV | C29: ='RFPR cover'!$C$14 -> £m 09/10 | D29: =D18+D21+D24+D28 -> 1727.779652 | E29: =E18+E21+E24+E28 -> 1717.237667 | F29: 1724.150855 | G29: 1726.615331 | H29: 1727.842684 | I29: 1724.158255 | J29: 1737.467221 | K29: 1758.632417
B31: Total enduring value and other adjustments | C31: ='RFPR cover'!$C$14 -> £m 09/10 | D31: =(D20+D23+D28) -> -2.129688008 | E31: -2.91468276 | F31: 4.913813399 | G31: -2.743191426 | H31: -2.254450268 | I31: -4.623513918 | J31: 4.950415728 | K31: 7.801516385
B32: CHECK | D32: =IF(D5="Actuals",IF(ABS((D29-SUM($D$31:D31))-D11)<'RFPR cover'!$F$14,"TRUE","FALSE"),"NA") -> TRUE | E32: =IF(E5="Actuals",IF(ABS((E29-SUM($D$31:E31))-E11)<'RFPR cover'!$F$14,"TRUE","FALSE"),"NA") -> TRUE | F32: =IF(F5="Actuals",IF(ABS((F29-SUM($D$31:F31))-F11)<'RFPR cover'!$F$14,"TRUE","FALSE"),"NA") -> TRUE | G32: =IF(G5="Actuals",IF(ABS((G29-SUM($D$31:G31))-G11)<'RFPR cover'!$F$14,"TRUE","FALSE"),"NA") -> TRUE | H32: =IF(H5="Actuals",IF(ABS((H29-SUM($D$31:H31))-H11)<'RFPR cover'!$F$14,"TRUE","FALSE"),"NA") -> TRUE | I32: =IF(I5="Actuals",IF(ABS((I29-SUM($D$31:I31))-I11)<'RFPR cover'!$F$14,"TRUE","FALSE"),"NA") -> TRUE | J32: =IF(J5="Actuals",IF(ABS((J29-SUM($D$31:J31))-J11)<'RFPR cover'!$F$14,"TRUE","FALSE"),"NA") -> TRUE | K32: =IF(K5="Actuals",IF(ABS((K29-SUM($D$31:K31))-K11)<'RFPR cover'!$F$14,"TRUE","FALSE"),"NA") -> NA
B34: Year end RPI | C34: Index | D34: =Data!C$35 -> 1.182989058 | E34: =Data!D$35 -> 1.193648704 | F34: =Data!E$35 -> 1.210796832 | G34: =Data!F$35 -> 1.251118104 | H34: =Data!G$35 -> 1.293061497 | I34: =Data!H$35 -> 1.328516409 | J34: =Data!I$35 -> 1.356092452 | K34: =Data!J$35 -> 1.385754077
B35: Financial Year Average RPI (RPIt) | C35: Index | D35: =Data!C$34 -> 1.166689067 | E35: =Data!D$34 -> 1.189556327 | F35: =Data!E$34 -> 1.202375711 | G35: =Data!F$34 -> 1.228139614 | H35: =Data!G$34 -> 1.274096595 | I35: =Data!H$34 -> 1.313027479 | J35: =Data!I$34 -> 1.347017848 | K35: =Data!J$34 -> 1.363354915
B36: Index for Opening RAV conversion to nominal in yr 1 | C36: Index | D36: =INDEX(Data!$F$14:$F$30,MATCH($D$6-1,Data!$C$14:$C$30,0),0)/IF('RFPR cover'!$C$6="ED1",Data!$E$17,Data!$E$14) -> 1.154486089
B38: Adjusted Closing RAV | C38: £m nominal | D38: =D29*D34 -> 2043.944422 | E38: 2049.778517 | F38: 2087.596393 | G38: 2160.199699 | H38: 2234.206848 | I38: 2290.572533 | J38: 2356.166183 | K38: 2437.032043
B40: Cost of debt | C40: annual real % | D40: =INDEX(Data!$K$73:$T$100,MATCH('RFPR cover'!$C$5,Data!$B$73:$B$100,0),MATCH('R9 - RAV'!D$6,Data!$K$72:$T$72,0)) -> 0.0292 | E40: =INDEX(Data!$K$73:$T$100,MATCH('RFPR cover'!$C$5,Data!$B$73:$B$100,0),MATCH('R9 - RAV'!E$6,Data!$K$72:$T$72,0)) -> 0.0272 | F40: =INDEX(Data!$K$73:$T$100,MATCH('RFPR cover'!$C$5,Data!$B$73:$B$100,0),MATCH('R9 - RAV'!F$6,Data!$K$72:$T$72,0)) -> 0.0255 | G40: =INDEX(Data!$K$73:$T$100,MATCH('RFPR cover'!$C$5,Data!$B$73:$B$100,0),MATCH('R9 - RAV'!G$6,Data!$K$72:$T$72,0)) -> 0.0238 | H40: =INDEX(Data!$K$73:$T$100,MATCH('RFPR cover'!$C$5,Data!$B$73:$B$100,0),MATCH('R9 - RAV'!H$6,Data!$K$72:$T$72,0)) -> 0.0222 | I40: =INDEX(Data!$K$73:$T$100,MATCH('RFPR cover'!$C$5,Data!$B$73:$B$100,0),MATCH('R9 - RAV'!I$6,Data!$K$72:$T$72,0)) -> 0.0191 | J40: =INDEX(Data!$K$73:$T$100,MATCH('RFPR cover'!$C$5,Data!$B$73:$B$100,0),MATCH('R9 - RAV'!J$6,Data!$K$72:$T$72,0)) -> 0.0158 | K40: =INDEX(Data!$K$73:$T$100,MATCH('RFPR cover'!$C$5,Data!$B$73:$B$100,0),MATCH('R9 - RAV'!K$6,Data!$K$72:$T$72,0)) -> 0.0109
B41: Cost of equity | C41: annual real % | D41: ='RFPR cover'!$C$10 -> 0.067 | E41: ='RFPR cover'!$C$10 -> 0.067 | F41: ='RFPR cover'!$C$10 -> 0.067 | G41: ='RFPR cover'!$C$10 -> 0.067 | H41: ='RFPR cover'!$C$10 -> 0.067 | I41: ='RFPR cover'!$C$10 -> 0.067 | J41: ='RFPR cover'!$C$10 -> 0.067 | K41: ='RFPR cover'!$C$10 -> 0.067
B42: Notional gearing | C42: % | D42: ='RFPR cover'!$C$12 -> 0.65 | E42: ='RFPR cover'!$C$12 -> 0.65 | F42: ='RFPR cover'!$C$12 -> 0.65 | G42: ='RFPR cover'!$C$12 -> 0.65 | H42: ='RFPR cover'!$C$12 -> 0.65 | I42: ='RFPR cover'!$C$12 -> 0.65 | J42: ='RFPR cover'!$C$12 -> 0.65 | K42: ='RFPR cover'!$C$12 -> 0.65
B43: Vanilla WACC | C43: annual real % | D43: =D40*D42+D41*(1-D42) -> 0.04243 | E43: 0.04113 | F43: 0.040025 | G43: 0.03892 | H43: 0.03788 | I43: 0.035865 | J43: 0.03372 | K43: 0.030535
B45: NPV-neutral debt element of RAV | C45: ='RFPR cover'!$C$14 -> £m 09/10 | D45: =D47*D42 -> 1105.088255 | E45: 1097.582714 | F45: 1096.886433 | G45: 1100.477221 | H45: 1102.203739 | I45: 1102.499125 | J45: 1106.608492 | K45: 1119.297054
B46: NPV-neutral equity element of RAV | C46: ='RFPR cover'!$C$14 -> £m 09/10 | D46: =D47*(1-D42) -> 595.0475217 | E46: 591.0060769 | F46: 590.631156 | G46: 592.5646575 | H46: 593.4943208 | I46: 593.6533747 | J46: 595.8661109 | K46: 602.6984139
B47: NPV-neutral RAV return base | C47: ='RFPR cover'!$C$14 -> £m 09/10 | D47: =AVERAGE(D16,D29*(1/(1+D43))) -> 1700.135776 | E47: 1688.588791 | F47: 1687.517588 | G47: 1693.041879 | H47: 1695.698059 | I47: 1696.152499 | J47: 1702.474603 | K47: 1721.995468
B49: Debt Return on RAV | C49: ='RFPR cover'!$C$14 -> £m 09/10 | D49: =D40*D45 -> 32.26857703 | E49: =E40*E45 -> 29.85424983 | F49: 27.97060403 | G49: 26.19135786 | H49: 24.468923 | I49: 21.05773328 | J49: 17.48441417 | K49: 12.20033789
B50: Equity Return on RAV | C50: ='RFPR cover'!$C$14 -> £m 09/10 | D50: 39.86818395 | E50: 39.59740715 | F50: 39.57228745 | G50: 39.70183206 | H50: 39.76411949 | I50: 39.77477611 | J50: 39.92302943 | K50: 40.38079373
B51: Total return on RAV | C51: ='RFPR cover'!$C$14 -> £m 09/10 | D51: =SUM(D49:D50) -> 72.13676098 | E51: =SUM(E49:E50) -> 69.45165698 | F51: 67.54289148 | G51: 65.89318992 | H51: 64.23304249 | I51: 60.83250939 | J51: 57.4074436 | K51: 52.58113162
B53: NPV-neutral debt element of RAV | C53: £m nominal | D53: =D$35*D45 -> 1289.294385 | E53: 1305.636462 | F53: 1318.869604 | G53: 1351.539669 | H53: 1404.31403 | I53: 1447.611646 | J53: 1490.621389 | K53: 1525.999141
B54: NPV-neutral equity element of RAV | C54: £m nominal | D54: 694.2354381 | E54: 703.0350181 | F54: 710.160556 | G54: 727.7521295 | H54: 756.1690933 | I54: 779.4831939 | J54: 802.6422863 | K54: 821.691845
B55: Adjusted NPV-neutral average RAV | C55: £m nominal | D55: =SUM(D53:D54) -> 1983.529823 | E55: =SUM(E53:E54) -> 2008.67148 | F55: 2029.03016 | G55: 2079.291799 | H55: 2160.483124 | I55: 2227.09484 | J55: 2293.263675 | K55: 2347.690986
B57: Debt Return on RAV | C57: £m nominal | D57: =D$35*D49 -> 37.64739604 | E57: 35.51331177 | F57: 33.6311749 | G57: 32.16664413 | H57: 31.17577147 | I57: 27.64938243 | J57: 23.55181795 | K57: 16.63339063
B58: Equity Return on NPV-neutral RAV | C58: £m nominal | D58: 46.51377435 | E58: 47.10334621 | F58: 47.58075725 | G58: 48.75939268 | H58: 50.66332925 | I58: 52.22537399 | J58: 53.77703319 | K58: 55.05335361
B59: Total return on RAV | C59: £m nominal | D59: =SUM(D57:D58) -> 84.1611704 | E59: 82.61665798 | F59: 81.21193215 | G59: 80.9260368 | H59: 81.83910072 | I59: 79.87475642 | J59: 77.32885113 | K59: 71.68674424

Sheet R10 - Tax
A1: R10 - Tax
A2: ='RFPR cover'!C5 -> Cadent-NW
A3: ='RFPR cover'!C7 -> 2021
D5: =IF(D6<=('RFPR cover'!$C$7-1),"Actuals","Forecast") -> Actuals | E5: =IF(E6<=('RFPR cover'!$C$7-1),"Actuals","Forecast") -> Actuals | F5: =IF(F6<=('RFPR cover'!$C$7-1),"Actuals","Forecast") -> Actuals | G5: =IF(G6<=('RFPR cover'!$C$7-1),"Actuals","Forecast") -> Actuals | H5: =IF(H6<=('RFPR cover'!$C$7-1),"Actuals","Forecast") -> Actuals | I5: =IF(I6<=('RFPR cover'!$C$7-1),"Actuals","Forecast") -> Actuals | J5: =IF(J6<=('RFPR cover'!$C$7-1),"Actuals","Forecast") -> Actuals | K5: =IF(K6<=('RFPR cover'!$C$7-1),"Actuals","Forecast") -> Forecast
D6: ='RFPR cover'!$C$13 -> 2014 | E6: =D6+1 -> 2015 | F6: =E6+1 -> 2016 | G6: 2017 | H6: 2018 | I6: 2019 | J6: 2020 | K6: 2021
B8: CT600 will not have been submitted for the current reporting year.
B9: It is assumed the current tax charge per the statutory accounts will equal the tax liability in the forthcoming CT600, where this is not the case the licensee should provide an explanation in the commentary of the variance.
B10: This will be corrected / trued-up in future years
B12: Tax liability per latest submitted CT600 (pre-group relief) | C12: £m nominal | D12: 154.975 | E12: 126.992 | F12: 134.012 | G12: -25.7 | H12: 125.2 | I12: 132.89854 | J12: 144.81819
B14: Adjustments to remove non-regulated tax liability
B15: Tax on non-regulated activities | C15: £m nominal | D15: 44.6468619 | E15: 42.4797453 | F15: 43.44862871 | G15: 0.4293253918 | H15: 0.7552502622 | I15: 0.5849864272 | J15: -3.292726117
B16: Tax relating to capital contributions (excluded services) | C16: £m nominal | D16: -4.498791074 | E16: -3.427918254 | F16: -83.87205642 | G16: -0.7489804721 | H16: -0.5642697889 | I16: -0.215764 | J16: 0.4880066873
B17: Tax on Separation costs/restructuring costs | C17: £m nominal | D17: 1.381593191 | E17: 0 | F17: 0 | G17: -2.28009114 | H17: -3.8 | I17: -3.116 | J17: -2.064399715
B18: Transfer pricing and de-grouping charge adjustment | C18: £m nominal | D18: 7.160544 | E18: 6.69186 | F18: 7.863804 | G18: -4 | H18: 0 | I18: 0 | J18: 0
B19: Tax on Payments to Cadent Foundation | C19: £m nominal | D19: 0 | E19: 0 | F19: 0 | G19: 0 | H19: 0 | I19: 0 | J19: -1.767
B20: Tax on Payment to Energy Savings Trust, GSOP and Grenfell | C20: £m nominal | D20: 0 | E20: 0 | F20: 0 | G20: 0 | H20: 0 | I20: -3.116 | J20: -0.8121479244
B21: Tax relating to other three networks (included in CT600) | C21: £m nominal | D21: 80.35736143 | E21: 65.89651833 | F21: 126.5482117 | G21: -13.76797824 | H21: 101.5276705 | I21: 106.539757 | J21: 112.277115
B22: Non-regulated tax | C22: £m nominal | D22: =SUM(D15:D21) -> 129.0475694 | E22: =SUM(E15:E21) -> 111.6402054 | F22: 93.98858795 | G22: -20.36772446 | H22: 97.91865095 | I22: 100.6769795 | J22: 104.828848 | K22: 0
B24: Other adjustments
B25: Tax on output incentives | C25: £m nominal | D25: =('R5 - Output Incentives'!D102)*INDEX(Data!$G$14:$G$30,MATCH('R10 - Tax'!D$6,Data!$C$14:$C$30,0),1) -> 0.0522687949 | E25: =('R5 - Output Incentives'!E102)*INDEX(Data!$G$14:$G$30,MATCH('R10 - Tax'!E$6,Data!$C$14:$C$30,0),1) -> 0.0430573668 | F25: =('R5 - Output Incentives'!F102)*INDEX(Data!$G$14:$G$30,MATCH('R10 - Tax'!F$6,Data!$C$14:$C$30,0),1) -> 0.833595554 | G25: =('R5 - Output Incentives'!G102)*INDEX(Data!$G$14:$G$30,MATCH('R10 - Tax'!G$6,Data!$C$14:$C$30,0),1) -> 1.036287644 | H25: =('R5 - Output Incentives'!H102)*INDEX(Data!$G$14:$G$30,MATCH('R10 - Tax'!H$6,Data!$C$14:$C$30,0),1) -> 1.984440302 | I25: =('R5 - Output Incentives'!I102)*INDEX(Data!$G$14:$G$30,MATCH('R10 - Tax'!I$6,Data!$C$14:$C$30,0),1) -> 1.694683526 | J25: =('R5 - Output Incentives'!J102)*INDEX(Data!$G$14:$G$30,MATCH('R10 - Tax'!J$6,Data!$C$14:$C$30,0),1) -> 1.937058086 | K25: =('R5 - Output Incentives'!K102)*INDEX(Data!$G$14:$G$30,MATCH('R10 - Tax'!K$6,Data!$C$14:$C$30,0),1) -> 2.13880347
B26: Tax on IQI | C26: £m nominal | D26: =('R4 - Totex'!D77-'R4 - Totex'!D79)*D42 -> 0.2923268687 | E26: =('R4 - Totex'!E77-'R4 - Totex'!E79)*E42 -> 0.2567797353 | F26: =('R4 - Totex'!F77-'R4 - Totex'!F79)*F42 -> 0.2420860165 | G26: =('R4 - Totex'!G77-'R4 - Totex'!G79)*G42 -> 0.2503525979 | H26: =('R4 - Totex'!H77-'R4 - Totex'!H79)*H42 -> 0.2503448635 | I26: =('R4 - Totex'!I77-'R4 - Totex'!I79)*I42 -> 0.2545705226 | J26: =('R4 - Totex'!J77-'R4 - Totex'!J79)*J42 -> 0.2594586061 | K26: =('R4 - Totex'!K77-'R4 - Totex'!K79)*K42 -> 0.2563966772
B27: Collected revenue adjustment ('k') | C27: £m nominal | D27: 1.927886866 | E27: -0.653534984 | F27: 2.727143071 | G27: 2.152695711 | H27: -1.31759775 | I27: -1.261726123 | J27: -0.01309830897
B28: Pension - timing adjustment | C28: £m nominal | D28: 0.412874114 | E28: 0.1515337109 | F28: 0.007234710709 | G28: -0.002557848278 | H28: -1.136425739 | I28: -0.671019232 | J28: -0.000157168914
B29: Pension - disallowed contributions | C29: £m nominal | D29: 0 | E29: 0 | F29: 0 | G29: 0 | H29: 0 | I29: 0 | J29: 0
B30: Tax on derivatives not disregarded | C30: £m nominal | D30: 0 | E30: 0 | F30: 0 | G30: 0 | H30: 0 | I30: 0 | J30: 0
B31: Tax arising from MOD values | C31: £m nominal | D31: 0.1053606261 | E31: -2.02751765 | F31: -0.2593882319 | G31: 4.730855724 | H31: 0.769269628 | I31: -1.451313156 | J31: -2.9230452
B32: Tax on finance costs not included within the RIIO 1 definition | C32: £m nominal | D32: 0.4245863414 | E32: -1.2432 | F32: -0.4 | G32: -43.3152 | H32: -0.02077333798 | I32: 0.06558865261 | J32: -0.03673805825
B33: Difference between actual and allowed pass through costs (inc exit capacity and shrinkage) | C33: £m nominal | D33: 0.3481678561 | E33: 0.2609673385 | F33: 0.04760147102 | G33: -0.08203486222 | H33: -2.285797359 | I33: -1.298062877 | J33: 2.113280569
B34: Other revenue timing adjustments | C34: £m nominal | D34: -0.03003345129 | E34: -0.07238782027 | F34: 0.2995191353 | G34: -1.281967219 | H34: -1.899973608 | I34: -0.5726588742 | J34: 0.09346911883
B35: Regulatory tax losses carried forward from previous price controls | C35: £m nominal | D35: 0 | E35: 0 | F35: 0 | G35: 0 | H35: 0 | I35: 0 | J35: 0
B36: 0 | C36: £m nominal | D36: 0 | E36: 0 | F36: 0 | G36: 0 | H36: 0 | I36: 0 | J36: 0
B37: Total other adjustments | C37: £m nominal | D37: =SUM(D25:D36) -> 3.533438016 | E37: -3.284302303 | F37: 3.497791727 | G37: -36.51156825 | H37: -3.656513001 | I37: -3.23993756 | J37: 1.430227644 | K37: 2.395200148
B39: Forecast regulated tax liability (including impact of enduring value adjustments) | C39: £m nominal | J39: 0 | K39: 34.90059336
B40: Adjusted forecast regulated tax liability with timing differences | C40: £m nominal | D40: =D12+D39-D22-D37 -> 22.39399254 | E40: =E12+E39-E22-E37 -> 18.63609693 | F40: =F12+F39-F22-F37 -> 36.52562032 | G40: =G12+G39-G22-G37 -> 31.17929271 | H40: 30.93786205 | I40: 35.46149808 | J40: 38.55911439 | K40: 32.50539321
B42: Financial year average RPI | C42: Index | D42: =Data!C$34 -> 1.166689067 | E42: =Data!D$34 -> 1.189556327 | F42: =Data!E$34 -> 1.202375711 | G42: =Data!F$34 -> 1.228139614 | H42: =Data!G$34 -> 1.274096595 | I42: =Data!H$34 -> 1.313027479 | J42: =Data!I$34 -> 1.347017848 | K42: =Data!J$34 -> 1.363354915
B44: Adjusted/forecast regulated tax liability with timing differences | C44: ='RFPR cover'!$C$14 -> £m 09/10 | D44: =D40/D42 -> 19.1944822 | E44: 15.66642664 | F44: 30.37787606 | G44: 25.38741717 | H44: 24.28219506 | I44: 27.00743028 | J44: 28.62554082 | K44: 23.84220928
B46: Tax out(under)performance at notional gearing
B47: Performance against allowance is impacted by deviating from notional levels of gearing
B49: Notional Gearing | C49: % | D49: ='RFPR cover'!$C$12 -> 0.65 | E49: ='RFPR cover'!$C$12 -> 0.65 | F49: ='RFPR cover'!$C$12 -> 0.65 | G49: ='RFPR cover'!$C$12 -> 0.65 | H49: ='RFPR cover'!$C$12 -> 0.65 | I49: ='RFPR cover'!$C$12 -> 0.65 | J49: ='RFPR cover'!$C$12 -> 0.65 | K49: ='RFPR cover'!$C$12 -> 0.65
B50: Actual Gearing | C50: % | D50: ='R8 - Net Debt'!D57 -> 0.5618498756 | E50: ='R8 - Net Debt'!E57 -> 0.6253860141 | F50: ='R8 - Net Debt'!F57 -> 0.6083958923 | G50: ='R8 - Net Debt'!G57 -> 0.6107673795 | H50: ='R8 - Net Debt'!H57 -> 0.6240583354 | I50: ='R8 - Net Debt'!I57 -> 0.6288356 | J50: ='R8 - Net Debt'!J57 -> 0.6339802005 | K50: ='R8 - Net Debt'!K57 -> 0.6282636889
B52: Adjusted/forecast regulated tax liability with timing differences | C52: £m nominal | D52: =D40 -> 22.39399254 | E52: =E40 -> 18.63609693 | F52: 36.52562032 | G52: 31.17929271 | H52: 30.93786205 | I52: 35.46149808 | J52: 38.55911439 | K52: 32.50539321
B53: Adjustment to regulatory tax cost relating to variance from notional gearing | C53: £m nominal | D53: =D88-D90 -> -0.2458751565 | E53: =E88-E90 -> -0.09709926692 | F53: -0.2630304612 | G53: -0.1351233769 | H53: 0.1328523701 | I53: 0.08801703221 | J53: 0.4371149053 | K53: 0.3296490028
B54: Revised regulated tax liability for comparison against allowance | C54: £m nominal | D54: =SUM(D52:D53) -> 22.14811738 | E54: =SUM(E52:E53) -> 18.53899766 | F54: 36.26258986 | G54: 31.04416933 | H54: 31.07071442 | I54: 35.54951512 | J54: 38.9962293 | K54: 32.83504222
B56: Revised regulated tax liability for comparison against allowance | C56: ='RFPR cover'!$C$14 -> £m 09/10 | D56: =D54/D42 -> 18.98373611 | E56: =E54/E42 -> 15.58480018 | F56: 30.1591171 | G56: 25.27739435 | H56: 24.38646688 | I56: 27.07446393 | J56: 28.95004647 | K56: 24.08400179
B59: Allowance
B61: The latest published PCFM does not account for the forecast TIM performance - and ultimate impact on tax allowance.
B63: Tax Allowance per latest published PCFM | C63: ='RFPR cover'!$C$14 -> £m 09/10 | D63: 13.68685188 | E63: 7.996542292 | F63: 24.52960553 | G63: 23.08683029 | H63: 23.14801993 | I63: 23.36131731 | J63: 24.07108383 | K63: 25.74330164
B64: Tax clawbacks | C64: ='RFPR cover'!$C$14 -> £m 09/10 | D64: 0 | E64: 0 | F64: 5.719908177e-17 | G64: 0 | H64: 0 | I64: 0 | J64: 0 | K64: 0
B65: Net Tax Allowance | C65: ='RFPR cover'!$C$14 -> £m 09/10 | D65: =SUM(D63:D64) -> 13.68685188 | E65: 7.996542292 | F65: 24.52960553 | G65: 23.08683029 | H65: 23.14801993 | I65: 23.36131731 | J65: 24.07108383 | K65: 25.74330164
B67: Network operators should provide forecast allowances taking account of the latest totex, allowances, reopeners, enduring value adjustments - and other financial variables
B69: Forecast tax allowance | C69: ='RFPR cover'!$C$14 -> £m 09/10 | D69: 11.23354178 | E69: 7.101091209 | F69: 23.26457909 | G69: 20.55744532 | H69: 20.63153025 | I69: 23.60334068 | J69: 24.04163072 | K69: 24.4031237
B70: Forecast tax clawbacks | C70: ='RFPR cover'!$C$14 -> £m 09/10 | D70: 0 | E70: 0 | F70: 5.719908177e-17 | G70: 0 | H70: 0 | I70: 2.140618721e-16 | J70: 0 | K70: 0
B71: Net forecast tax allowance | C71: ='RFPR cover'!$C$14 -> £m 09/10 | D71: =SUM(D69:D70) -> 11.23354178 | E71: 7.101091209 | F71: 23.26457909 | G71: 20.55744532 | H71: 20.63153025 | I71: 23.60334068 | J71: 24.04163072 | K71: 24.4031237
B73: Reconciliation of forecast movement in allowance | D73: =D71-D65 -> -2.453310098 | E73: -0.8954510835 | F73: -1.265026442 | G73: -2.529384977 | H73: -2.516489679 | I73: 0.2420233719 | J73: -0.02945311339 | K73: -1.340177936
B74: Changes in corporation tax rates | C74: ='RFPR cover'!$C$14 -> £m 09/10 | D74: 0 | E74: 0 | F74: 0 | G74: 0 | H74: 0 | I74: 0 | J74: 0 | K74: 0
B75: Tax allowance retained within deadband | C75: ='RFPR cover'!$C$14 -> £m 09/10 | D75: 0 | E75: 0 | F75: 0 | G75: 0 | H75: 0 | I75: 0 | J75: 0 | K75: 0
B76: Other adjustments | C76: ='RFPR cover'!$C$14 -> £m 09/10 | D76: -2.453310098 | E76: -0.8954510835 | F76: -1.265026442 | G76: -2.529384977 | H76: -2.516489679 | I76: 0.2420233719 | J76: -0.02945311339 | K76: -1.340177936
B77: Check | C77: ='RFPR cover'!$C$14 -> £m 09/10 | D77: =IF(ABS(D73-SUM(D74:D76))<'RFPR cover'!$F$14,"OK","ERROR") -> OK | E77: =IF(ABS(E73-SUM(E74:E76))<'RFPR cover'!$F$14,"OK","ERROR") -> OK | F77: =IF(ABS(F73-SUM(F74:F76))<'RFPR cover'!$F$14,"OK","ERROR") -> OK | G77: =IF(ABS(G73-SUM(G74:G76))<'RFPR cover'!$F$14,"OK","ERROR") -> OK | H77: =IF(ABS(H73-SUM(H74:H76))<'RFPR cover'!$F$14,"OK","ERROR") -> OK | I77: =IF(ABS(I73-SUM(I74:I76))<'RFPR cover'!$F$14,"OK","ERROR") -> OK | J77: =IF(ABS(J73-SUM(J74:J76))<'RFPR cover'!$F$14,"OK","ERROR") -> OK | K77: =IF(ABS(K73-SUM(K74:K76))<'RFPR cover'!$F$14,"OK","ERROR") -> OK
B80: Out(under) performance
B82: Regulated tax out(under) performance at actual gearing | C82: ='RFPR cover'!$C$14 -> £m 09/10 | D82: =D$71-D44 -> -7.960940419 | E82: -8.565335428 | F82: -7.113296973 | G82: -4.829971851 | H82: -3.650664812 | I82: -3.404089595 | J82: -4.583910102 | K82: 0.5609144225
B84: Regulated tax out(under) performance at notional gearing | C84: ='RFPR cover'!$C$14 -> £m 09/10 | D84: =D$71-D56 -> -7.750194331 | E84: -8.483708973 | F84: -6.894538012 | G84: -4.719949037 | H84: -3.754936632 | I84: -3.471123251 | J84: -4.908415754 | K84: 0.3191219156
B86: Impact on out(under) performance relating to deviating from notional levels of gearing | C86: ='RFPR cover'!$C$14 -> £m 09/10 | D86: =D82-D84 -> -0.2107460877 | E86: =E82-E84 -> -0.08162645578 | F86: -0.218758961 | G86: -0.1100228145 | H86: 0.1042718195 | I86: 0.06703365591 | J86: 0.3245056522 | K86: 0.2417925069
B88: Tax impact of financing performance (at actual gearing) | C88: £m nominal | D88: -5.690624279 | E88: -5.842366922 | F88: -6.692314574 | G88: -5.205810381 | H88: -5.777456642 | I88: -5.200284177 | J88: -3.703285294 | K88: -2.274222852
B89: Tax impact of financing performance (at actual gearing) | C89: ='RFPR cover'!$C$14 -> £m 09/10 | D89: =D88/D$42 -> -4.877584301 | E89: =E88/E$42 -> -4.911383168 | F89: -5.565909652 | G89: -4.238777354 | H89: -4.534551513 | I89: -3.960529586 | J89: -2.749247384 | K89: -1.668107714
B90: Tax impact of financing performance (at notional gearing) | C90: £m nominal | D90: -5.444749122 | E90: -5.745267655 | F90: -6.429284113 | G90: -5.070687005 | H90: -5.910309012 | I90: -5.288301209 | J90: -4.1404002 | K90: -2.603871854
B91: Tax impact of financing performance (at notional gearing) | C91: ='RFPR cover'!$C$14 -> £m 09/10 | D91: =D90/D$42 -> -4.666838213 | E91: -4.829756713 | F91: -5.347150691 | G91: -4.128754539 | H91: -4.638823332 | I91: -4.027563242 | J91: -3.073753036 | K91: -1.909900221
B92: Tax impact of financing performance relating to deviating from notional levels of gearing | C92: ='RFPR cover'!$C$14 -> £m 09/10 | D92: =D89-D91 -> -0.2107460877 | E92: =E89-E91 -> -0.08162645578 | F92: -0.218758961 | G92: -0.1100228145 | H92: 0.1042718195 | I92: 0.06703365591 | J92: 0.3245056522 | K92: 0.2417925069

Sheet R11 - Dividends
A1: R11 - Dividends
A2: ='RFPR cover'!C5 -> Cadent-NW
A3: ='RFPR cover'!C7 -> 2021 | B3: ='R1 - RoRE'!B3 -> 
D5: =IF(D6<='RFPR cover'!$C$7,"Actuals","N/A") -> Actuals | E5: =IF(E6<='RFPR cover'!$C$7,"Actuals","N/A") -> Actuals | F5: =IF(F6<='RFPR cover'!$C$7,"Actuals","N/A") -> Actuals | G5: =IF(G6<='RFPR cover'!$C$7,"Actuals","N/A") -> Actuals | H5: =IF(H6<='RFPR cover'!$C$7,"Actuals","N/A") -> Actuals | I5: =IF(I6<='RFPR cover'!$C$7,"Actuals","N/A") -> Actuals | J5: =IF(J6<='RFPR cover'!$C$7,"Actuals","N/A") -> Actuals | K5: =IF(K6<='RFPR cover'!$C$7,"Actuals","N/A") -> Actuals
D6: ='RFPR cover'!$C$13 -> 2014 | E6: =D6+1 -> 2015 | F6: =E6+1 -> 2016 | G6: 2017 | H6: 2018 | I6: 2019 | J6: 2020 | K6: 2021
B8: Dividend paid as per Statutory Accounts | C8: £m nominal | D8: 455 | E8: 540 | F8: 458 | G8: 95 | H8: 418 | I8: 423 | J8: 275 | K8: 0
B9: Less dividend paid not related to Regulated business
B10: Metering | C10: £m nominal | D10: 65 | E10: 97 | F10: 67 | G10: - | H10: - | I10: 0 | J10: 0 | K10: 0
B11: Non regulated activities | C11: £m nominal | D11: 3 | E11: 7 | F11: 8 | G11: - | H11: 3 | I11: 2.121726915 | J11: 1.157518742 | K11: 0
B12: Other networks (East of England, West Midlands and London) | C12: £m nominal | D12: 308 | E12: 343 | F12: 292 | G12: 75 | H12: 325 | I12: 327.5508328 | J12: 211.8131296 | K12: 0
B13: Dividend paid relating to the Regulated Business | C13: £m nominal | D13: =D8-SUM(D10:D12) -> 79 | E13: =E8-SUM(E10:E12) -> 93 | F13: 91 | G13: 20 | H13: 90 | I13: 93.32744032 | J13: 62.02935166 | K13: 0
B15: Shareholder loan interest (not included as Net Interest per Regulatory (RIIO-1) definition) | C15: £m nominal | D15: 0 | E15: 0 | F15: 0 | G15: 0 | H15: 0 | I15: 0 | J15: 0 | K15: 0

Sheet R12 - Pensions
A1: R12 - Pensions
A2: ='RFPR cover'!C5 -> Cadent-NW
A3: ='RFPR cover'!C7 -> 2021
D5: =IF(D6<='RFPR cover'!$C$7,"Actuals","Forecast") -> Actuals | E5: =IF(E6<='RFPR cover'!$C$7,"Actuals","Forecast") -> Actuals | F5: =IF(F6<='RFPR cover'!$C$7,"Actuals","Forecast") -> Actuals | G5: =IF(G6<='RFPR cover'!$C$7,"Actuals","Forecast") -> Actuals | H5: =IF(H6<='RFPR cover'!$C$7,"Actuals","Forecast") -> Actuals | I5: =IF(I6<='RFPR cover'!$C$7,"Actuals","Forecast") -> Actuals | J5: =IF(J6<='RFPR cover'!$C$7,"Actuals","Forecast") -> Actuals | K5: =IF(K6<='RFPR cover'!$C$7,"Actuals","Forecast") -> Actuals
D6: ='RFPR cover'!$C$13 -> 2014 | E6: =D6+1 -> 2015 | F6: =E6+1 -> 2016 | G6: 2017 | H6: 2018 | I6: 2019 | J6: 2020 | K6: 2021
B8: Licensee share of total pension deficit repair payment made for defined benefit scheme | C8: £m nominal | D8: 2.054969079 | E8: 3.20394678 | F8: 3.210240866 | G8: 3.430378543 | H8: 9.711050519 | I8: 10.02898175 | J8: 10.30901231 | K8: 0.2008905455
B9: Of which:
B10: Established deficit element funded via specific allowances | C10: £m nominal | D10: 2.054969079 | E10: 3.20394678 | F10: 3.210240866 | G10: 3.328766198 | H10: 9.421248906 | I10: 9.72969229 | J10: 10.00136605 | K10: 0.2769865371
B11: Incremental deficit funded via totex | C11: £m nominal | D11: 0 | E11: 0 | F11: 0 | G11: 0.1016123454 | H11: 0.2898016137 | I11: 0.299289463 | J11: 0.307646263 | K11: -0.07609599154
B14: Established deficit element funded via specific allowances | C14: ='RFPR cover'!$C$14 -> £m 09/10 | D14: =D10/Data!C$34 -> 1.761368248 | E14: =E10/Data!D$34 -> 2.693396443 | F14: =F10/Data!E$34 -> 2.669914933 | G14: =G10/Data!F$34 -> 2.710413508 | H14: =H10/Data!G$34 -> 7.394454191 | I14: =I10/Data!H$34 -> 7.410120845 | J14: =J10/Data!I$34 -> 7.424820734 | K14: =K10/Data!J$34 -> 0.2031653929
B17: Established deficit (EDE) allowance as per PCFM | C17: ='RFPR cover'!$C$14 -> £m 09/10 | D17: 3.3 | E17: 3.3 | F17: 2.7 | G17: 2.7 | H17: 2.7 | I17: 7.1 | J17: 7.139665985 | K17: 7.139665985
B18: Less Pension Payment History Allowance (PPH) | C18: ='RFPR cover'!$C$14 -> £m 09/10 | D18: 0 | E18: 0 | F18: 0 | G18: 0 | H18: 0 | I18: -0.3 | J18: -0.3 | K18: -0.3
B19: Established deficit allowance less PPH | C19: ='RFPR cover'!$C$14 -> £m 09/10 | D19: =D17-D18 -> 3.3 | E19: =E17-E18 -> 3.3 | F19: 2.7 | G19: 2.7 | H19: 2.7 | I19: 7.4 | J19: 7.439665985 | K19: 7.439665985
D21: Enter valuation date
B24: Latest pension scheme valuation | D24: 2019-03-31
B26: Price base | D26: 43555
D28: £m
B29: Total Liabilities attributable to post cut-off date notional sub fund | D29: 189.9403274
B30: Total Liabilities attributable to pre cut-off date notional sub fund | D30: 6559.759673
B32: Total Assets attributable to post cut-off date notional sub fund | D32: 221.9
B33: Total Assets attributable to pre cut-off date notional sub fund | D33: 6445.5
B35: Deficit in the post Cut-Off Date Notional Sub-Fund | D35: =D29-D32 -> -31.95967259
B36: Deficit in the pre Cut-Off Date Notional Sub-Fund | D36: =D30-D33 -> 114.2596726
B38: Licensee element of established deficit | D38: 28.45065847
B39: Licensee element of incremental deficit | D39: -7.969074176

Sheet R13 - Other Activities
A1: R13 - Other activities
A2: ='RFPR cover'!C5 -> Cadent-NW
A3: ='RFPR cover'!C7 -> 2021
D5: =IF(D6<='RFPR cover'!$C$7,"Actuals","Forecast") -> Actuals | E5: =IF(E6<='RFPR cover'!$C$7,"Actuals","Forecast") -> Actuals | F5: =IF(F6<='RFPR cover'!$C$7,"Actuals","Forecast") -> Actuals | G5: =IF(G6<='RFPR cover'!$C$7,"Actuals","Forecast") -> Actuals | H5: =IF(H6<='RFPR cover'!$C$7,"Actuals","Forecast") -> Actuals | I5: =IF(I6<='RFPR cover'!$C$7,"Actuals","Forecast") -> Actuals | J5: =IF(J6<='RFPR cover'!$C$7,"Actuals","Forecast") -> Actuals | K5: =IF(K6<='RFPR cover'!$C$7,"Actuals","Forecast") -> Actuals
D6: ='RFPR cover'!$C$13 -> 2014 | E6: =D6+1 -> 2015 | F6: =E6+1 -> 2016 | G6: 2017 | H6: 2018 | I6: 2019 | J6: 2020 | K6: 2021
B8: Post-tax total fines and penalties (including GS payments) | C8: ='RFPR cover'!$C$14 -> £m 09/10 | D8: =(D16+D21)/Data!C34 -> 0.5002067651 | E8: =(E16+E21)/Data!D34 -> 0.4687117109 | F8: =(F16+F21)/Data!E34 -> 0.1653851752 | G8: =(G16+G21)/Data!F34 -> 0.2034581991 | H8: =(H16+H21)/Data!G34 -> 0.291994508 | I8: =(I16+I21)/Data!H34 -> 0.5520352593 | J8: =(J16+J21)/Data!I34 -> 0.3427885336 | K8: =(K16+K21)/Data!J34 -> 0.1451282227
B10: Ofgem related fines and penalties
B11: Failure to meet gas network repair targets | C11: £m nominal | D11: 0.375 | E11: 0.375 | F11: 0 | G11: 0 | H11: 0 | I11: 0 | J11: 0 | K11: 0
B12: Fine/penalty | C12: £m nominal | D12: 0 | E12: 0 | F12: 0 | G12: 0 | H12: 0 | I12: 0.161 | J12: 0 | K12: 0
B13: Payments to residents who faced delayed compensation | C13: £m nominal | D13: 0 | E13: 0 | F13: 0 | G13: 0 | H13: 0 | I13: 0 | J13: 0 | K13: 0
B14: Total Ofgem related fines and penalties | C14: £m nominal | D14: =SUM(D11:D13) -> 0.375 | E14: =SUM(E11:E13) -> 0.375 | F14: 0 | G14: 0 | H14: 0 | I14: 0.161 | J14: 0 | K14: 0
B15: Any adjustment for tax | C15: £m nominal | D15: 0 | E15: 0 | F15: 0 | G15: 0 | H15: 0 | I15: 0 | J15: 0 | K15: 0
B16: Post-tax total fines and penalties | C16: £m nominal | D16: =D14-D15 -> 0.375 | E16: =E14-E15 -> 0.375 | F16: 0 | G16: 0 | H16: 0 | I16: 0.161 | J16: 0 | K16: 0
B18: Guaranteed Standard (GS) payments
B19: Total GS payments | C19: £m nominal | D19: 0.270890603 | E19: 0.231087318 | F19: 0.248568897 | G19: 0.3123438425 | H19: 0.459295319 | I19: 0.6960956355 | J19: 0.5700521887 | K19: 0.24427318
B20: Any adjustment for tax | C20: £m nominal | D20: 0.06230483869 | E20: 0.04852833678 | F20: 0.0497137794 | G20: 0.0624687685 | H20: 0.08726611061 | I20: 0.1322581707 | J20: 0.1083099159 | K20: 0.0464119042
B21: Post-tax total GS payments | C21: £m nominal | D21: =D19-D20 -> 0.2085857643 | E21: =E19-E20 -> 0.1825589812 | F21: 0.1988551176 | G21: 0.249875074 | H21: 0.3720292084 | I21: 0.5638374647 | J21: 0.4617422729 | K21: 0.1978612758
